Workbook

Sheet Setup
M1: 4.75 | N1: SP.75
A2: ESB-19 | M2: 6.33 | N2: SR4.75
A3: PA DESIGN SOFTWARE FOR HMA AND SMA | M3: 9.5 | N3: SP6.33
M4: 12.5 | N4: SP9.5
M5: 19 | N5: SR9.5
C6: Date | M6: 25 | N6: SP12.5
C7: Producer | M7: 37.5 | N7: SR12.5
C8: Designed by | M8: <.3 | N8: SP19W
C9: Nominal Size of Mix | M9: .3 to <3 | N9: SP19B
C10: Material Class | M10: 3 to <10 | N10: SR19W
C11: SRL | M11: 10 to <30 | N11: SR19B
C12: Esals | M12: 3 to <30 | N12: SP25B
C13: Asphalt Supplier | M13: >30 | N13: SP25BC
C14: Grade of Asphalt | N14: SR25B
C15: Gb of Asphalt | N15: SR25BC
C16: Gyrations @ Ndesign | N16: SP37.5
C17: Percent Rap | N17: SR37.5 | P17: Volumeter
N18: SMA95 | P18: Suspension
C19: Method of Testing Max Gravity | F19: Suspension | N19: SMA125
C20: Calibration of Volumeter | N20: ATPBC
C21: (Weight of volumeter + H2O or Weight of volumeter in H2O) | N21: WM6.33
N22: WM9.5
C23: Method of Testing Plug Gravity | F23: Suspension | N23: WR9.5
C24: Calibration of Volumeter | N24: WM12.5
C25: (Weight of volumeter + H2O or Weight of volumeter in H2O) | N25: WR12.5
N26: WM19W
N27: WM19B
N28: WR19W
N29: WR19B
N30: WM25B
N31: WM25BC
N32: WR25B
N33: WR25BC
N34: WM37.5
N35: WR37.5
N36: SP19W / SP19B
N37: SR19W / SR19B
N38: SP25B / SP25BC
N39: SR25B / SR25BC
N40: WM19W / WM19B
N41: WR19W / WR19B
N42: WM25B / WM25BC
N43: WR25B / WR25BC

Sheet Specs (hidden)
X3: Specification Requirements for SMA | BN3: SUPERPAVE SPECIFICATION REFERENCES
BO4: Revision to AASHTO R35 Bulletin 27 change 3 | BT4: Revision to AASHTO M323 Bulletin 27 change 3
BO5: Table 1 - Gyratory Compaction Effort | BT5: Table 5 - Superpave Aggregate Consensus Property Requirements
X6: Aggregate Quality Requirements | BO6: Design ESALs (millions) | BP6: Compaction Parameters | BT6: Design ESALs (millions) | BV6: Coarse Aggregate Angularity (Percent), minimum | BX6: Uncompacted Voids of Fine Aggregate (Percent), minimum | BZ6: Sand Equivalent (Percent), minimum | CA6: Flat and Elongated (Percent), maximum
X7: Characteristic | AI7: Required Values | BP7: Ninitial | BQ7: Ndesign | BR7: Nmax
X8: Abrasion, Max %. | AI8: 35 | BO8: <0.3 | BP8: 6 | BQ8: 50 | BR8: 75 | BV8: £ 100 mm | BW8: > 100 mm | BX8: £ 100 mm | BY8: > 100 mm
X9: Flat and Elongates Particles, % Max. ASTM D 4791 | BO9: 0.3 to < 3 | BP9: 7 | BQ9: 75 | BR9: 115 | BT9: <0.3 | BV9: 55/- | BW9: -/- | BX9: - | BY9: - | BZ9: 40 | CA9: -
X10: (measured by mass or by material retained on or above | BO10: 3 to < 30 | BP10: 8 | BQ10: 100 | BR10: 160 | BT10: 0.3 to < 3 | BV10: 75/- | BW10: 50/- | BX10: 40 | BY10: 40 | BZ10: 40 | CA10: 10
X11: the #4 sieve) | BT11: 3 to < 10 | BV11: 85/80 | BW11: 60/- | BX11: 45 | BY11: 40 | BZ11: 45
X12: 3:1 | AI12: 20 | BT12: 3 to < 30 | BV12: 95/90 | BW12: 80/75 | BX12: 45 | BY12: 40 | BZ12: 45
X13: 5:1 | AI13: 10 | BT13: ³ 30 | BV13: 95/90 | BW13: 95/90 | BX13: 45 | BY13: 45 | BZ13: 50
X14: Absorption, Max % AASHTO T85 | AI14: 2 | BN14: Revision to AASHTO M323 Bulletin 27 change 3
X15: Crushed fragments, Min % | AI15: 100 for one fractured face | BN15: Table 6 - Superpave Volumetric Mixture Design Requirements
AI16: 90 for two fractured faces | BN16: Design ESALs (millions) | BO16: Required Density (% of Theoretical Maximum Specific Gravity) | BR16: Voids-in-the Mineral Aggregate, (Percent) minimum | BX16: Voids Filled With Asphalt (Percent) minimum
BO17: Ninitial | BP17: Ndesign | BQ17: Nmax | BR17: Nominal Maximum Aggregate Size, mm | BX17: Nominal Maximum Aggregate Size, mm
AC18: Mix Design Reqqirements for SMA | BR18: 37.5 | BS18: 25 | BT18: 19 | BU18: 12.5 | BV18: 9.5 | BW18: 4.75 | BX18: 37.5 | BY18: 25 | BZ18: 19 | CA18: 12.5 | CB18: 9.5 | CC18: 4.75
AC19: Aggregate Gradation Requirements, Percent passing | BN19: <0.3 | BO19: £91.5 | BP19: 96.0 | BQ19: £98.0 | BR19: 11.5 | BS19: 12.5 | BT19: 13.5 | BU19: 15 | BV19: 16 | BW19: 16 | BX19: 65-78 | BY19: 68-78 | BZ19: 70-78 | CA19: 73-78 | CB19: 75-78 | CC19: 75-78
AC20: Sieve Size | AI20: 9.5 mm | AL20: 12.5 mm | BN20: 0.3 to < 3 | BO20: £90.5 | BR20: 11.5 | BS20: 12.5 | BT20: 13.5 | BU20: 15 | BV20: 16 | BW20: 16 | BX20: 65-78 | BY20: 68-78 | BZ20: 70-78 | CA20: 73-78 | CB20: 75-78 | CC20: 75-78
AC21: 19.0mm (3/4) | AL21: 100 | BN21: 3 to < 10 | BO21: £89.0 | BR21: 11.5 | BS21: 12.5 | BT21: 13.5 | BU21: 15 | BV21: 15.5 | BW21: 16 | BX21: 65-75 | BY21: 68-75 | BZ21: 70-75. | CA21: 73-75 | CB21: 75-76 | CC21: 75-78
AC22: 12.5mm (1/2) | AI22: 100 | AL22: 90-99 | BN22: 3 to < 30 | BR22: 11.5 | BS22: 12.5 | BT22: 13.5 | BU22: 15 | BV22: 15.5 | BW22: 16 | BX22: 65-75 | BY22: 68-75 | BZ22: 70-75 | CA22: 73-75 | CB22: 75-76 | CC22: 75-78
AC23: 9.5mm (3/8) | AI23: 75-95 | AL23: 70-85 | BN23: ³ 30 | BR23: 11.5 | BS23: 12.5 | BT23: 13.5 | BU23: 15 | BV23: 15.5 | BW23: 16 | BX23: 65-75 | BY23: 68-75 | BZ23: 70-75 | CA23: 73-75 | CB23: 75-76 | CC23: 75-78
AC24: 4.75mm (No 4) | AI24: 30-50 | AL24: 28-40 | BN24: Dust-to-Binder Ratio | BR24: 0.6 -1.2
AC25: 2.36mm (No 8) | AI25: 20-30 | AL25: 18-30 | BP25: Revision to AASHTO M323 Bulletin 27 change 3
AC26: 1.18mm (No 16) | AI26: - | AL26: - | BP26: Table 3 - Aggregate Gradation Control Points
AC27: 600μm (No 30) | AI27: - | AL27: - | BP27: Nominal Maximum Aggregate Size - Control Points (Percent Passing)
AC28: 300μm (No 50) | AI28: - | AL28: - | BP28: 37.5 mm | BR28: 25.0 mm | BT28: 19.0 mm | BV28: 12.5 mm | BX28: 9.5 mm | BZ28: 4.75 mm
AC29: 150μm (No 100) | AI29: - | AL29: - | BO29: Sieve Size | BP29: Min. | BQ29: Max. | BR29: Min. | BS29: Max. | BT29: Min. | BU29: Max. | BV29: Min. | BW29: Max. | BX29: Min. | BY29: Max. | BZ29: Min. | CA29: Max.
AC30: .075μm (No 200) | AI30: 8-13 | AL30: 8-11 | BO30: 50mm | BP30: 100
BO31: 37.5mm | BP31: 90 | BQ31: 100 | BR31: 100
AC32: Volumetric Design Requirements | BO32: 25.0mm | BQ32: 89 | BR32: 90 | BS32: 100 | BT32: 100
AC33: Design Gyrations | AH33: 100 | BO33: 19.0mm | BS33: 89 | BT33: 90 | BU33: 100 | BV33: 100
AC34: VMA | AH34: 18.0 % Min. | BO34: 12.5mm | BU34: 89 | BV34: 90 | BW34: 100 | BX34: 100 | BZ34: 100
AC35: Coarse Agg. Structure | AH35: VCAMIX < VCADRC | BO35: 9.5mm | BW35: 89 | BX35: 90 | BY35: 100 | BZ35: 95 | CA35: 100
AC36: Design Air Voids | AH36: 3.5 - 4.0 % | BO36: 4.75mm | BY36: 89 | BZ36: 89 | CA36: 100
AC37: Binder Grade | AH37: PG 76-22 | BO37: 2.36mm | BP37: 15 | BQ37: 41 | BR37: 19 | BS37: 45 | BT37: 23 | BU37: 49 | BV37: 28 | BW37: 58 | BX37: 32 | BY37: 67
AC38: Stabilizer Content | AH38: Celulose: 0.2 to 0.4 by total mix wt. | BO38: 1.18mm | BZ38: 30 | CA38: 60
AH39: Mineral: 0.3 to 0.4 by total mix wt. | BO39: 600µm
AC40: Draindown | AH40: 0.3 maximum | BO40: 300µm
BO41: 150µm
AC42: Minimum Asphalt Requiremnets for SMA Mixtures | BO42: 75µm | BP42: 0 | BQ42: 6 | BR42: 1 | BS42: 7 | BT42: 2 | BU42: 8 | BV42: 2 | BW42: 10 | BX42: 2 | BY42: 10 | BZ42: 6 | CA42: 12
AC43: Combined Aggregate | AH43: Minimin Asphalt Content % by
AC44: Bulk Specific Gravity | AH44: Total Mix Weight | BQ44: AASHTO M323
AC45: 2.4 | AH45: 7.4 | BQ45: Table 4 - PCS Control Point for Mixture Nominal Maximum Aggregate Size
AC46: 2.45 | AH46: 7.2 | BQ46: Nominal Maximum Aggregate Size | BT46: 37.5 mm | BU46: 25.0 mm | BV46: 19.0 mm | BW46: 12.5 mm | BX46: 9.5 mm
AC47: 2.5 | AH47: 7.1 | BQ47: Primary Control Sieve | BT47: 9.5 mm | BU47: 4.75 mm | BV47: 4.75 mm | BW47: 2.36 mm | BX47: 2.36 mm
AC48: 2.55 | AH48: 7
AC49: 2.6 | AH49: 6.8
AC50: 2.65 | AH50: 6.7
AC51: 2.7 | AH51: 6.6
AC52: 2.75 | AH52: 6.5 | BQ52: PCS Control Point (% Passing) | BT52: 47 | BU52: 40 | BV52: 47 | BW52: 39 | BX52: 47
AC53: 2.8 | AH53: 6.4
AC54: 2.85 | AH54: 6.3
AC55: 2.9 | AH55: 6.2
AC56: 2.95 | AH56: 6.1
AC57: 3 | AH57: 6

Sheet Agg Blends
B1: =Setup!A2 -> ESB-19 | AD1: =Setup!E9 -> 0
B3: Aggregate Gradations and Consensus Properties
B4: Producer: | D4: =Setup!E7 -> 0 | F4: Material Class: | H4: =Setup!E10 -> 00:00:00 | J4: Nominal Size: | L4: =Setup!E9 -> 0
B5: Designed By: | D5: =Setup!E8 -> 0 | F5: Esals: | H5: =Setup!E12 -> 0 | J5: SRL: | L5: =Setup!E11 -> 0
B6: Date: | D6: =Setup!E6 -> 00:00:00 | F6: Rap: | H6: =Setup!E17 -> 0 | J6: PG Grade | L6: =Setup!E14 -> 0
K8: % in Blend
C9: Supplier Name | G9: Supplier Code | I9: Material Class | K9: Blend 1 | L9: Blend 2 | M9: Blend 3
B10: Agg 1
B11: Agg 2
B12: Agg 3
B13: Agg 4
B14: Agg 5
B15: Agg 6
B16: Agg 7
J17: Sum | K17: =IF(K10,SUM(K10:K16)," ") ->  | L17: =IF(L10,SUM(L10:L16)," ") ->  | M17: =IF(M10,SUM(M10:M16)," ") -> 
B18: Sieve Size | D18: Aggregate Gradations | K18: Trial Blends | N18: Specs
B19: Metric | C19: Standard | D19: Agg 1 | E19: Agg 2 | F19: Agg 3 | G19: Agg 4 | H19: Agg 5 | I19: Agg 6 | J19: Agg 7 | K19: Blend 1 | L19: Blend 2 | M19: Blend 3 | N19: Min | O19: Max | V19: 4.75 / 9.5mm | AA19: 12.5mm | AE19: 19mm | AI19: 25mm | AM19: 37.5mm
B20: 50.0mm | C20: 2" | N20: ='.45 Power'!E4 ->  | O20: ='.45 Power'!F4 -> 0 | AL20: =(((($D20*$K$10)+($E20*$K$11)+($F20*$K$12)+($G20*$K$13)+($H20*$K$14)+($I20*$K$15)+($J20*$K$16))/100)) -> 0 | AM20: =(((($D20*$L$10)+($E20*$L$11)+($F20*$L$12)+($G20*$L$13)+($H20*$L$14)+($I20*$L$15)+($J20*$L$16))/100)) -> 0 | AN20: =(((($D20*$M$10)+($E20*$M$11)+($F20*$M$12)+($G20*$M$13)+($H20*$M$14)+($I20*$M$15)+($J20*$M$16))/100)) -> 0
B21: 37.5mm | C21: 1 1/2" | N21: ='.45 Power'!E5 -> FALSE | O21: ='.45 Power'!F5 -> FALSE | AH21: =(((($D21*$K$10)+($E21*$K$11)+($F21*$K$12)+($G21*$K$13)+($H21*$K$14)+($I21*$K$15)+($J21*$K$16))/100)) -> 0 | AI21: =(((($D21*$L$10)+($E21*$L$11)+($F21*$L$12)+($G21*$L$13)+($H21*$L$14)+($I21*$L$15)+($J21*$L$16))/100)) -> 0 | AJ21: =(((($D21*$M$10)+($E21*$M$11)+($F21*$M$12)+($G21*$M$13)+($H21*$M$14)+($I21*$M$15)+($J21*$M$16))/100)) -> 0 | AL21: =(((($D21*$K$10)+($E21*$K$11)+($F21*$K$12)+($G21*$K$13)+($H21*$K$14)+($I21*$K$15)+($J21*$K$16))/100)) -> 0 | AM21: =(((($D21*$L$10)+($E21*$L$11)+($F21*$L$12)+($G21*$L$13)+($H21*$L$14)+($I21*$L$15)+($J21*$L$16))/100)) -> 0 | AN21: =(((($D21*$M$10)+($E21*$M$11)+($F21*$M$12)+($G21*$M$13)+($H21*$M$14)+($I21*$M$15)+($J21*$M$16))/100)) -> 0
B22: 25.0mm | C22: 1" | N22: ='.45 Power'!E6 -> FALSE | O22: ='.45 Power'!F6 -> FALSE | AD22: =(((($D22*$K$10)+($E22*$K$11)+($F22*$K$12)+($G22*$K$13)+($H22*$K$14)+($I22*$K$15)+($J22*$K$16))/100)) -> 0 | AE22: =(((($D22*$L$10)+($E22*$L$11)+($F22*$L$12)+($G22*$L$13)+($H22*$L$14)+($I22*$L$15)+($J22*$L$16))/100)) -> 0 | AF22: =(((($D22*$M$10)+($E22*$M$11)+($F22*$M$12)+($G22*$M$13)+($H22*$M$14)+($I22*$M$15)+($J22*$M$16))/100)) -> 0 | AH22: =(((($D22*$K$10)+($E22*$K$11)+($F22*$K$12)+($G22*$K$13)+($H22*$K$14)+($I22*$K$15)+($J22*$K$16))/100)) -> 0 | AI22: =(((($D22*$L$10)+($E22*$L$11)+($F22*$L$12)+($G22*$L$13)+($H22*$L$14)+($I22*$L$15)+($J22*$L$16))/100)) -> 0 | AJ22: =(((($D22*$M$10)+($E22*$M$11)+($F22*$M$12)+($G22*$M$13)+($H22*$M$14)+($I22*$M$15)+($J22*$M$16))/100)) -> 0 | AL22: =(((($D22*$K$10)+($E22*$K$11)+($F22*$K$12)+($G22*$K$13)+($H22*$K$14)+($I22*$K$15)+($J22*$K$16))/100)) -> 0 | AM22: =(((($D22*$L$10)+($E22*$L$11)+($F22*$L$12)+($G22*$L$13)+($H22*$L$14)+($I22*$L$15)+($J22*$L$16))/100)) -> 0 | AN22: =(((($D22*$M$10)+($E22*$M$11)+($F22*$M$12)+($G22*$M$13)+($H22*$M$14)+($I22*$M$15)+($J22*$M$16))/100)) -> 0
B23: 19.0mm | C23: 3/4" | N23: ='.45 Power'!E7 -> FALSE | O23: ='.45 Power'!F7 -> FALSE | Z23: =(($D23*$K$10)+($E23*$K$11)+($F23*$K$12)+($G23*$K$13)+($H23*$K$14)+($I23*$K$15)+($J23*$K$16))/100 -> 0 | AA23: =(($D23*$L$10)+($E23*$L$11)+($F23*$L$12)+($G23*$L$13)+($H23*$L$14)+($I23*$L$15)+($J23*$L$16))/100 -> 0 | AB23: =(($D23*$M$10)+($E23*$M$11)+($F23*$M$12)+($G23*$M$13)+($H23*$M$14)+($I23*$M$15)+($J23*$M$16))/100 -> 0 | AD23: =(((($D23*$K$10)+($E23*$K$11)+($F23*$K$12)+($G23*$K$13)+($H23*$K$14)+($I23*$K$15)+($J23*$K$16))/100)) -> 0 | AE23: =(((($D23*$L$10)+($E23*$L$11)+($F23*$L$12)+($G23*$L$13)+($H23*$L$14)+($I23*$L$15)+($J23*$L$16))/100)) -> 0 | AF23: =(((($D23*$M$10)+($E23*$M$11)+($F23*$M$12)+($G23*$M$13)+($H23*$M$14)+($I23*$M$15)+($J23*$M$16))/100)) -> 0 | AH23: =(((($D23*$K$10)+($E23*$K$11)+($F23*$K$12)+($G23*$K$13)+($H23*$K$14)+($I23*$K$15)+($J23*$K$16))/100)) -> 0 | AI23: =(((($D23*$L$10)+($E23*$L$11)+($F23*$L$12)+($G23*$L$13)+($H23*$L$14)+($I23*$L$15)+($J23*$L$16))/100)) -> 0 | AJ23: =(((($D23*$M$10)+($E23*$M$11)+($F23*$M$12)+($G23*$M$13)+($H23*$M$14)+($I23*$M$15)+($J23*$M$16))/100)) -> 0 | AL23: =(((($D23*$K$10)+($E23*$K$11)+($F23*$K$12)+($G23*$K$13)+($H23*$K$14)+($I23*$K$15)+($J23*$K$16))/100)) -> 0 | AM23: =(((($D23*$L$10)+($E23*$L$11)+($F23*$L$12)+($G23*$L$13)+($H23*$L$14)+($I23*$L$15)+($J23*$L$16))/100)) -> 0 | AN23: =(((($D23*$M$10)+($E23*$M$11)+($F23*$M$12)+($G23*$M$13)+($H23*$M$14)+($I23*$M$15)+($J23*$M$16))/100)) -> 0
B24: 12.5mm | C24: 1/2" | N24: ='.45 Power'!E8 -> FALSE | O24: ='.45 Power'!F8 -> FALSE
B25: 9.5mm | C25: 3/8" | K25: =IF(ISTEXT(K11)," ",(((($D25*$K$10)+($E25*$K$11)+($F25*$K$12)+($G25*$K$13)+($H25*$K$14)+($I25*$K$15)+($J25*$K$16))/100)+($K$34))/(100+$K$34)%) -> 0 | L25: =IF(ISTEXT(L11)," ",(((($D25*$L$10)+($E25*$L$11)+($F25*$L$12)+($G25*$L$13)+($H25*$L$14)+($I25*$L$15)+($J25*$L$16))/100)+($L$34))/(100+$L$34)%) -> 0 | M25: =IF(ISTEXT(M11)," ",(((($D25*$M$10)+($E25*$M$11)+($F25*$M$12)+($G25*$M$13)+($H25*$M$14)+($I25*$M$15)+($J25*$M$16))/100)+($M$34))/(100+$M$34)%) -> 0 | N25: ='.45 Power'!E9 -> FALSE | O25: ='.45 Power'!F9 -> FALSE
B26: 6.33mm | C26: 1/4" | K26: =IF(ISTEXT(K12)," ",(((($D26*$K$10)+($E26*$K$11)+($F26*$K$12)+($G26*$K$13)+($H26*$K$14)+($I26*$K$15)+($J26*$K$16))/100)+($K$34))/(100+$K$34)%) -> 0 | L26: =IF(ISTEXT(L12)," ",(((($D26*$L$10)+($E26*$L$11)+($F26*$L$12)+($G26*$L$13)+($H26*$L$14)+($I26*$L$15)+($J26*$L$16))/100)+($L$34))/(100+$L$34)%) -> 0 | M26: =IF(ISTEXT(M12)," ",(((($D26*$M$10)+($E26*$M$11)+($F26*$M$12)+($G26*$M$13)+($H26*$M$14)+($I26*$M$15)+($J26*$M$16))/100)+($M$34))/(100+$M$34)%) -> 0 | N26: ='.45 Power'!E10 -> FALSE | O26: ='.45 Power'!F10 -> FALSE
B27: 4.75mm | C27: #4 | K27: =IF(ISTEXT(K12)," ",(((($D27*$K$10)+($E27*$K$11)+($F27*$K$12)+($G27*$K$13)+($H27*$K$14)+($I27*$K$15)+($J27*$K$16))/100)+($K$34))/(100+$K$34)%) -> 0 | L27: =IF(ISTEXT(L12)," ",(((($D27*$L$10)+($E27*$L$11)+($F27*$L$12)+($G27*$L$13)+($H27*$L$14)+($I27*$L$15)+($J27*$L$16))/100)+($L$34))/(100+$L$34)%) -> 0 | M27: =IF(ISTEXT(M12)," ",(((($D27*$M$10)+($E27*$M$11)+($F27*$M$12)+($G27*$M$13)+($H27*$M$14)+($I27*$M$15)+($J27*$M$16))/100)+($M$34))/(100+$M$34)%) -> 0 | N27: ='.45 Power'!E11 -> FALSE | O27: ='.45 Power'!F11 -> FALSE
B28: 2.36mm | C28: #8 | K28: 0 | L28: 0 | M28: 0 | N28: ='.45 Power'!E12 -> FALSE | O28: ='.45 Power'!F12 -> FALSE
B29: 1.18mm | C29: #16 | K29: 0 | L29: 0 | M29: 0 | N29: ='.45 Power'!E13 -> FALSE | O29: ='.45 Power'!F13 -> FALSE
B30: 600µm | C30: #30 | K30: 0 | L30: 0 | M30: 0 | N30: ='.45 Power'!E14 -> FALSE | O30: ='.45 Power'!F14 -> FALSE | U30: Gsb Blend 1 | X30: Gsb Blend 2 | AA30: Gsb Blend 3
B31: 300µm | C31: #50 | K31: 0 | L31: 0 | M31: 0 | N31: ='.45 Power'!E15 -> FALSE | O31: ='.45 Power'!F15 -> FALSE | U31: =K10 -> 0 | V31: =D35 -> 0 | W31: =IF(U31=0,0,U31/V31) -> 0 | X31: =L10 -> 0 | Y31: =D35 -> 0 | Z31: =IF(X31=0,0,X31/Y31) -> 0 | AA31: =M10 -> 0 | AB31: =D35 -> 0 | AC31: =IF(AA31=0,0,AA31/AB31) -> 0
B32: 150µm | C32: #100 | N32: ='.45 Power'!E16 -> FALSE | O32: ='.45 Power'!F16 -> FALSE | U32: 0 | V32: =E35 -> 0 | W32: 0 | X32: 0 | Y32: =E35 -> 0 | Z32: =IF(X32=0,0,X32/Y32) -> 0 | AA32: 0 | AB32: =E35 -> 0 | AC32: 0
B33: 75µm | C33: #200 | K33: =IF(D33,(((($D33*$K$10)+($E33*$K$11)+($F33*$K$12)+($G33*$K$13)+($H33*$K$14)+($I33*$K$15)+($J33*$K$16))/100)))+K34 -> 0 | L33: =IF(D33,(((($D33*$L$10)+($E33*$L$11)+($F33*$L$12)+($G33*$L$13)+($H33*$L$14)+($I33*$L$15)+($J33*$L$16))/100)))+L34 -> 0 | M33: =IF(D33,(((($D33*$M$10)+($E33*$M$11)+($F33*$M$12)+($G33*$M$13)+($H33*$M$14)+($I33*$M$15)+($J33*$M$16))/100)))+M34 -> 0 | N33: ='.45 Power'!E17 -> FALSE | O33: ='.45 Power'!F17 -> FALSE | U33: 0 | V33: =F35 -> 0 | W33: 0 | X33: 0 | Y33: =F35 -> 0 | Z33: 0 | AA33: 0 | AB33: =F35 -> 0 | AC33: 0
B34: If needed, enter the % fines that will be removed through ther bag house ( - ) | U34: 0 | V34: =G35 -> 0 | W34: 0 | X34: 0 | Y34: =G35 -> 0 | Z34: 0 | AA34: 0 | AB34: =G35 -> 0 | AC34: 0
B35: Bulk SpGr (Gsb) | K35: =IF(ISTEXT($K$17),"",W39) ->  | L35: =IF(ISTEXT($K$17),"",Z39) ->  | M35: =IF(ISTEXT($M$17),"",AC39) ->  | U35: 0 | V35: =H35 -> 0 | W35: 0 | X35: 0 | Y35: =H35 -> 0 | Z35: 0 | AA35: 0 | AB35: =H35 -> 0 | AC35: 0 | AP35: =L4 -> 0 | AZ35: 1 Face | BA35: 2 Faces | BB35: 1 Face | BC35: 2 Faces | BD35: UCV | BF35: SE | BG35: F&L
B36: Absorption | K36: =IF(ISTEXT(K17),"",(($D$36*K$10)+($E$36*K$11)+($F$36*K$12)+($G$36*K$13)+($H$36*K$14)+($I$36*K$15)+($J$36*K$16))/100) ->  | L36: =IF(ISTEXT(L17),"",(($D$36*L$10)+($E$36*L$11)+($F$36*L$12)+($G$36*L$13)+($H$36*L$14)+($I$36*L$15)+($J$36*L$16))/100) ->  | M36: =IF(ISTEXT(M17),"",(($D$36*M$10)+($E$36*M$11)+($F$36*M$12)+($G$36*M$13)+($H$36*M$14)+($I$36*M$15)+($J$36*M$16))/100) ->  | U36: 0 | V36: =I35 -> 0 | W36: 0 | X36: 0 | Y36: =I35 -> 0 | Z36: 0 | AA36: 0 | AB36: =I35 -> 0 | AC36: 0 | AP36: =H5 -> 0 | AZ36: <100 | BA36: <100 | BB36: >100 | BC36: >100 | BD36: <100 | BE36: >100
B37: App. SpGr (Gsa) | D37: =IF(D36,1/(1/D35-D36/100),"") ->  | E37: =IF(E36,1/(1/E35-E36/100),"") ->  | K37: =IF(ISTEXT($K$17),"",W50) ->  | L37: =IF(ISTEXT($K$17),"",Z50) ->  | M37: =IF(ISTEXT($M$17),"",AC50) ->  | N37: Min | O37: Max | U37: 0 | V37: =J35 -> 0 | W37: 0 | X37: 0 | Y37: =J35 -> 0 | Z37: 0 | AA37: 0 | AB37: =J35 -> 0 | AC37: 0 | AP37: =INDEX($BF$37:$BF$42,MATCH(1,(AP35=$AX$37:$AX$42)*(AP36=$AY$37:$AY$42),0)) ->  | AQ37: =INDEX($BG$37:$BG$42,MATCH(1,(AP35=$AX$37:$AX$42)*(AP36=$AY$37:$AY$42),0)) ->  | AR37: =INDEX($BD$37:$BD$42,MATCH(1,(AP35=$AX$37:$AX$42)*(AP36=$AY$37:$AY$42),0)) ->  | AS37: =INDEX($BE$37:$BE$42,MATCH(1,(AP35=$AX$37:$AX$42)*(AP36=$AY$37:$AY$42),0)) ->  | AT37: =INDEX($AZ$37:$AZ$42,MATCH(1,(AP35=$AX$37:$AX$42)*(AP36=$AY$37:$AY$42),0)) ->  | AU37: =INDEX($BA$37:$BA$42,MATCH(1,(AP35=$AX$37:$AX$42)*(AP36=$AY$37:$AY$42),0)) ->  | AV37: =INDEX($BB$37:$BB$42,MATCH(1,(AP35=$AX$37:$AX$42)*(AP36=$AY$37:$AY$42),0)) ->  | AW37: =INDEX($BC$37:$BC$42,MATCH(1,(AP35=$AX$37:$AX$42)*(AP36=$AY$37:$AY$42),0)) ->  | AX37: =$AP$35 -> 0 | AY37: <.3 | AZ37: 55 | BA37: - | BB37: - | BC37: - | BD37: - | BE37: - | BF37: Min 40 | BG37: -
B38: Sand Equivalency | K38: =IF(ISTEXT(K17),"",IF(K17>0,(($D38*K$10)+($E38*K$11)+($F38*K$12)+($G38*K$13)+($H38*K$14)+($I38*K$15)+($J38*K$16))/Q38,"")) ->  | L38: =IF(ISTEXT(L17),"",IF(L17>0,(($D38*L$10)+($E38*L$11)+($F38*L$12)+($G38*L$13)+($H38*L$14)+($I38*L$15)+($J38*L$16))/R38,"")) ->  | M38: =IF(ISTEXT(M17),"",IF(M17>0,(($D38*M$10)+($E38*M$11)+($F38*M$12)+($G38*M$13)+($H38*M$14)+($I38*M$15)+($J38*M$16))/S38,"")) ->  | N38: =AP37 ->  | Q38: =IF($D38,K$10)+IF($E38,K$11)+IF($F38,K$12)+IF($G38,K$13)+IF($H38,K$14)+IF($I38,K$15)+IF($J38,K$16) -> 0 | R38: 0 | S38: 0 | U38: =SUM(U31:U37) -> 0 | W38: =SUM(W31:W37) -> 0 | X38: =SUM(X31:X37) -> 0 | Z38: =SUM(Z31:Z37) -> 0 | AA38: =SUM(AA31:AA37) -> 0 | AC38: =SUM(AC31:AC37) -> 0 | AP38: UCV | AQ38: F&L | AR38: SE <100 | AS38: SE >100 | AT38: 1F <100 | AU38: 2F <100 | AV38: 1F >100 | AW38: 2F >100 | AX38: =$AP$35 -> 0 | AY38: .3 to <3 | AZ38: 85 | BA38: - | BB38: 50 | BC38: - | BD38: Min 40 | BE38: Min 40 | BF38: Min 40 | BG38: 10
B39: Flat & Elongated 3:1 | K39: =IF(ISTEXT(K17),"",IF(K17>0,(($D39*K$10)+($E39*K$11)+($F39*K$12)+($G39*K$13)+($H39*K$14)+($I39*K$15)+($J39*K$16))/Q39,"")) ->  | L39: =IF(ISTEXT(L17),"",IF(L17>0,(($D39*L$10)+($E39*L$11)+($F39*L$12)+($G39*L$13)+($H39*L$14)+($I39*L$15)+($J39*L$16))/R39,"")) ->  | M39: =IF(ISTEXT(M17),"",IF(M17>0,(($D39*M$10)+($E39*M$11)+($F39*M$12)+($G39*M$13)+($H39*M$14)+($I39*M$15)+($J39*M$16))/S39,"")) ->  | O39: =IF(OR(H4="SMA95",H4="SMA125"),20," ") ->  | Q39: 0 | R39: 0 | S39: 0 | W39: =U38/W38 ->  | Z39: =X38/Z38 ->  | AC39: =AA38/AC38 ->  | AX39: 0 | AY39: 3 to <10 | AZ39: 95 | BA39: 80 | BB39: 60 | BC39: - | BD39: Min 45 | BE39: Min 40 | BF39: Min 45 | BG39: 10
B40: Flat & Elongated 5:1 | K40: =IF(ISTEXT(K17),"",IF(K17>0,(($D40*K$10)+($E40*K$11)+($F40*K$12)+($G40*K$13)+($H40*K$14)+($I40*K$15)+($J40*K$16))/Q40,"")) ->  | L40: =IF(ISTEXT(L17),"",IF(L17>0,(($D40*L$10)+($E40*L$11)+($F40*L$12)+($G40*L$13)+($H40*L$14)+($I40*L$15)+($J40*L$16))/R40,"")) ->  | M40: =IF(ISTEXT(M17),"",IF(M17>0,(($D40*M$10)+($E40*M$11)+($F40*M$12)+($G40*M$13)+($H40*M$14)+($I40*M$15)+($J40*M$16))/S40,"")) ->  | O40: =IF(OR(H4="SMA95",H4="SMA125"),5,AQ37) ->  | Q40: 0 | R40: 0 | S40: 0 | U40: Gsa Blend 1 | X40: Gsa Blend 2 | AA40: Gsa Blend 3 | AX40: 0 | AY40: 10 to <30 | AZ40: 95 | BA40: 90 | BB40: 80 | BC40: 75 | BD40: Min 45 | BE40: Min 40 | BF40: Min 45 | BG40: 10
B41: Depth from Surface | N41: <100mm | O41: >100mm | AX41: 0 | AY41: 3 to <30 | AZ41: 95 | BA41: 90 | BB41: 80 | BC41: 75 | BD41: Min 45 | BE41: Min 40 | BF41: Min 45 | BG41: 10
B42: Uncompacted Voids | K42: =IF(ISTEXT(K17),"",IF(K17>0,(($D42*K$10)+($E42*K$11)+($F42*K$12)+($G42*K$13)+($H42*K$14)+($I42*K$15)+($J42*K$16))/Q42,"")) ->  | L42: =IF(ISTEXT(L17),"",IF(L17>0,(($D42*L$10)+($E42*L$11)+($F42*L$12)+($G42*L$13)+($H42*L$14)+($I42*L$15)+($J42*L$16))/R42,"")) ->  | M42: =IF(ISTEXT(M17),"",IF(M17>0,(($D42*M$10)+($E42*M$11)+($F42*M$12)+($G42*M$13)+($H42*M$14)+($I42*M$15)+($J42*M$16))/S42,"")) ->  | N42: =AR37 ->  | O42: =AS37 ->  | Q42: 0 | R42: 0 | S42: 0 | U42: =K10 -> 0 | V42: =D37 ->  | W42: =IF(U42=0,0,U42/V42) -> 0 | X42: =L10 -> 0 | Y42: =D37 ->  | Z42: =IF(X42=0,0,X42/Y42) -> 0 | AA42: =M10 -> 0 | AB42: =D37 ->  | AC42: =IF(AA42=0,0,AA42/AB42) -> 0 | AX42: 0 | AY42: >30 | AZ42: 95 | BA42: 90 | BB42: 95 | BC42: 90 | BD42: Min 45 | BE42: Min 45 | BF42: Min 50 | BG42: 10
B43: CA Angularity (1) | K43: =IF(ISTEXT(K17),"",IF(K17>0,(($D43*K$10)+($E43*K$11)+($F43*K$12)+($G43*K$13)+($H43*K$14)+($I43*K$15)+($J43*K$16))/Q43,"")) ->  | L43: =IF(ISTEXT(L17),"",IF(L17>0,(($D43*L$10)+($E43*L$11)+($F43*L$12)+($G43*L$13)+($H43*L$14)+($I43*L$15)+($J43*L$16))/R43,"")) ->  | M43: =IF(ISTEXT(M17),"",IF(M17>0,(($D43*M$10)+($E43*M$11)+($F43*M$12)+($G43*M$13)+($H43*M$14)+($I43*M$15)+($J43*M$16))/S43,"")) ->  | N43: =AT37 ->  | O43: =AV37 ->  | Q43: 0 | R43: 0 | S43: 0 | U43: 0 | V43: =E37 ->  | W43: 0 | X43: 0 | Y43: =E37 ->  | Z43: 0 | AA43: 0 | AB43: =E37 ->  | AC43: 0
B44: CA Angularity (2) | K44: =IF(ISTEXT(K17),"",IF(K17>0,(($D44*K$10)+($E44*K$11)+($F44*K$12)+($G44*K$13)+($H44*K$14)+($I44*K$15)+($J44*K$16))/Q44,"")) ->  | L44: =IF(ISTEXT(L17),"",IF(L17>0,(($D44*L$10)+($E44*L$11)+($F44*L$12)+($G44*L$13)+($H44*L$14)+($I44*L$15)+($J44*L$16))/R44,"")) ->  | M44: =IF(ISTEXT(M17),"",IF(M17>0,(($D44*M$10)+($E44*M$11)+($F44*M$12)+($G44*M$13)+($H44*M$14)+($I44*M$15)+($J44*M$16))/S44,"")) ->  | N44: =AU37 ->  | O44: =AW37 ->  | Q44: 0 | R44: 0 | S44: 0 | U44: 0 | V44: =F37 ->  | W44: 0 | X44: 0 | Y44: =F37 ->  | Z44: 0 | AA44: 0 | AB44: =F37 ->  | AC44: 0
U45: 0 | V45: =G37 ->  | W45: 0 | X45: 0 | Y45: =G37 ->  | Z45: 0 | AA45: 0 | AB45: =G37 ->  | AC45: 0
B46: Asphalt in the trial blends will be | U46: 0 | V46: =H37 ->  | W46: 0 | X46: 0 | Y46: =H37 ->  | Z46: 0 | AA46: 0 | AB46: =H37 ->  | AC46: 0
U47: 0 | V47: =I37 ->  | W47: 0 | X47: 0 | Y47: =I37 ->  | Z47: 0 | AA47: 0 | AB47: =I37 ->  | AC47: 0
U48: 0 | V48: =J37 ->  | W48: 0 | X48: 0 | Y48: =J37 ->  | Z48: 0 | AA48: 0 | AB48: =J37 ->  | AC48: 0
U49: =SUM(U42:U48) -> 0 | W49: =SUM(W42:W48) -> 0 | X49: =SUM(X42:X48) -> 0 | Z49: =SUM(Z42:Z48) -> 0 | AA49: =SUM(AA42:AA48) -> 0 | AC49: =SUM(AC42:AC48) -> 0
W50: =U49/W49 ->  | Z50: =X49/Z49 ->  | AC50: =AA49/AC49 -> 
X57: 0
X58: 0
X59: 0
X60: 0
X61: 0
X62: 0
X63: 0
X64: 0
X65: 0
W66: 0 | X66: 0 | Y66: 0

Sheet .45 Power
A1: =Setup!A2 -> ESB-19 | AB1: =Setup!E10 -> 0
E2: Control Points | G2: PCS | K2: =Setup!E9 -> 0
A3: Size | D3: .45 Power | E3: Minimum | F3: Maximum | G3: Boundary | H3: Boundary | I3: Maximum Density Line | M3: 5.815 | N3: =IF($K$2=37.5,100,#N/A) ->  | Q3: 4.75mm | W3: 9.5 mm | AC3: 12.5 mm | AI3: 19.0 mm | AO3: 25.0 mm | AU3: 37.5 mm | BA3: 6.33mm
A4: 50mm | B4: 2" | C4: 50 | D4: =POWER(C4,0.45) -> 5.814823032 | E4: =IF($K$2=37.5,AU4," ") ->  | I4: =IF($K$2=37.5,AY4,IF($K$2=25,AS4,IF($K$2=19,AM4,IF($K$2=12.5,AG4,IF($K$2=9.5,AA4,IF($K$2=4.75,U4,IF($K$2=6.33,BE4))))))) -> FALSE | M4: 5.109 | N4: =IF($K$2=25,100,#N/A) ->  | P4: 2" | V4: 2" | AB4: 2" | AH4: 2" | AN4: 2" | AT4: 2" | AU4: 100 | AY4: 100 | AZ4: 2"
A5: 37.5mm | B5: 1 1/2" | C5: 37.5 | D5: =POWER(C5,0.45) -> 5.108743174 | E5: =IF($K$2=37.5,AU5,IF($K$2=25,AO5,IF($K$2=19,AI5,IF($K$2=12.5,AC5,IF($K$2=9.5,W5,IF($K$2=4.75,Q5,IF($K$2=6.33,BA5))))))) -> FALSE | F5: =IF($K$2=37.5,AV5,IF($K$2=25,AP5,IF($K$2=19,AJ5,IF($K$2=12.5,AD5,IF($K$2=9.5,X5,IF($K$2=4.75,R5,IF($K$2=6.33,BB5))))))) -> FALSE | I5: =IF($K$2=37.5,AY5,IF($K$2=25,AS5,IF($K$2=19,AM5,IF($K$2=12.5,AG5,IF($K$2=9.5,AA5,IF($K$2=4.75,U5,IF($K$2=6.33,BE5))))))) -> FALSE | M5: 4.257 | N5: =IF($K$2=19,100,#N/A) ->  | P5: 1 1/2" | V5: 1 1/2" | AB5: 1 1/2" | AH5: 1 1/2" | AN5: 1 1/2" | AO5: 100 | AS5: 100 | AT5: 1 1/2" | AU5: 90 | AV5: 100 | AZ5: 1 1/2"
A6: 25.0mm | B6: 1" | C6: 25 | D6: =POWER(C6,0.45) -> 4.256699613 | E6: =IF($K$2=37.5,AU6,IF($K$2=25,AO6,IF($K$2=19,AI6,IF($K$2=12.5,AC6,IF($K$2=9.5,W6,IF($K$2=4.75,Q6,IF($K$2=6.33,BA6))))))) -> FALSE | F6: =IF($K$2=37.5,AV6,IF($K$2=25,AP6,IF($K$2=19,AJ6,IF($K$2=12.5,AD6,IF($K$2=9.5,X6,IF($K$2=4.75,R6,IF($K$2=6.33,BB6))))))) -> FALSE | I6: FALSE | M6: 3.762 | N6: =IF($K$2=12.5,100,#N/A) ->  | P6: 1" | V6: 1" | AB6: 1" | AH6: 1" | AI6: 100 | AM6: 100 | AN6: 1" | AO6: 90 | AP6: 100 | AT6: 1" | AV6: 89 | AZ6: 1"
A7: 19.0mm | B7: 3/4" | C7: 19 | D7: 3.762176102 | E7: =IF($K$2=37.5,AU7,IF($K$2=25,AO7,IF($K$2=19,AI7,IF($K$2=12.5,AC7,IF($K$2=9.5,W7,IF($K$2=4.75,Q7,IF($K$2=6.33,BA7))))))) -> FALSE | F7: FALSE | I7: FALSE | M7: 3.116 | N7: =IF($K$2=9.5,100,IF($K$2=4.75,100,#N/A)) ->  | P7: 3/4" | V7: 3/4" | AB7: 3/4" | AC7: 100 | AG7: 100 | AH7: 3/4" | AI7: 90 | AJ7: 100 | AN7: 3/4" | AP7: 89 | AT7: 3/4" | AZ7: 3/4"
A8: 12.5mm | B8: 1/2" | C8: 12.5 | D8: 3.116086507 | E8: FALSE | F8: FALSE | I8: FALSE | M8: 2.754 | N8: =IF($K$2=6.33,100,#N/A) ->  | P8: 1/2" | Q8: 100 | U8: 100 | V8: 1/2" | W8: 100 | AA8: 100 | AB8: 1/2" | AC8: 90 | AD8: =IF($AB$1="SMA125",99,100) -> 100 | AH8: 1/2" | AJ8: 89 | AN8: 1/2" | AT8: 1/2" | AZ8: 1/2"
A9: 9.5mm | B9: 3/8" | C9: 9.5 | D9: 2.754074109 | E9: FALSE | F9: FALSE | G9: 47 | I9: FALSE | M9: 2.016 | P9: 3/8" | Q9: 95 | R9: 100 | V9: 3/8" | W9: =IF($AB$1="SMA95",75,90) -> 90 | X9: =IF($AB$1="SMA95",95,100) -> 100 | AB9: 3/8" | AC9: =IF($AB$1="SMA125",70," ") ->  | AD9: =IF($AB$1="SMA125",85,89) -> 89 | AH9: 3/8" | AN9: 3/8" | AT9: 3/8" | AW9: 47 | AZ9: 3/8" | BA9: 100 | BE9: 100
A10: 6.33mm | B10: 1/4 | C10: 6.33 | D10: =POWER(C10,0.45) -> 2.294202082 | E10: FALSE | F10: FALSE | I10: FALSE | M10: 2.294 | P10: 1/4 | V10: 1/4 | AB10: 1/4 | AH10: 1/4 | AN10: 1/4 | AT10: 1/4 | AZ10: 1/4 | BA10: 90 | BB10: 100
A11: 4.75mm | B11: #4 | C11: 4.75 | D11: 2.016100254 | E11: FALSE | F11: FALSE | I11: FALSE | M11: 1.472 | P11: #4 | Q11: 89 | R11: 100 | V11: #4 | W11: =IF($AB$1="SMA95",30," ") ->  | X11: =IF($AB$1="SMA95",50," ") ->  | AB11: #4 | AC11: =IF($AB$1="SMA125",28," ") ->  | AD11: =IF($AB$1="SMA125",40," ") ->  | AH11: #4 | AK11: 47 | AN11: #4 | AQ11: 40 | AT11: #4 | AZ11: #4 | BA11: 0 | BB11: 85
A12: 2.36mm | B12: #8 | C12: 2.36 | D12: 1.47166988 | E12: FALSE | F12: FALSE | I12: FALSE | M12: 1.077 | P12: #8 | V12: #8 | W12: =IF($AB$1="SMA95",20,32) -> 32 | X12: =IF($AB$1="SMA95",30,67) -> 67 | Y12: 47 | AB12: #8 | AC12: =IF($AB$1="SMA125",18,28) -> 28 | AD12: =IF($AB$1="SMA125",30,58) -> 58 | AE12: 39 | AH12: #8 | AI12: 23 | AJ12: 49 | AN12: #8 | AO12: 19 | AP12: 45 | AT12: #8 | AU12: 15 | AV12: 41 | AZ12: #8 | BA12: 37 | BB12: 55
A13: 1.18mm | B13: #16 | C13: 1.18 | D13: 1.07732541 | E13: FALSE | F13: FALSE | I13: FALSE | M13: 0.795 | P13: #16 | Q13: 30 | R13: 60 | V13: #16 | AB13: #16 | AH13: #16 | AN13: #16 | AT13: #16 | AZ13: #16
A14: 600µm | B14: #30 | C14: 0.6 | D14: 0.7946356822 | E14: FALSE | F14: FALSE | I14: FALSE | M14: 0.582 | P14: #30 | V14: #30 | AB14: #30 | AH14: #30 | AN14: #30 | AT14: #30 | AZ14: #30
A15: 300µm | B15: #50 | C15: 0.3 | D15: 0.5817073679 | E15: FALSE | F15: FALSE | I15: FALSE | M15: 0.426 | P15: #50 | V15: #50 | AB15: #50 | AH15: #50 | AN15: #50 | AT15: #50 | AZ15: #50 | BA15: 8 | BB15: 25
A16: 150µm | B16: #100 | C16: 0.15 | D16: 0.4258347183 | E16: FALSE | F16: FALSE | I16: FALSE | M16: 0.312 | P16: #100 | V16: #100 | AB16: #100 | AH16: #100 | AN16: #100 | AT16: #100 | AZ16: #100
A17: 75µm | B17: #200 | C17: 0.075 | D17: =POWER(C17,0.45) -> 0.31172926 | E17: FALSE | F17: FALSE | I17: FALSE | M17: 0 | N17: 0 | P17: #200 | Q17: 6 | R17: 12 | V17: #200 | W17: =IF($AB$1="SMA95",8,2) -> 2 | X17: =IF($AB$1="SMA95",11,10) -> 10 | AB17: #200 | AC17: =IF($AB$1="SMA125",8,2) -> 2 | AD17: =IF($AB$1="SMA125",11,10) -> 10 | AH17: #200 | AI17: 2 | AJ17: 8 | AN17: #200 | AO17: 1 | AP17: 7 | AT17: #200 | AU17: 0 | AV17: 6 | AZ17: #200 | BA17: 3 | BB17: 10
A18: Pan | C18: 0 | D18: 0 | I18: FALSE | U18: 0 | AA18: 0 | AG18: 0 | AM18: 0 | AS18: 0 | AY18: 0
X22: Blend 1 | Y22: Blend 2 | Z22: Blend 3
W23: 1.5 | X23: =IF(ISBLANK('Agg Blends'!K21),#N/A,'Agg Blends'!K21) ->  | Y23: =IF(ISBLANK('Agg Blends'!L21),#N/A,'Agg Blends'!L21) ->  | Z23: =IF(ISBLANK('Agg Blends'!M21),#N/A,'Agg Blends'!M21) -> 
W24: 1 | X24: =IF(ISBLANK('Agg Blends'!K22),#N/A,'Agg Blends'!K22) ->  | Y24: =IF(ISBLANK('Agg Blends'!L22),#N/A,'Agg Blends'!L22) ->  | Z24: =IF(ISBLANK('Agg Blends'!M22),#N/A,'Agg Blends'!M22) -> 
W25: 0.75 | X25: =IF(ISBLANK('Agg Blends'!K23),#N/A,'Agg Blends'!K23) ->  | Y25: =IF(ISBLANK('Agg Blends'!L23),#N/A,'Agg Blends'!L23) ->  | Z25: =IF(ISBLANK('Agg Blends'!M23),#N/A,'Agg Blends'!M23) -> 
W26: 0.5 | X26: =IF(ISBLANK('Agg Blends'!K24),#N/A,'Agg Blends'!K24) ->  | Y26: =IF(ISBLANK('Agg Blends'!L24),#N/A,'Agg Blends'!L24) ->  | Z26: =IF(ISBLANK('Agg Blends'!M24),#N/A,'Agg Blends'!M24) -> 
W27: 0.375 | X27: ='Agg Blends'!K25 -> 0 | Y27: ='Agg Blends'!L25 -> 0 | Z27: ='Agg Blends'!M25 -> 0
W28: 0.25 | X28: ='Agg Blends'!K26 -> 0 | Y28: ='Agg Blends'!L26 -> 0 | Z28: ='Agg Blends'!M26 -> 0
W29: 4 | X29: ='Agg Blends'!K27 -> 0 | Y29: ='Agg Blends'!L27 -> 0 | Z29: ='Agg Blends'!M27 -> 0
W30: 8 | X30: ='Agg Blends'!K28 -> 0 | Y30: ='Agg Blends'!L28 -> 0 | Z30: ='Agg Blends'!M28 -> 0
W31: 16 | X31: ='Agg Blends'!K29 -> 0 | Y31: ='Agg Blends'!L29 -> 0 | Z31: ='Agg Blends'!M29 -> 0
W32: 30 | X32: ='Agg Blends'!K30 -> 0 | Y32: ='Agg Blends'!L30 -> 0 | Z32: ='Agg Blends'!M30 -> 0
W33: 50 | X33: ='Agg Blends'!K31 -> 0 | Y33: ='Agg Blends'!L31 -> 0 | Z33: ='Agg Blends'!M31 -> 0
W34: 100 | X34: ='Agg Blends'!K32 ->  | Y34: ='Agg Blends'!L32 ->  | Z34: ='Agg Blends'!M32 -> 
W35: 200 | X35: ='Agg Blends'!K33 -> 0 | Y35: ='Agg Blends'!L33 -> 0 | Z35: ='Agg Blends'!M33 -> 0
B57: .45 Power Chart
B58: Producer: | D58: =Setup!E7 -> 0 | F58: Material Class: | H58: =Setup!E10 -> 0 | J58: Nominal Size: | L58: =Setup!E9 -> 0
B59: Designed By: | D59: =Setup!E8 -> 0 | F59: Esals: | H59: =Setup!E12 -> 0 | J59: SRL: | L59: =Setup!E11 -> 0
B60: Date: | D60: =Setup!E6 -> 00:00:00 | F60: Rap: | H60: =Setup!E17 -> 0 | J60: PG Grade: | L60: =Setup!E14 -> 0

Sheet Gmm
B1: =Setup!A2 -> ESB-19
B3: Maximum Specific Gravity anf Effective Asphalt
C4: Producer; | F4: =Setup!E7 -> 0 | J4: Material Class: | N4: =Setup!E10 -> 0 | R4: Nominal Size: | U4: =Setup!E9 -> 0
C5: Designed By: | F5: =Setup!E8 -> 0 | J5: Esals: | N5: =Setup!E12 -> 0 | S5: SRL: | U5: =Setup!E11 -> 0
C6: Date: | F6: =Setup!E6 -> 00:00:00 | J6: Rap: | N6: =Setup!E17 -> 0 | R6: PG Grade: | U6: =Setup!E14 -> 0
B8: Maximum Specific Gravity (Gmm)
F9: Blend 1 | L9: Blend 2 | R9: Blend 3
B10: Sample No
B11: Dry Wt. of Sample
B12: =IF(Setup!$E$19="Suspension","Mass of Pyc in Water","Mass of Pyc + Water") -> Mass of Pyc + Water | F12: =IF(F11,Setup!$F$20,"") ->  | H12: =IF(H11,Setup!$F$20,"") ->  | J12: =IF(J11,Setup!$F$20,"") ->  | L12: =IF(L11,Setup!$F$20,"") ->  | N12: =IF(N11,Setup!$F$20,"") ->  | P12: =IF(P11,Setup!$F$20,"") ->  | R12: =IF(R11,Setup!$F$20,"") ->  | T12: =IF(T11,Setup!$F$20,"") ->  | V12: =IF(V11,Setup!$F$20,"") -> 
B13: =IF(Setup!F19="Suspension","Mass samp+Pyc in H2O","Mass Pyc + Mix + Water") -> Mass samp+Pyc in H2O
B14: Vol Voidless Mix | F14: =IF(F13,ROUND(F11+F12-F13,1)," ") ->  | H14: =IF(H13,ROUND(H11+H12-H13,1)," ") ->  | J14: =IF(J13,ROUND(J11+J12-J13,1)," ") ->  | L14: =IF(L13,ROUND(L11+L12-L13,1)," ") ->  | N14: =IF(N13,ROUND(N11+N12-N13,1)," ") ->  | P14: =IF(P13,ROUND(P11+P12-P13,1)," ") ->  | R14: =IF(R13,ROUND(R11+R12-R13,1)," ") ->  | T14: =IF(T13,ROUND(T11+T12-T13,1)," ") ->  | V14: =IF(V13,ROUND(V11+V12-V13,1)," ") -> 
B15: Max Sp Gr of Mix | F15: =IF(F13,ROUND(F11/F14,3)," ") ->  | H15: =IF(H13,ROUND(H11/H14,3)," ") ->  | J15: =IF(J13,ROUND(J11/J14,3)," ") ->  | L15: =IF(L13,ROUND(L11/L14,3)," ") ->  | N15: =IF(N13,ROUND(N11/N14,3)," ") ->  | P15: =IF(P13,ROUND(P11/P14,3)," ") ->  | R15: =IF(R13,ROUND(R11/R14,3)," ") ->  | T15: =IF(T13,ROUND(T11/T14,3)," ") ->  | V15: =IF(V13,ROUND(V11/V14,3)," ") -> 
J16: =IF(F13,ROUND(AVERAGE(F15:J15),3)," ") ->  | P16: =IF(L13,ROUND(AVERAGE(L15:P15),3)," ") ->  | V16: =IF(R13,ROUND(AVERAGE(R15:V15),3)," ") -> 
B18: Effective Specific Gravity of Aggregate (Gse)
B19: Max Sp Gr of Mix | J19: =J16 ->  | P19: =P16 ->  | V19: =V16 -> 
B20: % AC in Test Mix | J20: =IF(F13,'Agg Blends'!K46,"") ->  | P20: =IF(L13,'Agg Blends'!L46,"") ->  | V20: =IF(R13,'Agg Blends'!M46,"") -> 
B21: Gb of Binder | J21: =IF($F$13,Setup!$E$15,"") ->  | P21: =IF($F$13,Setup!$E$15,"") ->  | V21: =IF($F$13,Setup!$E$15,"") -> 
B22: % of Total Mixture | J22: =IF(F11,100," ") ->  | P22: =IF(L11,100," ") ->  | V22: =IF(R11,100," ") -> 
B23: Eff. Gravity of Agg | J23: =IF(F11,(J22-J20)/(J22/J16-J20/J21)," ") ->  | P23: =IF(L11,(P22-P20)/(P22/P16-P20/P21)," ") ->  | V23: =IF(R11,(V22-V20)/(V22/V16-V20/V21)," ") -> 
B25: Asphalt Absorption of Mix (Pba)
B26: Eff. Gravity of Agg | J26: =J23 ->  | P26: =P23 ->  | V26: =V23 -> 
B27: Bulk Gravity of Agg | J27: =IF(F13,'Agg Blends'!K35,"") ->  | P27: =IF(L13,'Agg Blends'!L35,"") ->  | V27: =IF(R13,'Agg Blends'!M35,"") -> 
B28: Gb of Binder | J28: =IF($F$13,Setup!$E$15,"") ->  | P28: =IF($F$13,Setup!$E$15,"") ->  | V28: =IF($F$13,Setup!$E$15,"") -> 
B29: Absorbed Asphalt | J29: =IF(F11,100*((J26-J27)/(J27*J26))*J28," ") ->  | P29: =IF(L11,100*((P26-P27)/(P27*P26))*P28," ") ->  | V29: =IF(R11,100*((V26-V27)/(V27*V26))*V28," ") -> 
B31: Effective Asphalt Content in mix (Pbe)
B32: Absorber Asphalt | J32: =J29 ->  | P32: =P29 ->  | V32: =V29 -> 
B33: % AC in Test Mix | J33: =J20 ->  | P33: =P20 ->  | V33: =V20 -> 
B34: % Agg in Test Mix | J34: =IF(F11,100-J20," ") ->  | P34: =IF(L11,100-P20," ") ->  | V34: =IF(R11,100-V20," ") -> 
B35: Effective Asphalt | J35: =IF(F11,ROUND(J33-(J29/100)*J34,1)," ") ->  | P35: =IF(L11,ROUND(P33-(P29/100)*P34,1)," ") ->  | V35: =IF(R11,ROUND(V33-(V29/100)*V34,1)," ") -> 
J37: =Setup!$F$19&" Method of Testing" -> Suspension Method of Testing

Sheet Trial Blends
B1: =Setup!A2 -> ESB-19 | AG1: =Setup!F24 -> 0
AG2: =Setup!F23 -> Suspension
B3: INITIAL TRIAL BLEND RESULTS | AG3: 1
C4: Producer; | F4: =Setup!E7 -> 0 | J4: Material Class: | P4: =Setup!E10 -> 0 | T4: Nominal Size: | W4: =Setup!E9 -> 0 | AG4: 2
C5: Designed By: | F5: =Setup!E8 -> 0 | J5: Esals: | P5: =Setup!E12 -> 0 | U5: SRL: | W5: =Setup!E11 -> 0 | AG5: 3
C6: Date: | F6: =Setup!E6 -> 00:00:00 | J6: Rap: | P6: =Setup!E17 -> 0 | T6: PG Grade: | W6: =Setup!E14 -> 0
B8: Blend 1 | L8: Samp Ht. | P8: Maximum Theoretical Gravity (Gmm) = | X8: =Gmm!J16 -> 
D9: Dry Weight | F9: =IF(Setup!$F$23="Suspension","Mass Spec. in H2O","Mass Pyc + Specimen + Water") -> Mass Spec. in H2O | J9: SSD Weight | L9: Height @ Nini | N9: Height @ Ndes | P9: Gmb | R9: % Gmm | T9: Voids | V9: VMA | X9: VFA
F10: =IF(Setup!I16="Suspension","Mass samp+Pyc in H2O","Mass Pyc + Mix + Water") -> Mass Pyc + Mix + Water
B11: Spec. 1 | P11: =IF($AG$2="Suspension",ROUND(D11/(J11-F11),3),IF($AG$2="Volumeter",ROUND(D11/(J11-(F11-$AG$1)),3)," ")) ->  | R11: =IF(J11,ROUND(P11/X8*100,1),"") ->  | T11: =IF(J11,ROUND(100*(1-(P11/$X$8)),1),"") ->  | V11: =IF(J11,ROUND(100-(P11/'Agg Blends'!K35)*Gmm!J34,1),"") ->  | X11: =IF(J11,100*(V11-T11)/V11,"") -> 
B12: Spec. 2 | P12: =IF($AG$2="Suspension",ROUND(D12/(J12-F12),3),IF($AG$2="Volumeter",ROUND(D12/(J12-(F12-$AG$1)),3)," ")) ->  | R12: =IF(J12,ROUND(P12/X8*100,1),"") ->  | T12: =IF(J12,ROUND(100*(1-(P12/$X$8)),1),"") ->  | V12: =IF(J12,ROUND(100-(P12/'Agg Blends'!K35)*Gmm!J34,1),"") ->  | X12: =IF(J12,100*(V12-T12)/V12,"") -> 
T13: =IF(J11,ROUND(AVERAGE(T11:T12),2),"") ->  | V13: =IF(J11,ROUND(AVERAGE(V11:V12),2),"") ->  | X13: =IF(J11,ROUND(AVERAGE(X11:X12),2),"") -> 
B15: Blend 2 | L15: Samp Ht. | P15: Maximum Theoretical Gravity (Gmm) = | X15: =Gmm!P16 -> 
D16: Dry Weight | F16: =IF(Setup!$F$23="Suspension","Mass Spec. in H2O","Mass Pyc + Specimen + Water") -> Mass Spec. in H2O | J16: SSD Weight | L16: Height @ Nini | N16: Height @ Ndes | P16: Gmb | R16: % Gmm | T16: Voids | V16: VMA | X16: VFA
F17: =IF(Setup!I22="Suspension","Mass samp+Pyc in H2O","Mass Pyc + Mix + Water") -> Mass Pyc + Mix + Water
B18: Spec. 1 | P18: =IF($AG$2="Suspension",ROUND(D18/(J18-F18),3),IF($AG$2="Volumeter",ROUND(D18/(J18-(F18-$AG$1)),3)," ")) ->  | R18: =IF(J18,ROUND(P18/X15*100,1),"") ->  | T18: =IF(J18,ROUND(100*(1-(P18/$X$15)),1),"") ->  | V18: =IF(J18,ROUND(100-(P18/'Agg Blends'!L35)*Gmm!P34,1),"") ->  | X18: =IF(J18,100*(V18-T18)/V18,"") -> 
B19: Spec. 2 | P19: =IF($AG$2="Suspension",ROUND(D19/(J19-F19),3),IF($AG$2="Volumeter",ROUND(D19/(J19-(F19-$AG$1)),3)," ")) ->  | R19: =IF(J19,ROUND(P19/X15*100,1),"") ->  | T19: =IF(J19,ROUND(100*(1-(P19/$X$15)),1),"") ->  | V19: =IF(J19,ROUND(100-(P19/'Agg Blends'!L35)*Gmm!P34,1),"") ->  | X19: =IF(J19,100*(V19-T19)/V19,"") -> 
T20: =IF(J18,ROUND(AVERAGE(T18:T19),2),"") ->  | V20: =IF(J18,ROUND(AVERAGE(V18:V19),2),"") ->  | X20: =IF(J18,ROUND(AVERAGE(X18:X19),2),"") -> 
B22: Blend 3 | L22: Samp Ht. | P22: Maximum Theoretical Gravity (Gmm) = | X22: =Gmm!V16 -> 
D23: Dry Weight | F23: =IF(Setup!$F$23="Suspension","Mass Spec. in H2O","Mass Pyc + Specimen + Water") -> Mass Spec. in H2O | J23: SSD Weight | L23: Height @ Nini | N23: Height @ Ndes | P23: Gmb | R23: % Gmm | T23: Voids | V23: VMA | X23: VFA
F24: =IF(Setup!I29="Suspension","Mass samp+Pyc in H2O","Mass Pyc + Mix + Water") -> Mass Pyc + Mix + Water
B25: Spec. 1 | P25: =IF($AG$2="Suspension",ROUND(D25/(J25-F25),3),IF($AG$2="Volumeter",ROUND(D25/(J25-(F25-$AG$1)),3)," ")) ->  | R25: =IF(J25,ROUND(P25/X22*100,1),"") ->  | T25: =IF(J25,ROUND(100*(1-(P25/$X$22)),1),"") ->  | V25: =IF(J25,ROUND(100-(P25/'Agg Blends'!M35)*Gmm!V34,1),"") ->  | X25: =IF(J25,100*(V25-T25)/V25,"") -> 
B26: Spec. 2 | P26: =IF($AG$2="Suspension",ROUND(D26/(J26-F26),3),IF($AG$2="Volumeter",ROUND(D26/(J26-(F26-$AG$1)),3)," ")) ->  | R26: =IF(J26,ROUND(P26/X22*100,1),"") ->  | T26: =IF(J26,ROUND(100*(1-(P26/$X$22)),1),"") ->  | V26: =IF(J26,ROUND(100-(P26/'Agg Blends'!M35)*Gmm!V34,1),"") ->  | X26: =IF(J26,100*(V26-T26)/V26,"") -> 
T27: =IF(J25,ROUND(AVERAGE(T25:T26),2),"") ->  | V27: =IF(J25,ROUND(AVERAGE(V25:V26),2),"") ->  | X27: =IF(J25,ROUND(AVERAGE(X25:X26),2),"") -> 
G29: Trial Blend Summary
M30: Blend | N30: 1 | P30: 2 | R30: 3
M31: Asphalt Content | N31: =IF(D11,'Agg Blends'!K46," ") ->  | P31: =IF(D18,'Agg Blends'!L46," ") ->  | R31: =IF(D25,'Agg Blends'!M46," ") -> 
M32: Max Theo SpGr (Gmm) | N32: =X8 ->  | P32: =X15 ->  | R32: =X22 -> 
M33: Gmb | N33: =IF(J12,ROUND(AVERAGE(P11:P12),3),"") ->  | P33: =IF(J19,ROUND(AVERAGE(P18:P19),3),"") ->  | R33: =IF(J26,ROUND(AVERAGE(P25:P26),3),"") -> 
M34: %Gmm (Density ) Ndes | N34: =IF(J12,ROUND(AVERAGE(R11:R12),1),"") ->  | P34: =IF(J19,ROUND(AVERAGE(R18:R19),1),"") ->  | R34: =IF(J26,ROUND(AVERAGE(R25:R26),1),"") -> 
M35: Air Voids | N35: =T13 ->  | P35: =T20 ->  | R35: =T27 -> 
M36: VMA | N36: =V13 ->  | P36: =V20 ->  | R36: =V27 -> 
M37: VFA | N37: =X13 ->  | P37: =X20 ->  | R37: =X27 -> 
M38: %Gmm (Density ) Nini | N38: =IF(N12,N33*((AVERAGE(N11:O12)/AVERAGE(L11:M12))/X8)*100,"") ->  | P38: =IF(N19,P33*((AVERAGE(N18:O19)/AVERAGE(L18:M19))/X15)*100,"") ->  | R38: =IF(N26,R33*((AVERAGE(N25:O26)/AVERAGE(L25:M26))/X22)*100,"") -> 
M39: Effective Asphalt (Pbe) | N39: =Gmm!J35 ->  | P39: =Gmm!P35 ->  | R39: =Gmm!V35 -> 
M40: Dust to Asphalt Ratio | N40: =IF(D11,ROUND('Agg Blends'!K33/Gmm!J35,1)," ") ->  | P40: =IF(D18,ROUND('Agg Blends'!L33/Gmm!P35,1)," ") ->  | R40: =IF(D25,ROUND('Agg Blends'!M33/Gmm!V35,1)," ") -> 
G42: Selected Trial Blend | N42: 1
G43: Estimated Optium AC
A45: =Setup!$F$23&" Method of Testing" -> Suspension Method of Testing

Sheet VCA
B1: =Setup!A2 -> ESB-19
B3: Voids in Coarse Aggregate
C4: Producer; | F4: =Setup!E7 -> 0 | J4: Material Class: | N4: =Setup!E10 -> 0 | R4: Nominal Size: | U4: =Setup!E9 -> 0
C5: Designed By: | F5: =Setup!E8 -> 0 | J5: Esals: | N5: =Setup!E12 -> 0 | S5: SRL: | U5: =Setup!E11 -> 0
C6: Date: | F6: =Setup!E6 -> 00:00:00 | J6: Rap: | N6: =Setup!E17 -> 0 | R6: PG Grade: | U6: =Setup!E14 -> 0
B9: If the mix being designed is an SMA mix, then the voids in the coarse aggregate fraction in the dry rodded condition and voids in the coarse aggregate fraction of the compacted mix needs to be determined in accordance with procedures outlined in AASHTO R46.
B14: VCADRC = Voids in the coarse aggregate fraction in the dry rodded condition
B16: VCAMIX = Voids in the coarse aggregate fraction of the compacted mix
I18: Trial Blend selected | N18: ='Trial Blends'!N42 -> 1
A20: Determination of VCADRC
A22: Bulk specific gravity of the coarse aggregate fraction(Gsb)
A23: Unit weight of coarse aggregate fraction in dry rodded condition
K24: VCADRC | N24: =IF(N23,ROUND(((N22*62.4)-N23)/(N22*62.4)*100,1),"") -> 
A26: Determination of VCAMIX
A28: Bulk specific gravity of compacted mixture(Gmb)
A29: Percent of coarse aggregate in mixture
K30: VCAMIX | N30: =IF(N29,ROUND(100-(N28/N22)*N29,1),"") -> 

Sheet Design Agg
B1: ='Trial Blends'!B1:C1 -> ESB-19 | U1: Trial Blend Selected | W1: ='Trial Blends'!$N$42 -> 1 | AI1: Nom. Size | BA1: =Setup!AD10 -> 0
AC2: Control Points | AE2: PCS | AI2: =Setup!E9 -> 0
B3: Design Aggregate Structure | V3: TB Selected | Y3: AI2 | AB3: .45 Power | AC3: Minimum | AD3: Maximum | AE3: Boundary | AF3: Boundary | AG3: Maximum Density Line | AK3: 5.815 | AL3: =IF(AI2=37.5,100,#N/A) ->  | AO3: 4.75mm | AU3: 9.5 mm | BA3: 12.5 mm | BG3: 19.0 mm | BM3: 25.0 mm | BS3: 37.5 mm
C4: Producer: | E4: =Setup!E7 -> 0 | G4: Material Class; | I4: =Setup!E10 -> 0 | K4: Nominal Size: | M4: =Setup!E9 -> 0 | V4: 2" | W4: =IF(O34,O34,NA()) ->  | Y4: 50mm | Z4: 2" | AA4: 50 | AB4: =POWER(AA4,0.45) -> 5.814823032 | AC4: =IF(AI2=37.5,BS4," ") ->  | AG4: =IF(AI2=37.5,BW4,IF(AI2=25,BQ4,IF(AI2=19,BK4,IF(AI2=12.5,BE4,IF(AI2=9.5,AY4,IF(AI2=4.75,AS4)))))) -> FALSE | AK4: 5.109 | AL4: =IF(AI2=25,100,#N/A) ->  | AN4: 2" | AT4: 2" | AZ4: 2" | BF4: 2" | BL4: 2" | BR4: 2" | BS4: 100 | BW4: 100
C5: Designed By: | E5: =Setup!E8 -> 00:00:00 | G5: Esals: | I5: =Setup!E12 -> 0 | K5: SRL: | M5: =Setup!E11 -> 0 | V5: 1 1/2" | W5: =IF(N34,N34,NA()) ->  | Y5: 37.5mm | Z5: 1 1/2" | AA5: 37.5 | AB5: =POWER(AA5,0.45) -> 5.108743174 | AC5: =IF(AI2=37.5,BS5,IF(AI2=25,BM5,IF(AI2=19,BG5,IF(AI2=12.5,BA5,IF(AI2=9.5,AU5,IF(AI2=4.75,AO5)))))) -> FALSE | AD5: =IF(AI2=37.5,BT5,IF(AI2=25,BN5,IF(AI2=19,BH5,IF(AI2=12.5,BB5,IF(AI2=9.5,AV5,IF(AI2=4.75,AP5)))))) -> FALSE | AG5: =IF(AI2=37.5,BW5,IF(AI2=25,BQ5,IF(AI2=19,BK5,IF(AI2=12.5,BE5,IF(AI2=9.5,AY5,IF(AI2=4.75,AS5)))))) -> FALSE | AK5: 4.257 | AL5: =IF(AI2=19,100,#N/A) ->  | AN5: 1 1/2" | AT5: 1 1/2" | AZ5: 1 1/2" | BF5: 1 1/2" | BL5: 1 1/2" | BM5: 100 | BQ5: 100 | BR5: 1 1/2" | BS5: 90 | BT5: 100
C6: Date: | E6: =Setup!E6 -> 00:00:00 | G6: Rap: | I6: =Setup!E17 -> 0 | K6: PG Grade: | M6: =Setup!E14 -> 0 | V6: 1" | W6: =IF(M34,M34,NA()) ->  | Y6: 25.0mm | Z6: 1" | AA6: 25 | AB6: =POWER(AA6,0.45) -> 4.256699613 | AC6: =IF(AI2=37.5,BS6,IF(AI2=25,BM6,IF(AI2=19,BG6,IF(AI2=12.5,BA6,IF(AI2=9.5,AU6,IF(AI2=4.75,AO6)))))) -> FALSE | AD6: =IF(AI2=37.5,BT6,IF(AI2=25,BN6,IF(AI2=19,BH6,IF(AI2=12.5,BB6,IF(AI2=9.5,AV6,IF(AI2=4.75,AP6)))))) -> FALSE | AG6: =IF(AI2=37.5,BW6,IF(AI2=25,BQ6,IF(AI2=19,BK6,IF(AI2=12.5,BE6,IF(AI2=9.5,AY6,IF(AI2=4.75,AS6)))))) -> FALSE | AK6: 3.762 | AL6: =IF(AI2=12.5,100,#N/A) ->  | AN6: 1" | AT6: 1" | AZ6: 1" | BF6: 1" | BG6: 100 | BK6: 100 | BL6: 1" | BM6: 90 | BN6: 100 | BR6: 1" | BT6: 89
V7: 3/4" | W7: =IF(L34,L34,NA()) ->  | Y7: 19.0mm | Z7: 3/4" | AA7: 19 | AB7: 3.762176102 | AC7: =IF(AI2=37.5,BS7,IF(AI2=25,BM7,IF(AI2=19,BG7,IF(AI2=12.5,BA7,IF(AI2=9.5,AU7,IF(AI2=4.75,AO7)))))) -> FALSE | AD7: =IF(AI2=37.5,BT7,IF(AI2=25,BN7,IF(AI2=19,BH7,IF(AI2=12.5,BB7,IF(AI2=9.5,AV7,IF(AI2=4.75,AP7)))))) -> FALSE | AG7: =IF(AI2=37.5,BW7,IF(AI2=25,BQ7,IF(AI2=19,BK7,IF(AI2=12.5,BE7,IF(AI2=9.5,AY7,IF(AI2=4.75,AS7)))))) -> FALSE | AK7: 3.116 | AL7: =IF(AI2=9.5,100,IF(AI2=4.75,100,#N/A)) ->  | AN7: 3/4" | AT7: 3/4" | AZ7: 3/4" | BA7: 100 | BE7: 100 | BF7: 3/4" | BG7: 90 | BH7: 100 | BL7: 3/4" | BN7: 89 | BR7: 3/4"
C8: =IF('Trial Blends'!N42=1,CONCATENATE("Trial Blend 1 has been selected as the design aggregate structure and an Estimated Optium Asphalt Content of ",'Trial Blends'!N43," has been chosen"),IF('Trial Blends'!N42=2,CONCATENATE("Trial Blend 2 has been selected as the design aggregate structure and an Estimated Optium Asphalt Content of ",'Trial Blends'!N43," has been chosen"),IF('Trial Blends'!N42=3,CONCATENATE("Trial Blend 3 has been selected as the design aggregate structure and an Estimated Optium Asphalt Content of ",'Trial Blends'!N43," has been chosen")," "))) -> Trial Blend 1 has been selected as the design aggregate structure and an Estimated Optium Asphalt Content of has been chosen | V8: 1/2" | W8: =IF(K34,K34,NA()) ->  | Y8: 12.5mm | Z8: 1/2" | AA8: 12.5 | AB8: 3.116086507 | AC8: =IF(AI2=37.5,BS8,IF(AI2=25,BM8,IF(AI2=19,BG8,IF(AI2=12.5,BA8,IF(AI2=9.5,AU8,IF(AI2=4.75,AO8)))))) -> FALSE | AD8: =IF(AI2=37.5,BT8,IF(AI2=25,BN8,IF(AI2=19,BH8,IF(AI2=12.5,BB8,IF(AI2=9.5,AV8,IF(AI2=4.75,AP8)))))) -> FALSE | AG8: =IF(AI2=37.5,BW8,IF(AI2=25,BQ8,IF(AI2=19,BK8,IF(AI2=12.5,BE8,IF(AI2=9.5,AY8,IF(AI2=4.75,AS8)))))) -> FALSE | AK8: 2.754 | AN8: 1/2" | AO8: 100 | AS8: 100 | AT8: 1/2" | AU8: 100 | AY8: 100 | AZ8: 1/2" | BA8: 90 | BB8: =IF($AB$1="SMA125",99,100) -> 100 | BF8: 1/2" | BH8: 89 | BL8: 1/2" | BR8: 1/2"
V9: 3/8" | W9: =J34 -> 0 | Y9: 9.5mm | Z9: 3/8" | AA9: 9.5 | AB9: 2.754074109 | AC9: =IF(AI2=37.5,BS9,IF(AI2=25,BM9,IF(AI2=19,BG9,IF(AI2=12.5,BA9,IF(AI2=9.5,AU9,IF(AI2=4.75,AO9)))))) -> FALSE | AD9: =IF(AI2=37.5,BT9,IF(AI2=25,BN9,IF(AI2=19,BH9,IF(AI2=12.5,BB9,IF(AI2=9.5,AV9,IF(AI2=4.75,AP9)))))) -> FALSE | AE9: 47 | AG9: =IF(AI2=37.5,BW9,IF(AI2=25,BQ9,IF(AI2=19,BK9,IF(AI2=12.5,BE9,IF(AI2=9.5,AY9,IF(AI2=4.75,AS9)))))) -> FALSE | AK9: 2.016 | AN9: 3/8" | AO9: 95 | AP9: 100 | AT9: 3/8" | AU9: =IF($AB$1="SMA95",75,90) -> 90 | AV9: =IF($AB$1="SMA95",95,100) -> 100 | AZ9: 3/8" | BA9: =IF($AB$1="SMA125",70," ") ->  | BB9: =IF($AB$1="SMA125",85,89) -> 89 | BF9: 3/8" | BL9: 3/8" | BR9: 3/8" | BU9: 47
V10: 1/4" | W10: =I34 -> 0
V11: #4 | W11: =H34 -> 0 | Y11: 4.75mm | Z11: #4 | AA11: 4.75 | AB11: 2.016100254 | AC11: =IF(AI2=37.5,BS11,IF(AI2=25,BM11,IF(AI2=19,BG11,IF(AI2=12.5,BA11,IF(AI2=9.5,AU11,IF(AI2=4.75,AO11)))))) -> FALSE | AD11: =IF(AI2=37.5,BT11,IF(AI2=25,BN11,IF(AI2=19,BH11,IF(AI2=12.5,BB11,IF(AI2=9.5,AV11,IF(AI2=4.75,AP11)))))) -> FALSE | AG11: =IF(AI2=37.5,BW11,IF(AI2=25,BQ11,IF(AI2=19,BK11,IF(AI2=12.5,BE11,IF(AI2=9.5,AY11,IF(AI2=4.75,AS11)))))) -> FALSE | AK11: 1.472 | AN11: #4 | AO11: 89 | AP11: 100 | AT11: #4 | AU11: =IF($AB$1="SMA95",30," ") ->  | AV11: =IF($AB$1="SMA95",50," ") ->  | AZ11: #4 | BA11: =IF($AB$1="SMA125",28," ") ->  | BB11: =IF($AB$1="SMA125",40," ") ->  | BF11: #4 | BI11: 47 | BL11: #4 | BO11: 40 | BR11: #4
V12: #8 | W12: =G34 -> 0 | Y12: 2.36mm | Z12: #8 | AA12: 2.36 | AB12: 1.47166988 | AC12: =IF(AI2=37.5,BS12,IF(AI2=25,BM12,IF(AI2=19,BG12,IF(AI2=12.5,BA12,IF(AI2=9.5,AU12,IF(AI2=4.75,AO12)))))) -> FALSE | AD12: =IF(AI2=37.5,BT12,IF(AI2=25,BN12,IF(AI2=19,BH12,IF(AI2=12.5,BB12,IF(AI2=9.5,AV12,IF(AI2=4.75,AP12)))))) -> FALSE | AG12: =IF(AI2=37.5,BW12,IF(AI2=25,BQ12,IF(AI2=19,BK12,IF(AI2=12.5,BE12,IF(AI2=9.5,AY12,IF(AI2=4.75,AS12)))))) -> FALSE | AK12: 1.077 | AN12: #8 | AT12: #8 | AU12: =IF($AB$1="SMA95",20,32) -> 32 | AV12: =IF($AB$1="SMA95",30,67) -> 67 | AW12: 47 | AZ12: #8 | BA12: =IF($AB$1="SMA125",18,28) -> 28 | BB12: =IF($AB$1="SMA125",30,58) -> 58 | BC12: 39 | BF12: #8 | BG12: 23 | BH12: 49 | BL12: #8 | BM12: 19 | BN12: 45 | BR12: #8 | BS12: 15 | BT12: 41
V13: #16 | W13: =F34 -> 0 | Y13: 1.18mm | Z13: #16 | AA13: 1.18 | AB13: 1.07732541 | AC13: =IF(AI2=37.5,BS13,IF(AI2=25,BM13,IF(AI2=19,BG13,IF(AI2=12.5,BA13,IF(AI2=9.5,AU13,IF(AI2=4.75,AO13)))))) -> FALSE | AD13: =IF(AI2=37.5,BT13,IF(AI2=25,BN13,IF(AI2=19,BH13,IF(AI2=12.5,BB13,IF(AI2=9.5,AV13,IF(AI2=4.75,AP13)))))) -> FALSE | AG13: =IF(AI2=37.5,BW13,IF(AI2=25,BQ13,IF(AI2=19,BK13,IF(AI2=12.5,BE13,IF(AI2=9.5,AY13,IF(AI2=4.75,AS13)))))) -> FALSE | AK13: 0.795 | AN13: #16 | AO13: 30 | AP13: 60 | AT13: #16 | AZ13: #16 | BF13: #16 | BL13: #16 | BR13: #16
V14: #30 | W14: =E34 -> 0 | Y14: 600µm | Z14: #30 | AA14: 0.6 | AB14: 0.7946356822 | AC14: =IF(AI2=37.5,BS14,IF(AI2=25,BM14,IF(AI2=19,BG14,IF(AI2=12.5,BA14,IF(AI2=9.5,AU14,IF(AI2=4.75,AO14)))))) -> FALSE | AD14: =IF(AI2=37.5,BT14,IF(AI2=25,BN14,IF(AI2=19,BH14,IF(AI2=12.5,BB14,IF(AI2=9.5,AV14,IF(AI2=4.75,AP14)))))) -> FALSE | AG14: =IF(AI2=37.5,BW14,IF(AI2=25,BQ14,IF(AI2=19,BK14,IF(AI2=12.5,BE14,IF(AI2=9.5,AY14,IF(AI2=4.75,AS14)))))) -> FALSE | AK14: 0.582 | AN14: #30 | AT14: #30 | AZ14: #30 | BF14: #30 | BL14: #30 | BR14: #30
V15: #50 | W15: =D34 -> 0 | Y15: 300µm | Z15: #50 | AA15: 0.3 | AB15: 0.5817073679 | AC15: =IF(AI2=37.5,BS15,IF(AI2=25,BM15,IF(AI2=19,BG15,IF(AI2=12.5,BA15,IF(AI2=9.5,AU15,IF(AI2=4.75,AO15)))))) -> FALSE | AD15: =IF(AI2=37.5,BT15,IF(AI2=25,BN15,IF(AI2=19,BH15,IF(AI2=12.5,BB15,IF(AI2=9.5,AV15,IF(AI2=4.75,AP15)))))) -> FALSE | AG15: =IF(AI2=37.5,BW15,IF(AI2=25,BQ15,IF(AI2=19,BK15,IF(AI2=12.5,BE15,IF(AI2=9.5,AY15,IF(AI2=4.75,AS15)))))) -> FALSE | AK15: 0.426 | AN15: #50 | AT15: #50 | AZ15: #50 | BF15: #50 | BL15: #50 | BR15: #50
V16: #100 | W16: =C34 ->  | Y16: 150µm | Z16: #100 | AA16: 0.15 | AB16: 0.4258347183 | AC16: =IF(AI2=37.5,BS16,IF(AI2=25,BM16,IF(AI2=19,BG16,IF(AI2=12.5,BA16,IF(AI2=9.5,AU16,IF(AI2=4.75,AO16)))))) -> FALSE | AD16: =IF(AI2=37.5,BT16,IF(AI2=25,BN16,IF(AI2=19,BH16,IF(AI2=12.5,BB16,IF(AI2=9.5,AV16,IF(AI2=4.75,AP16)))))) -> FALSE | AG16: =IF(AI2=37.5,BW16,IF(AI2=25,BQ16,IF(AI2=19,BK16,IF(AI2=12.5,BE16,IF(AI2=9.5,AY16,IF(AI2=4.75,AS16)))))) -> FALSE | AK16: 0.312 | AN16: #100 | AT16: #100 | AZ16: #100 | BF16: #100 | BL16: #100 | BR16: #100
V17: #200 | W17: =B34 -> 0 | Y17: 75µm | Z17: #200 | AA17: 0.075 | AB17: =POWER(AA17,0.45) -> 0.31172926 | AC17: =IF(AI2=37.5,BS17,IF(AI2=25,BM17,IF(AI2=19,BG17,IF(AI2=12.5,BA17,IF(AI2=9.5,AU17,IF(AI2=4.75,AO17)))))) -> FALSE | AD17: =IF(AI2=37.5,BT17,IF(AI2=25,BN17,IF(AI2=19,BH17,IF(AI2=12.5,BB17,IF(AI2=9.5,AV17,IF(AI2=4.75,AP17)))))) -> FALSE | AG17: =IF(AI2=37.5,BW17,IF(AI2=25,BQ17,IF(AI2=19,BK17,IF(AI2=12.5,BE17,IF(AI2=9.5,AY17,IF(AI2=4.75,AS17)))))) -> FALSE | AK17: 0 | AL17: 0 | AN17: #200 | AO17: 6 | AP17: 12 | AT17: #200 | AU17: =IF($AB$1="SMA95",8,2) -> 2 | AV17: =IF($AB$1="SMA95",11,10) -> 10 | AZ17: #200 | BA17: =IF($AB$1="SMA125",8,2) -> 2 | BB17: =IF($AB$1="SMA125",11,10) -> 10 | BF17: #200 | BG17: 2 | BH17: 8 | BL17: #200 | BM17: 1 | BN17: 7 | BR17: #200 | BS17: 0 | BT17: 6
Y18: Pan | AA18: 0 | AB18: 0 | AG18: =IF(AI2=37.5,BW18,IF(AI2=25,BQ18,IF(AI2=19,BK18,IF(AI2=12.5,BE18,IF(AI2=9.5,AY18,IF(AI2=4.75,AS18)))))) -> FALSE | AS18: 0 | AY18: 0 | BE18: 0 | BK18: 0 | BQ18: 0 | BW18: 0
T22: =$N$34 -> 0 | U22: =$M$34 -> 0 | V22: Bulk SpGr (Gsb) | Y22: =IF(W1=1,'Agg Blends'!K35,IF(W1=2,'Agg Blends'!L35,IF(W1=3,'Agg Blends'!M35))) -> 
V23: Eff. SpGr (Gse) | Y23: =IF($W$1=1,Gmm!J23,IF($W$1=2,Gmm!P23,IF($W$1=3,Gmm!V23))) -> 
V24: App. SpGr (Gsa) | Y24: =IF(W1=1,'Agg Blends'!K37,IF(W1=2,'Agg Blends'!L37,IF(W1=3,'Agg Blends'!M37))) -> 
V25: H2O Absorption (Abs) | Y25: =IF($W$1=1,'Agg Blends'!K36,IF($W$1=2,'Agg Blends'!L36,IF($W$1=3,'Agg Blends'!M36))) -> 
V26: AC Absorption (Pba) | Y26: =IF($W$1=1,Gmm!J29,IF($W$1=2,Gmm!P29,IF($W$1=3,Gmm!V29))) -> 
V27: Sand Equivalency | Y27: =IF($W$1=1,'Agg Blends'!K38,IF($W$1=2,'Agg Blends'!L38,IF($W$1=3,'Agg Blends'!M38))) -> 
V28: Flat & Elongated 3:1 | Y28: =IF($W$1=1,'Agg Blends'!K39,IF($W$1=2,'Agg Blends'!L39,IF($W$1=3,'Agg Blends'!M39))) -> 
V29: Flat & Elongated 5:1 | Y29: =IF($W$1=1,'Agg Blends'!K40,IF($W$1=2,'Agg Blends'!L40,IF($W$1=3,'Agg Blends'!M40))) -> 
V30: Uncompacted Voids | Y30: =IF($W$1=1,'Agg Blends'!K42,IF($W$1=2,'Agg Blends'!L42,IF($W$1=3,'Agg Blends'!M42))) -> 
V31: CA Angularity (1) | Y31: =IF($W$1=1,'Agg Blends'!K43,IF($W$1=2,'Agg Blends'!L43,IF($W$1=3,'Agg Blends'!M43))) -> 
B32: 75µm | C32: 150µm | D32: 300µm | E32: 600µm | F32: 1.18mm | G32: 2.36mm | H32: 4.75mm | I32: 6.33mm | J32: 9.5mm | K32: 12.5mm | L32: 19.0mm | M32: 25.0mm | N32: 37.5mm | O32: 50mm | V32: CA Angularity (2) | Y32: =IF($W$1=1,'Agg Blends'!K44,IF($W$1=2,'Agg Blends'!L44,IF($W$1=3,'Agg Blends'!M44))) -> 
B33: #200 | C33: #100 | D33: #50 | E33: #30 | F33: #16 | G33: #8 | H33: #4 | I33: 1/4" | J33: 3/8" | K33: 1/2" | L33: 3/4" | M33: 1" | N33: 1 1/2" | O33: 2" | V33: VCAMIX | Y33: =VCA!N30 -> 
B34: =IF($W$1=1,'Agg Blends'!$K33,IF($W$1=2,'Agg Blends'!$L33,IF($W$1=3,'Agg Blends'!$M33," "))) -> 0 | C34: =IF($W$1=1,'Agg Blends'!$K32,IF($W$1=2,'Agg Blends'!$L32,IF($W$1=3,'Agg Blends'!$M32," "))) ->  | D34: =IF($W$1=1,'Agg Blends'!$K31,IF($W$1=2,'Agg Blends'!$L31,IF($W$1=3,'Agg Blends'!$M31," "))) -> 0 | E34: =IF($W$1=1,'Agg Blends'!$K30,IF($W$1=2,'Agg Blends'!$L30,IF($W$1=3,'Agg Blends'!$M30," "))) -> 0 | F34: =IF($W$1=1,'Agg Blends'!$K29,IF($W$1=2,'Agg Blends'!$L29,IF($W$1=3,'Agg Blends'!$M29," "))) -> 0 | G34: =IF($W$1=1,'Agg Blends'!$K28,IF($W$1=2,'Agg Blends'!$L28,IF($W$1=3,'Agg Blends'!$M28," "))) -> 0 | H34: =IF($W$1=1,'Agg Blends'!$K27,IF($W$1=2,'Agg Blends'!$L27,IF($W$1=3,'Agg Blends'!$M27," "))) -> 0 | I34: =IF($W$1=1,'Agg Blends'!$K26,IF($W$1=2,'Agg Blends'!$L26,IF($W$1=3,'Agg Blends'!$M26," "))) -> 0 | J34: =IF($W$1=1,'Agg Blends'!$K25,IF($W$1=2,'Agg Blends'!$L25,IF($W$1=3,'Agg Blends'!$M25," "))) -> 0 | K34: =IF($W$1=1,'Agg Blends'!$K24,IF($W$1=2,'Agg Blends'!$L24,IF($W$1=3,'Agg Blends'!$M24," "))) -> 0 | L34: =IF($W$1=1,'Agg Blends'!$K23,IF($W$1=2,'Agg Blends'!$L23,IF($W$1=3,'Agg Blends'!$M23," "))) -> 0 | M34: =IF($W$1=1,'Agg Blends'!$K22,IF($W$1=2,'Agg Blends'!$L22,IF($W$1=3,'Agg Blends'!$M22," "))) -> 0 | N34: =IF($W$1=1,'Agg Blends'!$K21,IF($W$1=2,'Agg Blends'!$L21,IF($W$1=3,'Agg Blends'!$M21," "))) -> 0 | O34: =IF($W$1=1,'Agg Blends'!$K20,IF($W$1=2,'Agg Blends'!$L20,IF($W$1=3,'Agg Blends'!$M20," "))) -> 0 | V34: VCADRC | Y34: =VCA!N24 ->  | AN34: =$N$34 -> 0
B35: 0.31172926 | C35: 0.4258347183 | D35: 0.5817073679 | E35: 0.7946356822 | F35: 1.07732541 | G35: 1.47166988 | H35: 2.016100254 | I35: 2.754074109 | J35: 3.116086507 | K35: 3.762176102 | L35: 4.256699613 | M35: 5.108743174 | N35: 5.814823032
C36: VCAMIX / VCADRC | F36: =Y33 ->  | G36: =Y34 ->  | I36: Flat & Elongated 3:1 | L36: =Y28 -> 
C37: Bulk SpGr (Gsb) | F37: =Y22 ->  | I37: Flat & Elongated 5:1 | L37: =Y29 -> 
C38: Eff. SpGr (Gse) | F38: =Y23 ->  | I38: CA Angularity (1) | L38: =Y31 -> 
C39: App. SpGr (Gsa) | F39: =Y24 ->  | I39: CA Angularity (2) | L39: =Y32 -> 
C40: H2O Absorption (Abs) | F40: =Y25 ->  | I40: Sand Equivalency | L40: =Y27 -> 
C41: AC Absorption (Pba) | F41: =Y26 ->  | I41: Uncompacted Voids | L41: =Y30 -> 

Sheet Gmm2
B1: =Setup!A2 -> ESB-19 | AG1: Measured Gmm
AG2: Calculated Gmm
B3: Maximum Specific Gravity of AC Trials
C4: Producer; | F4: =Setup!E7 -> 0 | J4: Material Class: | N4: =Setup!E10 -> 0 | R4: Nominal Size: | U4: =Setup!E9 -> 0
C5: Designed By: | F5: =Setup!E8 -> 0 | J5: Esals: | N5: =Setup!E12 -> 0 | S5: SRL: | U5: =Setup!E11 -> 0
C6: Date: | F6: =Setup!E6 -> 00:00:00 | J6: Rap: | N6: =Setup!E17 -> 0 | R6: PG Grade: | U6: =Setup!E14 -> 0 | AG6: =IF('Trial Blends'!$N$42=1,Gmm!J16,IF('Trial Blends'!$N$42=2,Gmm!P16,IF('Trial Blends'!$N$42=3,Gmm!V16))) -> 
AG7: =K16 -> -0.5 | AH7: =K17 -> 0 | AI7: =K18 -> 0.5 | AJ7: =K19 -> 1
I8: Trial Blend selected | N8: ='Trial Blends'!N42 -> 1 | AF8: Gsb selected | AG8: =IF('Trial Blends'!$N$42=1,Gmm!J27,IF('Trial Blends'!$N$42=2,Gmm!P27,IF('Trial Blends'!$N$42=3,Gmm!V27))) -> 
AF9: AC in test mix | AG9: =IF('Trial Blends'!N42=1,Gmm!J20,IF('Trial Blends'!N42=2,Gmm!P20,IF('Trial Blends'!N42=3,Gmm!V20))) -> 
F10: This Worksheet gives the option to use Calculated or Measured Maximum Specific Gravities for the AC Trials | AF10: Gb | AG10: =Setup!E15 -> 0
AF11: 4 | AG11: =ROUND(AG9/AG10,3) ->  | AH11: =ROUND(AG9/AG10,3) ->  | AI11: =ROUND(AG9/AG10,3) ->  | AJ11: =ROUND(AG9/AG10,3) -> 
AF12: 5 | AG12: =ROUND(100-AG9,1) ->  | AH12: =ROUND(100-AG9,1) ->  | AI12: =ROUND(100-AG9,1) ->  | AJ12: =ROUND(100-AG9,1) -> 
A13: Calculated Maximum Specific Gravity of the Selected Trial Blend at the Estiminated Optium Asphalt | AF13: 6 | AG13: =ROUND(AG6*AG12,3) ->  | AH13: =ROUND(AG6*AH12,3) ->  | AI13: =ROUND(AG6*AI12,3) ->  | AJ13: =ROUND(AG6*AJ12,3) -> 
AF14: 7 | AG14: =ROUND(AG11*AG6,3) ->  | AH14: =ROUND(AH11*AG6,3) ->  | AI14: =ROUND(AI11*AG6,3) ->  | AJ14: =ROUND(AJ11*AG6,3) -> 
K15: % AC | M15: Gmm | AF15: 8 | AG15: =ROUND(100-AG14,3) ->  | AH15: =ROUND(100-AH14,3) ->  | AI15: =ROUND(100-AI14,3) ->  | AJ15: =ROUND(100-AJ14,3) -> 
I16: -0.5 | K16: =K17-0.5 -> -0.5 | M16: =IF(ISERROR(AG21),"",AG21) ->  | AF16: 9 | AG16: =ROUND(AG13/AG15,3) ->  | AH16: =ROUND(AH13/AH15,3) ->  | AI16: =ROUND(AI13/AI15,3) ->  | AJ16: =ROUND(AJ13/AJ15,3) -> 
I17: Est. AC | K17: ='Trial Blends'!N43 -> 0 | M17: =IF(ISERROR(AH21),"",AH21) ->  | AF17: 10 | AG17: =ROUND(100-K16,1) -> 100.5 | AH17: =ROUND(100-K17,1) -> 100 | AI17: =ROUND(100-K18,1) -> 99.5 | AJ17: =ROUND(100-K19,1) -> 99
I18: +0.5 | K18: =K17+0.5 -> 0.5 | M18: =IF(ISERROR(AI21),"",AI21) ->  | AF18: 11 | AG18: =ROUND(K16/AG10,3) ->  | AH18: =ROUND(K17/AG10,3) ->  | AI18: =ROUND(K18/AG10,3) ->  | AJ18: =ROUND(K19/AG10,3) -> 
I19: +1.0 | K19: =K17+1 -> 1 | M19: =IF(ISERROR(AJ21),"",AJ21) ->  | AF19: 12 | AG19: =ROUND(AG17/AG16,3) ->  | AH19: =ROUND(AH17/AH16,3) ->  | AI19: =ROUND(AI17/AI16,3) ->  | AJ19: =ROUND(AJ17/AJ16,3) -> 
AF20: 13 | AG20: =ROUND(AG19+AG18,3) ->  | AH20: =ROUND(AH19+AH18,3) ->  | AI20: =ROUND(AI19+AI18,3) ->  | AJ20: =ROUND(AJ19+AJ18,3) -> 
AF21: 14 | AG21: =ROUND(100/AG20,3) ->  | AH21: =ROUND(100/AH20,3) ->  | AI21: =ROUND(100/AI20,3) ->  | AJ21: =ROUND(100/AJ20,3) -> 
A22: Measured Maximum Specific Gravity of the Selected Trial Blend at the Estiminated Optium Asphalt | AF22: Absor. AC | AG22: =100*((AG16-AG8)/(AG8*AG16))*AG10 ->  | AH22: =100*((AH16-AG8)/(AG8*AH16))*$AG$10 ->  | AI22: =100*((AI16-AG8)/(AI16*AG8))*$AG$10 ->  | AJ22: =100*((AJ16-AG8)/(AG8*AJ16))*$AG$10 -> 
AF23: Pbe | AG23: =ROUND(K16-(AG22/100)*(100-K16),1) ->  | AH23: =ROUND(K17-(AH22/100)*(100-K17),1) ->  | AI23: =ROUND(K18-(AI22/100)*(100-K18),1) ->  | AJ23: =ROUND(K19-(AJ22/100)*(100-K18),1) -> 
G24: =K16 -> -0.5 | I24: % AC | K24: =K17 -> 0 | M24: % AC | O24: =K18 -> 0.5 | Q24: % AC | S24: =K19 -> 1 | U24: % AC
B25: Sample Number | G25: 1 | I25: 2 | K25: 1 | M25: 2 | O25: 1 | Q25: 2 | S25: 1 | U25: 2
B26: Dry Wt. of Sample | AF26: Gse | AG26: =(100-G24)/(100/G31-G24/$AG$10) ->  | AH26: =(100-K24)/(100/K31-K24/$AG$10) ->  | AI26: =(100-O24)/(100/O31-O24/$AG$10) ->  | AJ26: =(100-S24)/(100/S31-S24/$AG$10) -> 
B27: =IF(Setup!$E$19="Suspension","Mass of Pyc in Water","Mass of Pyc + Water") -> Mass of Pyc + Water | G27: =IF(G26,Setup!$F$20," ") ->  | I27: =IF(I26,Setup!$F$20," ") ->  | K27: =IF(K26,Setup!$F$20," ") ->  | M27: =IF(M26,Setup!$F$20," ") ->  | O27: =IF(O26,Setup!$F$20," ") ->  | Q27: =IF(Q26,Setup!$F$20," ") ->  | S27: =IF(S26,Setup!$F$20," ") ->  | U27: =IF(U26,Setup!$F$20," ") ->  | AF27: Absor AC | AG27: =100*((AG26-$AG$8)/($AG$8*$AG$26))*$AG$10 ->  | AH27: =100*((AH26-$AG$8)/($AG$8*$AH$26))*$AG$10 ->  | AI27: =100*((AI26-$AG$8)/($AG$8*$AI$26))*$AG$10 ->  | AJ27: =100*((AJ26-$AG$8)/($AG$8*$AJ$26))*$AG$10 -> 
B28: =IF(Setup!F19="Suspension","Mass samp+Pyc in H2O","Mass Pyc + Mix + Water") -> Mass samp+Pyc in H2O | AF28: Pbe | AG28: =ROUND(G24-(AG27/100)*(100-G24),1) ->  | AH28: =ROUND(K24-(AH27/100)*(100-K24),1) ->  | AI28: =ROUND(O24-(AI27/100)*(100-O24),1) ->  | AJ28: =ROUND(S24-(AJ27/100)*(100-S24),1) -> 
B29: Volume of Voidless Mix | G29: =IF(G28,ROUND(G26+G27-G28,1)," ") ->  | I29: =IF(I28,ROUND(I26+I27-I28,1)," ") ->  | K29: =IF(K28,ROUND(K26+K27-K28,1)," ") ->  | M29: =IF(M28,ROUND(M26+M27-M28,1)," ") ->  | O29: =IF(O28,ROUND(O26+O27-O28,1)," ") ->  | Q29: =IF(Q28,ROUND(Q26+Q27-Q28,1)," ") ->  | S29: =IF(S28,ROUND(S26+S27-S28,1)," ") ->  | U29: =IF(U28,ROUND(U26+U27-U28,1)," ") -> 
B30: Max. Sp. Gr. Of Mix | G30: =IF(G26,ROUND(G26/G29,3)," ") ->  | I30: =IF(I26,ROUND(I26/I29,3)," ") ->  | K30: =IF(K26,ROUND(K26/K29,3)," ") ->  | M30: =IF(M26,ROUND(M26/M29,3)," ") ->  | O30: =IF(O26,ROUND(O26/O29,3)," ") ->  | Q30: =IF(Q26,ROUND(Q26/Q29,3)," ") ->  | S30: =IF(S26,ROUND(S26/S29,3)," ") ->  | U30: =IF(U26,ROUND(U26/U29,3)," ") -> 
G31: =IF(G28,ROUND(AVERAGE(G30:I30),3)," ") ->  | K31: =IF(K28,ROUND(AVERAGE(K30:M30),3)," ") ->  | O31: =IF(O28,ROUND(AVERAGE(O30:Q30),3)," ") ->  | S31: =IF(S28,ROUND(AVERAGE(S30:U30),3)," ") -> 
J33: =Setup!$F$19&" Method of Testing" -> Suspension Method of Testing
E35: Select Gmm to be used in AC Trials | M35: Calculated Gmm

Sheet AC Trials
B1: =Setup!A2 -> ESB-19 | AG1: =Setup!F24 -> 0 | AI1: =Setup!F23 -> Suspension
AG2: ='Gmm2'!M35 -> Calculated Gmm
H3: Varying Asphalt Content For Trial Blend | S3: ='Trial Blends'!N42 -> 1 | AG3: ='Trial Blends'!N42 -> 1
C4: Producer; | F4: =Setup!E7 -> 0 | J4: Material Class: | P4: =Setup!E10 -> 0 | T4: Nominal Size: | W4: =Setup!E9 -> 0 | AG4: =IF(AG3=1,'Agg Blends'!K35,IF(AG3=2,'Agg Blends'!L35,IF(AG3=3,'Agg Blends'!M35))) -> 
C5: Designed By: | F5: =Setup!E8 -> 0 | J5: Esals: | P5: =Setup!E12 -> 0 | U5: SRL: | W5: =Setup!E11 -> 0 | AG5: =100-B8 -> 100.5 | AH5: %Agg AC1
C6: Date: | F6: =Setup!E6 -> 00:00:00 | J6: Rap: | P6: =Setup!E17 -> 0 | T6: PG Grade: | W6: =Setup!E14 -> 0 | AG6: =100-B16 -> 100 | AH6: %Agg AC2
AG7: =100-B24 -> 99.5 | AH7: %Agg AC3
B8: ='Gmm2'!K16 -> -0.5 | D8: Asphalt Content | L8: Samp Ht. | P8: Maximum Theoretical Gravity (Gmm) = | X8: =IF($AG$2="Measured Gmm",'Gmm2'!G31,'Gmm2'!M16) ->  | AG8: =100-B32 -> 99 | AH8: %Agg AC4
D9: Dry Weight | F9: =IF(Setup!$F$23="Suspension","Mass Spec. in H2O","Mass Pyc + Specimen + Water") -> Mass Spec. in H2O | J9: SSD Weight | L9: Height @ Nini | N9: Height @ Ndes | P9: Gmb | R9: % Gmm | T9: Voids | V9: VMA | X9: VFA
F10: =IF(Setup!I16="Suspension","Mass samp+Pyc in H2O","Mass Pyc + Mix + Water") -> Mass Pyc + Mix + Water
B11: Spec. 1 | P11: =IF($AI$1="Suspension",ROUND(D11/(J11-F11),3),IF($AI$1="Volumeter",ROUND(D11/(J11-(F11-$AG$1)),3)," ")) ->  | R11: =IF(J11,ROUND(P11/X8*100,1),"") ->  | T11: =IF(J11,ROUND(100*(1-(P11/$X$8)),1),"") ->  | V11: =IF(J11,ROUND(100-(P11/$AG$4)*$AG$5,1),"") ->  | X11: =IF(J11,100*(V11-T11)/V11,"") -> 
B12: Spec. 2 | P12: =IF($AI$1="Suspension",ROUND(D12/(J12-F12),3),IF($AI$1="Volumeter",ROUND(D12/(J12-(F12-$AG$1)),3)," ")) ->  | R12: =IF(J12,ROUND(P12/X8*100,1),"") ->  | T12: =IF(J12,ROUND(100*(1-(P12/$X$8)),1),"") ->  | V12: =IF(J12,ROUND(100-(P12/$AG$4)*$AG$5,1),"") ->  | X12: =IF(J12,100*(V12-T12)/V12,"") -> 
B13: Spec. 3 | P13: =IF($AI$1="Suspension",ROUND(D13/(J13-F13),3),IF($AI$1="Volumeter",ROUND(D13/(J13-(F13-$AG$1)),3)," ")) ->  | R13: =IF(J13,ROUND(P13/X8*100,1),"") ->  | T13: =IF(J13,ROUND(100*(1-(P13/$X$8)),1),"") ->  | V13: =IF(J13,ROUND(100-(P13/$AG$4)*$AG$5,1),"") ->  | X13: =IF(J13,100*(V13-T13)/V13,"") -> 
T14: =IF(J11,ROUND(AVERAGE(T11:T13),2),"") ->  | V14: =IF(J11,ROUND(AVERAGE(V11:V13),2),"") ->  | X14: =IF(J11,ROUND(AVERAGE(X11:X13),2),"") -> 
B16: ='Gmm2'!K17 -> 0 | D16: Asphalt Content | L16: Samp Ht. | P16: Maximum Theoretical Gravity (Gmm) = | X16: =IF($AG$2="Measured Gmm",'Gmm2'!K31,'Gmm2'!M17) -> 
D17: Dry Weight | F17: =IF(Setup!$F$23="Suspension","Mass Spec. in H2O","Mass Pyc + Specimen + Water") -> Mass Spec. in H2O | J17: SSD Weight | L17: Height @ Nini | N17: Height @ Ndes | P17: Gmb | R17: % Gmm | T17: Voids | V17: VMA | X17: VFA
F18: =IF(Setup!I22="Suspension","Mass samp+Pyc in H2O","Mass Pyc + Mix + Water") -> Mass Pyc + Mix + Water
B19: Spec. 1 | P19: =IF($AI$1="Suspension",ROUND(D19/(J19-F19),3),IF($AI$1="Volumeter",ROUND(D19/(J19-(F19-$AG$1)),3)," ")) ->  | R19: =IF(J19,ROUND(P19/X16*100,1),"") ->  | T19: =IF(J19,ROUND(100*(1-(P19/$X$16)),1),"") ->  | V19: =IF(J19,ROUND(100-(P19/$AG$4)*$AG$6,1),"") ->  | X19: =IF(J19,100*(V19-T19)/V19,"") -> 
B20: Spec. 2 | P20: =IF($AI$1="Suspension",ROUND(D20/(J20-F20),3),IF($AI$1="Volumeter",ROUND(D20/(J20-(F20-$AG$1)),3)," ")) ->  | R20: =IF(J20,ROUND(P20/X16*100,1),"") ->  | T20: =IF(J20,ROUND(100*(1-(P20/$X$16)),1),"") ->  | V20: =IF(J20,ROUND(100-(P20/$AG$4)*$AG$6,1),"") ->  | X20: =IF(J20,100*(V20-T20)/V20,"") -> 
B21: Spec. 3 | P21: =IF($AI$1="Suspension",ROUND(D21/(J21-F21),3),IF($AI$1="Volumeter",ROUND(D21/(J21-(F21-$AG$1)),3)," ")) ->  | R21: =IF(J21,ROUND(P21/X16*100,1),"") ->  | T21: =IF(J21,ROUND(100*(1-(P21/$X$16)),1),"") ->  | V21: =IF(J21,ROUND(100-(P21/$AG$4)*$AG$6,1),"") ->  | X21: =IF(J21,100*(V21-T21)/V21,"") -> 
T22: =IF(J19,ROUND(AVERAGE(T19:T21),2),"") ->  | V22: =IF(J19,ROUND(AVERAGE(V19:V21),2),"") ->  | X22: =IF(J19,ROUND(AVERAGE(X19:X21),2),"") -> 
B24: ='Gmm2'!K18 -> 0.5 | D24: Asphalt Content | L24: Samp Ht. | P24: Maximum Theoretical Gravity (Gmm) = | X24: =IF($AG$2="Measured Gmm",'Gmm2'!O31,'Gmm2'!M18) -> 
D25: Dry Weight | F25: =IF(Setup!$F$23="Suspension","Mass Spec. in H2O","Mass Pyc + Specimen + Water") -> Mass Spec. in H2O | J25: SSD Weight | L25: Height @ Nini | N25: Height @ Ndes | P25: Gmb | R25: % Gmm | T25: Voids | V25: VMA | X25: VFA
F26: =IF(Setup!I29="Suspension","Mass samp+Pyc in H2O","Mass Pyc + Mix + Water") -> Mass Pyc + Mix + Water
B27: Spec. 1 | P27: =IF($AI$1="Suspension",ROUND(D27/(J27-F27),3),IF($AI$1="Volumeter",ROUND(D27/(J27-(F27-$AG$1)),3)," ")) ->  | R27: =IF(J27,ROUND(P27/X24*100,1),"") ->  | T27: =IF(J27,ROUND(100*(1-(P27/$X$24)),1),"") ->  | V27: =IF(J27,ROUND(100-(P27/$AG$4)*$AG$7,1),"") ->  | X27: =IF(J27,100*(V27-T27)/V27,"") -> 
B28: Spec. 2 | P28: =IF($AI$1="Suspension",ROUND(D28/(J28-F28),3),IF($AI$1="Volumeter",ROUND(D28/(J28-(F28-$AG$1)),3)," ")) ->  | R28: =IF(J28,ROUND(P28/X24*100,1),"") ->  | T28: =IF(J28,ROUND(100*(1-(P28/$X$24)),1),"") ->  | V28: =IF(J28,ROUND(100-(P28/$AG$4)*$AG$7,1),"") ->  | X28: =IF(J28,100*(V28-T28)/V28,"") -> 
B29: Spec. 3 | P29: =IF($AI$1="Suspension",ROUND(D29/(J29-F29),3),IF($AI$1="Volumeter",ROUND(D29/(J29-(F29-$AG$1)),3)," ")) ->  | R29: =IF(J29,ROUND(P29/X24*100,1),"") ->  | T29: =IF(J29,ROUND(100*(1-(P29/$X$24)),1),"") ->  | V29: =IF(J29,ROUND(100-(P29/$AG$4)*$AG$7,1),"") ->  | X29: =IF(J29,100*(V29-T29)/V29,"") -> 
T30: =IF(J27,ROUND(AVERAGE(T27:T29),2),"") ->  | V30: =IF(J27,ROUND(AVERAGE(V27:V29),2),"") ->  | X30: =IF(J27,ROUND(AVERAGE(X27:X29),2),"") -> 
B32: ='Gmm2'!K19 -> 1 | D32: Asphalt Content | M32: Samp Ht. | P32: Maximum Theoretical Gravity (Gmm) = | X32: =IF($AG$2="Measured Gmm",'Gmm2'!S31,'Gmm2'!M19) -> 
D33: Dry Weight | F33: =IF(Setup!$F$23="Suspension","Mass Spec. in H2O","Mass Pyc + Specimen + Water") -> Mass Spec. in H2O | J33: SSD Weight | L33: Height @ Nini | N33: Height @ Ndes | P33: Gmb | R33: % Gmm | T33: Voids | V33: VMA | X33: VFA
F34: =IF(Setup!I36="Suspension","Mass samp+Pyc in H2O","Mass Pyc + Mix + Water") -> Mass Pyc + Mix + Water
B35: Spec. 1 | P35: =IF($AI$1="Suspension",ROUND(D35/(J35-F35),3),IF($AI$1="Volumeter",ROUND(D35/(J35-(F35-$AG$1)),3)," ")) ->  | R35: =IF(J35,ROUND(P35/X32*100,1),"") ->  | T35: =IF(J35,ROUND(100*(1-(P35/$X$32)),1),"") ->  | V35: =IF(J35,ROUND(100-(P35/$AG$4)*$AG$8,1),"") ->  | X35: =IF(J35,100*(V35-T35)/V35,"") -> 
B36: Spec. 2 | P36: =IF($AI$1="Suspension",ROUND(D36/(J36-F36),3),IF($AI$1="Volumeter",ROUND(D36/(J36-(F36-$AG$1)),3)," ")) ->  | R36: =IF(J36,ROUND(P36/X32*100,1),"") ->  | T36: =IF(J36,ROUND(100*(1-(P36/$X$32)),1),"") ->  | V36: =IF(J36,ROUND(100-(P36/$AG$4)*$AG$8,1),"") ->  | X36: =IF(J36,100*(V36-T36)/V36,"") -> 
B37: Spec. 3 | P37: =IF($AI$1="Suspension",ROUND(D37/(J37-F37),3),IF($AI$1="Volumeter",ROUND(D37/(J37-(F37-$AG$1)),3)," ")) ->  | R37: =IF(J37,ROUND(P37/X32*100,1),"") ->  | T37: =IF(J37,ROUND(100*(1-(P37/$X$32)),1),"") ->  | V37: =IF(J37,ROUND(100-(P37/$AG$4)*$AG$8,1),"") ->  | X37: =IF(J37,100*(V37-T37)/V37,"") -> 
T38: =IF(J35,ROUND(AVERAGE(T35:T37),2),"") ->  | V38: =IF(J35,ROUND(AVERAGE(V35:V37),2),"") ->  | X38: =IF(J35,ROUND(AVERAGE(X35:X37),2),"") -> 
D40: Varrying AC Results | T40: Specifications | AL40: =P4 -> 0
D41: AC Content | H41: =B8 -> -0.5 | K41: =B16 -> 0 | N41: =B24 -> 0.5 | Q41: =B32 -> 1 | AL41: =P5 -> 0 | AN41: SP37.5 | AO41: <.3 | AP41: 64 | AQ41: 78 | AR41: 11.5 Min | AS41: 91.5 | AT41: 8.5
D42: Gmm | H42: =X8 ->  | K42: =X16 ->  | N42: =X24 ->  | Q42: =X32 ->  | AN42: SP37.5 | AO42: .3 to <3 | AP42: 64 | AQ42: 78 | AR42: 11.5 Min | AS42: 90.5 | AT42: 9.5
D43: Gmb@Ndes | H43: =IF(J12,(AVERAGE(P11:Q12)),"") ->  | K43: =IF(J20,(AVERAGE(P19:Q20)),"") ->  | N43: =IF(J28,(AVERAGE(P27:Q28)),"") ->  | Q43: =IF(J36,(AVERAGE(P35:Q36)),"") ->  | AL43: =INDEX($AR$41:$AR$278,MATCH(1,(AL40=$AN$41:$AN$278)*(AL41=AO41:AO278),0)) ->  | AN43: SP37.5 | AO43: 3 to <10 | AP43: 64 | AQ43: 75 | AR43: 11.5 Min | AS43: 89 | AT43: 11
D44: Voids | H44: =T14 ->  | K44: =T22 ->  | N44: =T30 ->  | Q44: =T38 ->  | T44: =IF(OR(Setup!$E$10="SMA95",Setup!$E$10="SMA125",Setup!$E$10="SP6.33",Setup!$E$10="WM6.33"),"3.5 - 4.0",4) -> 4 | AL44: =INDEX($AP$41:$AP$278,MATCH(1,(AL40=$AN$41:$AN$278)*($AL$41=$AO$41:$AO$278),0)) ->  | AN44: SP37.5 | AO44: 10 to <30 | AP44: 64 | AQ44: 75 | AR44: 11.5 Min | AS44: 89 | AT44: 11
D45: VMA | H45: =V14 ->  | K45: =V22 ->  | N45: =V30 ->  | Q45: =V38 ->  | T45: =AL43 ->  | AL45: =INDEX($AQ$41:$AQ$278,MATCH(1,(AL40=$AN$41:$AN$278)*($AL$41=$AO$41:$AO$278),0)) ->  | AN45: SP37.5 | AO45: 3 to <30 | AP45: 64 | AQ45: 75 | AR45: 11.5 Min | AS45: 89 | AT45: 11
D46: VFA | H46: =X14 ->  | K46: =X22 ->  | N46: =X30 ->  | Q46: =X38 ->  | T46: =AL44 ->  | U46: - | W46: =AL45 ->  | AL46: =INDEX($AS$41:$AS$278,MATCH(1,(AL40=$AN$41:$AN$278)*($AL$41=$AO$41:$AO$278),0)) ->  | AN46: SP37.5 | AO46: >30 | AP46: 64 | AQ46: 75 | AR46: 11.5 Min | AS46: 89 | AT46: 11
D47: %Gmm@Nini | H47: =IF(J12,H43*((AVERAGE(N11:O12)/AVERAGE(L11:M12))/X8)*100,"") ->  | K47: =IF(J20,K43*((AVERAGE(N19:O20)/AVERAGE(L19:M20))/X16)*100,"") ->  | N47: =IF(J28,N43*((AVERAGE(N27:O28)/AVERAGE(L27:M28))/X24)*100,"") ->  | Q47: =IF(J28,Q43*((AVERAGE(N35:O36)/AVERAGE(L35:M36))/X32)*100,"") ->  | U47: < | V47: =AL46 ->  | AL47: =INDEX($AT$41:$AT$278,MATCH(1,(AL40=$AN$41:$AN$278)*($AL$41=$AO$41:$AO$278),0)) ->  | AN47: SR37.5 | AO47: <.3 | AP47: 64 | AQ47: 78 | AR47: 11.5 Min | AS47: 91.5 | AT47: 8.5
D48: Voids@Nini | H48: =IF(J12,100-H47,"") ->  | K48: =IF(J20,100-K47,"") ->  | N48: =IF(J28,100-N47,"") ->  | Q48: =IF(J36,100-Q47,"") ->  | U48: > | V48: =AL47 ->  | AN48: SR37.5 | AO48: .3 to <3 | AP48: 64 | AQ48: 78 | AR48: 11.5 Min | AS48: 90.5 | AT48: 9.5
D49: Effective AC | H49: =IF(J12,IF($AG$2="Measured",'Gmm2'!AG28,'Gmm2'!AG23),"") ->  | K49: =IF(J20,IF($AG$2="Measured",'Gmm2'!AH28,'Gmm2'!AH23),"") ->  | N49: =IF(J28,IF($AG$2="Measured",'Gmm2'!AI28,'Gmm2'!AI23),"") ->  | Q49: =IF(J36,IF($AG$2="Measured",'Gmm2'!AJ28,'Gmm2'!AJ23),"") ->  | AN49: SR37.5 | AO49: 3 to <10 | AP49: 64 | AQ49: 75 | AR49: 11.5 Min | AS49: 89 | AT49: 11
D50: Dust / Binder | H50: =IF(J12,ROUND('Design Agg'!$B$34/H49,1),"") ->  | K50: =IF(J20,ROUND('Design Agg'!$B$34/K49,1),"") ->  | N50: =IF(J28,ROUND('Design Agg'!$B$34/N49,1),"") ->  | Q50: =IF(J36,ROUND('Design Agg'!$B$34/Q49,1),"") ->  | T50: =IF(OR(Setup!$E$10="SMA95",Setup!$E$10="SMA125"),"NA","0.6 - 1.2") -> 0.6 - 1.2 | AN50: SR37.5 | AO50: 10 to <30 | AP50: 64 | AQ50: 75 | AR50: 11.5 Min | AS50: 89 | AT50: 11
AN51: SR37.5 | AO51: 3 to <30 | AP51: 64 | AQ51: 75 | AR51: 11.5 Min | AS51: 89 | AT51: 11
A52: =Setup!$F$23&" Method of Testing" -> Suspension Method of Testing | AN52: SR37.5 | AO52: >30 | AP52: 64 | AQ52: 75 | AR52: 11.5 Min | AS52: 89 | AT52: 11
AN53: SP25B | AO53: <.3 | AP53: 66 | AQ53: 78 | AR53: 12.5 Min | AS53: 91.5 | AT53: 8.5
AN54: SP25B | AO54: .3 to <3 | AP54: 66 | AQ54: 78 | AR54: 12.5 Min | AS54: 90.5 | AT54: 9.5
AN55: SP25B | AO55: 3 to <10 | AP55: 66 | AQ55: 75 | AR55: 12.5 Min | AS55: 89 | AT55: 11
AN56: SP25B | AO56: 10 to <30 | AP56: 66 | AQ56: 75 | AR56: 12.5 Min | AS56: 89 | AT56: 11
AN57: SP25B | AO57: 3 to <30 | AP57: 66 | AQ57: 75 | AR57: 12.5 Min | AS57: 89 | AT57: 11
AN58: SP25B | AO58: >30 | AP58: 66 | AQ58: 75 | AR58: 12.5 Min | AS58: 89 | AT58: 11
AN59: SR25B | AO59: <.3 | AP59: 66 | AQ59: 78 | AR59: 12.5 Min | AS59: 91.5 | AT59: 8.5
AN60: SR25B | AO60: .3 to <3 | AP60: 66 | AQ60: 78 | AR60: 12.5 Min | AS60: 90.5 | AT60: 9.5
AN61: SR25B | AO61: 3 to <10 | AP61: 66 | AQ61: 75 | AR61: 12.5 Min | AS61: 89 | AT61: 11
AN62: SR25B | AO62: 10 to <30 | AP62: 66 | AQ62: 75 | AR62: 12.5 Min | AS62: 89 | AT62: 11
AN63: SR25B | AO63: 3 to <30 | AP63: 66 | AQ63: 75 | AR63: 12.5 Min | AS63: 89 | AT63: 11
AN64: SR25B | AO64: >30 | AP64: 66 | AQ64: 75 | AR64: 12.5 Min | AS64: 89 | AT64: 11
AN65: SP19W | AO65: <.3 | AP65: 69 | AQ65: 78 | AR65: 13.5 Min | AS65: 91.5 | AT65: 8.5
AN66: SP19W | AO66: .3 to <3 | AP66: 69 | AQ66: 78 | AR66: 13.5 Min | AS66: 90.5 | AT66: 9.5
AN67: SP19W | AO67: 3 to <10 | AP67: 69 | AQ67: 75 | AR67: 13.5 Min | AS67: 89 | AT67: 11
AN68: SP19W | AO68: 10 to <30 | AP68: 69 | AQ68: 75 | AR68: 13.5 Min | AS68: 89 | AT68: 11
AN69: SP19W | AO69: 3 to <30 | AP69: 69 | AQ69: 75 | AR69: 13.5 Min | AS69: 89 | AT69: 11
AN70: SP19W | AO70: >30 | AP70: 69 | AQ70: 75 | AR70: 13.5 Min | AS70: 89 | AT70: 11
AN71: SR19W | AO71: <.3 | AP71: 69 | AQ71: 78 | AR71: 13.5 Min | AS71: 91.5 | AT71: 8.5
AN72: SR19W | AO72: .3 to <3 | AP72: 69 | AQ72: 78 | AR72: 13.5 Min | AS72: 90.5 | AT72: 9.5
AN73: SR19W | AO73: 3 to <10 | AP73: 69 | AQ73: 75 | AR73: 13.5 Min | AS73: 89 | AT73: 11
AN74: SR19W | AO74: 10 to <30 | AP74: 69 | AQ74: 75 | AR74: 13.5 Min | AS74: 89 | AT74: 11
AN75: SR19W | AO75: 3 to <30 | AP75: 69 | AQ75: 75 | AR75: 13.5 Min | AS75: 89 | AT75: 11
AN76: SR19W | AO76: >30 | AP76: 69 | AQ76: 75 | AR76: 13.5 Min | AS76: 89 | AT76: 11
AN77: SP12.5 | AO77: <.3 | AP77: 71 | AQ77: 78 | AR77: 14.5 Min | AS77: 91.5 | AT77: 8.5
AN78: SP12.5 | AO78: .3 to <3 | AP78: 71 | AQ78: 78 | AR78: 14.5 Min | AS78: 90.5 | AT78: 9.5
AN79: SP12.5 | AO79: 3 to <10 | AP79: 71 | AQ79: 75 | AR79: 14.5 Min | AS79: 89 | AT79: 11
AN80: SP12.5 | AO80: 10 to <30 | AP80: 71 | AQ80: 75 | AR80: 14.5 Min | AS80: 89 | AT80: 11
AN81: SP12.5 | AO81: 3 to <30 | AP81: 71 | AQ81: 75 | AR81: 14.5 Min | AS81: 89 | AT81: 11
AN82: SP12.5 | AO82: >30 | AP82: 71 | AQ82: 75 | AR82: 14.5 Min | AS82: 89 | AT82: 11
AN83: SR12.5 | AO83: <.3 | AP83: 71 | AQ83: 78 | AR83: 14.5 Min | AS83: 91.5 | AT83: 8.5
AN84: SR12.5 | AO84: .3 to <3 | AP84: 71 | AQ84: 78 | AR84: 14.5 Min | AS84: 90.5 | AT84: 9.5
AN85: SR12.5 | AO85: 3 to <10 | AP85: 71 | AQ85: 75 | AR85: 14.5 Min | AS85: 89 | AT85: 11
AN86: SR12.5 | AO86: 10 to <30 | AP86: 71 | AQ86: 75 | AR86: 14.5 Min | AS86: 89 | AT86: 11
AN87: SR12.5 | AO87: 3 to <30 | AP87: 71 | AQ87: 75 | AR87: 14.5 Min | AS87: 89 | AT87: 11
AN88: SR12.5 | AO88: >30 | AP88: 71 | AQ88: 75 | AR88: 14.5 Min | AS88: 89 | AT88: 11
AN89: SP9.5 | AO89: <.3 | AP89: 70 | AQ89: 78 | AR89: 15.5 Min | AS89: 91.5 | AT89: 8.5
AN90: SP9.5 | AO90: .3 to <3 | AP90: 65 | AQ90: 78 | AR90: 15.5 Min | AS90: 90.5 | AT90: 9.5
AN91: SP9.5 | AO91: 3 to <10 | AP91: 73 | AQ91: 76 | AR91: 15.5 Min | AS91: 89 | AT91: 11
AN92: SP9.5 | AO92: 10 to <30 | AP92: 73 | AQ92: 76 | AR92: 15.5 Min | AS92: 89 | AT92: 11
AN93: SP9.5 | AO93: 3 to <30 | AP93: 73 | AQ93: 76 | AR93: 15.5 Min | AS93: 89 | AT93: 11
AN94: SP9.5 | AO94: >30 | AP94: 73 | AQ94: 76 | AR94: 15.5 Min | AS94: 89 | AT94: 11
AN95: SR9.5 | AO95: <.3 | AP95: 70 | AQ95: 78 | AR95: 15.5 Min | AS95: 91.5 | AT95: 8.5
AN96: SR9.5 | AO96: .3 to <3 | AP96: 65 | AQ96: 78 | AR96: 15.5 Min | AS96: 90.5 | AT96: 9.5
AN97: SR9.5 | AO97: 3 to <10 | AP97: 73 | AQ97: 76 | AR97: 15.5 Min | AS97: 89 | AT97: 11
AN98: SR9.5 | AO98: 10 to <30 | AP98: 73 | AQ98: 76 | AR98: 15.5 Min | AS98: 89 | AT98: 11
AN99: SR9.5 | AO99: 3 to <30 | AP99: 73 | AQ99: 76 | AR99: 15.5 Min | AS99: 89 | AT99: 11
AN100: SR9.5 | AO100: >30 | AP100: 73 | AQ100: 76 | AR100: 15.5 Min | AS100: 89 | AT100: 11
AN101: SP4.75 | AO101: <.3 | AP101: 70 | AQ101: 78 | AR101: 16.0 Min | AS101: 91.5 | AT101: 8.5
AN102: SP4.75 | AO102: .3 to <3 | AP102: 65 | AQ102: 78 | AR102: 16.0 Min | AS102: 90.5 | AT102: 9.5
AN103: SP4.75 | AO103: 3 to <10 | AP103: 75 | AQ103: 78 | AR103: 16.0 Min | AS103: 89 | AT103: 11
AN104: SP4.75 | AO104: 10 to <30 | AP104: 75 | AQ104: 78 | AR104: 16.0 Min | AS104: 89 | AT104: 11
AN105: SP4.75 | AO105: 3 to <30 | AP105: 75 | AQ105: 78 | AR105: 16.0 Min | AS105: 89 | AT105: 11
AN106: SP4.75 | AO106: >30 | AP106: 75 | AQ106: 78 | AR106: 16.0 Min | AS106: 89 | AT106: 11
AN107: SR4.75 | AO107: <.3 | AP107: 70 | AQ107: 78 | AR107: 16.0 Min | AS107: 91.5 | AT107: 8.5
AN108: SR4.75 | AO108: .3 to <3 | AP108: 65 | AQ108: 78 | AR108: 16.0 Min | AS108: 90.5 | AT108: 9.5
AN109: SR4.75 | AO109: 3 to <10 | AP109: 75 | AQ109: 78 | AR109: 16.0 Min | AS109: 89 | AT109: 11
AN110: SR4.75 | AO110: 10 to <30 | AP110: 75 | AQ110: 78 | AR110: 16.0 Min | AS110: 89 | AT110: 11
AN111: SR4.75 | AO111: 3 to <30 | AP111: 75 | AQ111: 78 | AR111: 16.0 Min | AS111: 89 | AT111: 11
AN112: SR4.75 | AO112: >30 | AP112: 75 | AQ112: 78 | AR112: 16.0 Min | AS112: 89 | AT112: 11
AN113: SMA95 | AO113: 3 to <10 | AP113: NA | AQ113: NA | AR113: 18.0 Min | AS113: NA | AT113: NA
AN114: SMA95 | AO114: 10 to <30 | AP114: NA | AQ114: NA | AR114: 18.0 Min | AS114: NA | AT114: NA
AN115: SMA95 | AO115: 3 to <30 | AP115: NA | AQ115: NA | AR115: 18.0 Min | AS115: NA | AT115: NA
AN116: SMA95 | AO116: > 30 | AP116: NA | AQ116: NA | AR116: 18.0 Min | AS116: NA | AT116: NA
AN117: SMA125 | AO117: 3 to <10 | AP117: NA | AQ117: NA | AR117: 18.0 Min | AS117: NA | AT117: NA
AN118: SMA125 | AO118: 10 to <30 | AP118: NA | AQ118: NA | AR118: 18.0 Min | AS118: NA | AT118: NA
AN119: SMA125 | AO119: 3 to <30 | AP119: NA | AQ119: NA | AR119: 18.0 Min | AS119: NA | AT119: NA
AN120: SMA125 | AO120: > 30 | AP120: NA | AQ120: NA | AR120: 18.0 Min | AS120: NA | AT120: NA
AN121: SP25BC | AO121: <.3 | AP121: 66 | AQ121: 78 | AR121: 12.5 Min | AS121: 91.5 | AT121: 8.5
AN122: SP25BC | AO122: .3 to <3 | AP122: 66 | AQ122: 78 | AR122: 12.5 Min | AS122: 90.5 | AT122: 9.5
AN123: SP25BC | AO123: 3 to <10 | AP123: 66 | AQ123: 75 | AR123: 12.5 Min | AS123: 89 | AT123: 11
AN124: SP25BC | AO124: 10 to <30 | AP124: 66 | AQ124: 75 | AR124: 12.5 Min | AS124: 89 | AT124: 11
AN125: SP25BC | AO125: 3 to <30 | AP125: 66 | AQ125: 75 | AR125: 12.5 Min | AS125: 89 | AT125: 11
AN126: SP25BC | AO126: >30 | AP126: 66 | AQ126: 75 | AR126: 12.5 Min | AS126: 89 | AT126: 11
AN127: SR25BC | AO127: <.3 | AP127: 66 | AQ127: 78 | AR127: 12.5 Min | AS127: 91.5 | AT127: 8.5
AN128: SR25BC | AO128: .3 to <3 | AP128: 66 | AQ128: 78 | AR128: 12.5 Min | AS128: 90.5 | AT128: 9.5
AN129: SR25BC | AO129: 3 to <10 | AP129: 66 | AQ129: 75 | AR129: 12.5 Min | AS129: 89 | AT129: 11
AN130: SR25BC | AO130: 10 to <30 | AP130: 66 | AQ130: 75 | AR130: 12.5 Min | AS130: 89 | AT130: 11
AN131: SR25BC | AO131: 3 to <30 | AP131: 66 | AQ131: 75 | AR131: 12.5 Min | AS131: 89 | AT131: 11
AN132: SR25BC | AO132: >30 | AP132: 66 | AQ132: 75 | AR132: 12.5 Min | AS132: 89 | AT132: 11
AN133: SP19B | AO133: <.3 | AP133: 69 | AQ133: 78 | AR133: 13.5 Min | AS133: 91.5 | AT133: 8.5
AN134: SP19B | AO134: .3 to <3 | AP134: 69 | AQ134: 78 | AR134: 13.5 Min | AS134: 90.5 | AT134: 9.5
AN135: SP19B | AO135: 3 to <10 | AP135: 69 | AQ135: 75 | AR135: 13.5 Min | AS135: 89 | AT135: 11
AN136: SP19B | AO136: 10 to <30 | AP136: 69 | AQ136: 75 | AR136: 13.5 Min | AS136: 89 | AT136: 11
AN137: SP19B | AO137: 3 to <30 | AP137: 69 | AQ137: 75 | AR137: 13.5 Min | AS137: 89 | AT137: 11
AN138: SP19B | AO138: >30 | AP138: 69 | AQ138: 75 | AR138: 13.5 Min | AS138: 89 | AT138: 11
AN139: SR19B | AO139: <.3 | AP139: 69 | AQ139: 78 | AR139: 13.5 Min | AS139: 91.5 | AT139: 8.5
AN140: SR19B | AO140: .3 to <3 | AP140: 69 | AQ140: 78 | AR140: 13.5 Min | AS140: 90.5 | AT140: 9.5
AN141: SR19B | AO141: 3 to <10 | AP141: 69 | AQ141: 75 | AR141: 13.5 Min | AS141: 89 | AT141: 11
AN142: SR19B | AO142: 10 to <30 | AP142: 69 | AQ142: 75 | AR142: 13.5 Min | AS142: 89 | AT142: 11
AN143: SR19B | AO143: 3 to <30 | AP143: 69 | AQ143: 75 | AR143: 13.5 Min | AS143: 89 | AT143: 11
AN144: SR19B | AO144: >30 | AP144: 69 | AQ144: 75 | AR144: 13.5 Min | AS144: 89 | AT144: 11
AN145: WM37.5 | AO145: <.3 | AP145: 64 | AQ145: 78 | AR145: 11.5 Min | AS145: 91.5 | AT145: 8.5
AN146: WM37.5 | AO146: .3 to <3 | AP146: 64 | AQ146: 78 | AR146: 11.5 Min | AS146: 90.5 | AT146: 9.5
AN147: WM37.5 | AO147: 3 to <10 | AP147: 64 | AQ147: 75 | AR147: 11.5 Min | AS147: 89 | AT147: 11
AN148: WM37.5 | AO148: 10 to <30 | AP148: 64 | AQ148: 75 | AR148: 11.5 Min | AS148: 89 | AT148: 11
AN149: WM37.5 | AO149: 3 to <30 | AP149: 64 | AQ149: 75 | AR149: 11.5 Min | AS149: 89 | AT149: 11
AN150: WM37.5 | AO150: >30 | AP150: 64 | AQ150: 75 | AR150: 11.5 Min | AS150: 89 | AT150: 11
AN151: WR37.5 | AO151: <.3 | AP151: 64 | AQ151: 78 | AR151: 11.5 Min | AS151: 91.5 | AT151: 8.5
AN152: WR37.5 | AO152: .3 to <3 | AP152: 64 | AQ152: 78 | AR152: 11.5 Min | AS152: 90.5 | AT152: 9.5
AN153: WR37.5 | AO153: 3 to <10 | AP153: 64 | AQ153: 75 | AR153: 11.5 Min | AS153: 89 | AT153: 11
AN154: WR37.5 | AO154: 10 to <30 | AP154: 64 | AQ154: 75 | AR154: 11.5 Min | AS154: 89 | AT154: 11
AN155: WR37.5 | AO155: 3 to <30 | AP155: 64 | AQ155: 75 | AR155: 11.5 Min | AS155: 89 | AT155: 11
AN156: WR37.5 | AO156: >30 | AP156: 64 | AQ156: 75 | AR156: 11.5 Min | AS156: 89 | AT156: 11
AN157: WM12.5 | AO157: <.3 | AP157: 71 | AQ157: 78 | AR157: 14.5 Min | AS157: 91.5 | AT157: 8.5
AN158: WM12.5 | AO158: .3 to <3 | AP158: 71 | AQ158: 78 | AR158: 14.5 Min | AS158: 90.5 | AT158: 9.5
AN159: WM12.5 | AO159: 3 to <10 | AP159: 71 | AQ159: 75 | AR159: 14.5 Min | AS159: 89 | AT159: 11
AN160: WM12.5 | AO160: 10 to <30 | AP160: 71 | AQ160: 75 | AR160: 14.5 Min | AS160: 89 | AT160: 11
AN161: WM12.5 | AO161: 3 to <30 | AP161: 71 | AQ161: 75 | AR161: 14.5 Min | AS161: 89 | AT161: 11
AN162: WM12.5 | AO162: >30 | AP162: 71 | AQ162: 75 | AR162: 14.5 Min | AS162: 89 | AT162: 11
AN163: WR12.5 | AO163: <.3 | AP163: 71 | AQ163: 78 | AR163: 14.5 Min | AS163: 91.5 | AT163: 8.5
AN164: WR12.5 | AO164: .3 to <3 | AP164: 71 | AQ164: 78 | AR164: 14.5 Min | AS164: 90.5 | AT164: 9.5
AN165: WR12.5 | AO165: 3 to <10 | AP165: 71 | AQ165: 75 | AR165: 14.5 Min | AS165: 89 | AT165: 11
AN166: WR12.5 | AO166: 10 to <30 | AP166: 71 | AQ166: 75 | AR166: 14.5 Min | AS166: 89 | AT166: 11
AN167: WR12.5 | AO167: 3 to <30 | AP167: 71 | AQ167: 75 | AR167: 14.5 Min | AS167: 89 | AT167: 11
AN168: WR12.5 | AO168: >30 | AP168: 71 | AQ168: 75 | AR168: 14.5 Min | AS168: 89 | AT168: 11
AN169: WM9.5 | AO169: <.3 | AP169: 70 | AQ169: 78 | AR169: 15.5 Min | AS169: 91.5 | AT169: 8.5
AN170: WM9.5 | AO170: .3 to <3 | AP170: 65 | AQ170: 78 | AR170: 15.5 Min | AS170: 90.5 | AT170: 9.5
AN171: WM9.5 | AO171: 3 to <10 | AP171: 73 | AQ171: 76 | AR171: 15.5 Min | AS171: 89 | AT171: 11
AN172: WM9.5 | AO172: 10 to <30 | AP172: 73 | AQ172: 76 | AR172: 15.5 Min | AS172: 89 | AT172: 11
AN173: WM9.5 | AO173: 3 to <30 | AP173: 73 | AQ173: 76 | AR173: 15.5 Min | AS173: 89 | AT173: 11
AN174: WM9.5 | AO174: >30 | AP174: 73 | AQ174: 76 | AR174: 15.5 Min | AS174: 89 | AT174: 11
AN175: WR9.5 | AO175: <.3 | AP175: 70 | AQ175: 78 | AR175: 15.5 Min | AS175: 91.5 | AT175: 8.5
AN176: WR9.5 | AO176: .3 to <3 | AP176: 65 | AQ176: 78 | AR176: 15.5 Min | AS176: 90.5 | AT176: 9.5
AN177: WR9.5 | AO177: 3 to <10 | AP177: 73 | AQ177: 76 | AR177: 15.5 Min | AS177: 89 | AT177: 11
AN178: WR9.5 | AO178: 10 to <30 | AP178: 73 | AQ178: 76 | AR178: 15.5 Min | AS178: 89 | AT178: 11
AN179: WR9.5 | AO179: 3 to <30 | AP179: 73 | AQ179: 76 | AR179: 15.5 Min | AS179: 89 | AT179: 11
AN180: WR9.5 | AO180: >30 | AP180: 73 | AQ180: 76 | AR180: 15.5 Min | AS180: 89 | AT180: 11
AN181: WM19B | AO181: <.3 | AP181: 69 | AQ181: 78 | AR181: 13.5 Min | AS181: 91.5 | AT181: 8.5
AN182: WM19B | AO182: .3 to <3 | AP182: 69 | AQ182: 78 | AR182: 13.5 Min | AS182: 90.5 | AT182: 9.5
AN183: WM19B | AO183: 3 to <10 | AP183: 69 | AQ183: 75 | AR183: 13.5 Min | AS183: 89 | AT183: 11
AN184: WM19B | AO184: 10 to <30 | AP184: 69 | AQ184: 75 | AR184: 13.5 Min | AS184: 89 | AT184: 11
AN185: WM19B | AO185: 3 to <30 | AP185: 69 | AQ185: 75 | AR185: 13.5 Min | AS185: 89 | AT185: 11
AN186: WM19B | AO186: >30 | AP186: 69 | AQ186: 75 | AR186: 13.5 Min | AS186: 89 | AT186: 11
AN187: WR19B | AO187: <.3 | AP187: 69 | AQ187: 78 | AR187: 13.5 Min | AS187: 91.5 | AT187: 8.5
AN188: WR19B | AO188: .3 to <3 | AP188: 69 | AQ188: 78 | AR188: 13.5 Min | AS188: 90.5 | AT188: 9.5
AN189: WR19B | AO189: 3 to <10 | AP189: 69 | AQ189: 75 | AR189: 13.5 Min | AS189: 89 | AT189: 11
AN190: WR19B | AO190: 10 to <30 | AP190: 69 | AQ190: 75 | AR190: 13.5 Min | AS190: 89 | AT190: 11
AN191: WR19B | AO191: 3 to <30 | AP191: 69 | AQ191: 75 | AR191: 13.5 Min | AS191: 89 | AT191: 11
AN192: WR19B | AO192: >30 | AP192: 69 | AQ192: 75 | AR192: 13.5 Min | AS192: 89 | AT192: 11
AN193: WM19W | AO193: <.3 | AP193: 69 | AQ193: 78 | AR193: 13.5 Min | AS193: 91.5 | AT193: 8.5
AN194: WM19W | AO194: .3 to <3 | AP194: 69 | AQ194: 78 | AR194: 13.5 Min | AS194: 90.5 | AT194: 9.5
AN195: WM19W | AO195: 3 to <10 | AP195: 69 | AQ195: 75 | AR195: 13.5 Min | AS195: 89 | AT195: 11
AN196: WM19W | AO196: 10 to <30 | AP196: 69 | AQ196: 75 | AR196: 13.5 Min | AS196: 89 | AT196: 11
AN197: WM19W | AO197: 3 to <30 | AP197: 69 | AQ197: 75 | AR197: 13.5 Min | AS197: 89 | AT197: 11
AN198: WM19W | AO198: >30 | AP198: 69 | AQ198: 75 | AR198: 13.5 Min | AS198: 89 | AT198: 11
AN199: WR19W | AO199: <.3 | AP199: 69 | AQ199: 78 | AR199: 13.5 Min | AS199: 91.5 | AT199: 8.5
AN200: WR19W | AO200: .3 to <3 | AP200: 69 | AQ200: 78 | AR200: 13.5 Min | AS200: 90.5 | AT200: 9.5
AN201: WR19W | AO201: 3 to <10 | AP201: 69 | AQ201: 75 | AR201: 13.5 Min | AS201: 89 | AT201: 11
AN202: WR19W | AO202: 10 to <30 | AP202: 69 | AQ202: 75 | AR202: 13.5 Min | AS202: 89 | AT202: 11
AN203: WR19W | AO203: 3 to <30 | AP203: 69 | AQ203: 75 | AR203: 13.5 Min | AS203: 89 | AT203: 11
AN204: WR19W | AO204: >30 | AP204: 69 | AQ204: 75 | AR204: 13.5 Min | AS204: 89 | AT204: 11
... 74 more rows

Sheet AC Charts
B1: =Setup!A2 -> ESB-19
B3: Varying Asphalt Content Charts
C4: Producer; | F4: =Setup!E7 -> 0 | J4: Material Class: | P4: =Setup!E10 -> 0 | T4: Nominal Size: | W4: =Setup!E9 -> 0 | AD4: AC Content | AG4: ='AC Trials'!H41 -> -0.5 | AH4: ='AC Trials'!K41 -> 0 | AI4: ='AC Trials'!N41 -> 0.5 | AJ4: ='AC Trials'!Q41 -> 1
C5: Designed By: | F5: =Setup!E8 -> 0 | J5: Esals: | P5: =Setup!E12 -> 0 | U5: SRL: | W5: =Setup!E11 -> 0 | AD5: Gmb @ Ndes | AG5: ='AC Trials'!H43 ->  | AH5: ='AC Trials'!K43 ->  | AI5: ='AC Trials'!N43 ->  | AJ5: ='AC Trials'!Q43 -> 
C6: Date: | F6: =Setup!E6 -> 00:00:00 | J6: Rap: | P6: =Setup!E17 -> 0 | T6: PG Grade: | W6: =Setup!E14 -> 0 | AD6: Voids @ Ndes | AG6: ='AC Trials'!H44 ->  | AH6: ='AC Trials'!K44 ->  | AI6: ='AC Trials'!N44 ->  | AJ6: ='AC Trials'!Q44 -> 
AD7: Voids @ Nini | AG7: ='AC Trials'!H48 ->  | AH7: ='AC Trials'!K48 ->  | AI7: ='AC Trials'!N48 ->  | AJ7: ='AC Trials'!Q48 -> 
K8: Varying AC Charts | Q8: Click on sheet to set up charts | AD8: Vma | AG8: ='AC Trials'!H45 ->  | AH8: ='AC Trials'!K45 ->  | AI8: ='AC Trials'!N45 ->  | AJ8: ='AC Trials'!Q45 -> 
AD9: VFA | AG9: ='AC Trials'!H46 ->  | AH9: ='AC Trials'!K46 ->  | AI9: ='AC Trials'!N46 ->  | AJ9: ='AC Trials'!Q46 -> 
AD10: D/A | AG10: ='AC Trials'!H50 ->  | AH10: ='AC Trials'!K50 ->  | AI10: ='AC Trials'!N50 ->  | AJ10: ='AC Trials'!Q50 -> 
AG11: Max | AH11: Min
AD12: Gmb | AG12: =MIN(AG5:AJ5)-0.01 -> -0.01 | AH12: =MAX(AG5:AJ5)+0.01 -> 0.01
AD13: Voids @ Ndes | AG13: =MIN(AG6:AJ6)-1 -> -1 | AH13: =MAX(AG6:AJ6)+1 -> 1
AD14: Voids @ Nini | AG14: =MIN(AG7:AJ7)-1 -> -1 | AH14: =MAX(AG7:AJ7)+1 -> 1
AD15: VMA | AG15: =MIN(AG8:AJ8)-1.5 -> -1.5 | AH15: =MAX(AG8:AJ8)+1.5 -> 1.5
AD16: VFA | AG16: =5*ROUND(MIN(AG9:AJ9)/5-1,0) -> -5 | AH16: =5*ROUND(MAX(AE9:AJ9)/5+1,0) -> 5

Sheet Nmax
B1: =Setup!A2 -> ESB-19 | AD1: =Setup!F23 -> Suspension | AF1: Vol Cal. | AG1: =Setup!F20 -> 0
AD2: =Setup!F24 -> 0 | AF2: GsbNdes | AG2: ='Design Agg'!Y22 ->  | AI2: ='Trial Blends'!N42 -> 1 | AJ2: TB selected
B3: Optimum Asphalt Content Compacted to Nmax | AF3: Esals | AG3: =Setup!E12 -> 0 | AI3: =IF(AI2=1,'Agg Blends'!K35,IF(AI2=2,'Agg Blends'!L35,IF(AI2=3,'Agg Blends'!M35))) ->  | AJ3: TB Gsb
C4: Producer; | F4: =Setup!E7 -> 0 | J4: Material Class: | P4: =Setup!E10 -> 0 | T4: Nominal Size: | W4: =Setup!E9 -> 0
C5: Designed By: | F5: =Setup!E8 -> 0 | J5: Esals: | P5: =Setup!E12 -> 0 | U5: SRL: | W5: =Setup!E11 -> 0
C6: Date: | F6: =Setup!E6 -> 00:00:00 | J6: Rap: | P6: =Setup!E17 -> 0 | T6: PG Grade: | W6: =Setup!E14 -> 0
E8: Based on the AC charts, the optimum asphalt @ 4.0% air voids at Ndes will be
A10: Specimens compacted to Nmax | AG10: =IF($AG$3="<.3",6,IF($AG$3=".3 to <3",7,8)) -> 8
AG11: =IF($AG$3="<.3",50,IF($AG$3=".3 to <3",75,100)) -> 100
B12: =U8 -> 0 | D12: Asphalt Content | L12: Samp Ht. | R12: Maximum Theoretical Gravity | AG12: =IF($AG$3="<.3",75,IF($AG$3=".3 to <3",115,160)) -> 160
D13: Dry Weight | F13: =IF(Setup!$F$19="Suspension","Mass Spec. in H2O","Mass Pyc + Specimen + Water") -> Mass Spec. in H2O | J13: SSD Weight | L13: Height @ Nini | N13: Height @ Ndes | P13: Height @ Nmax | R13: Gmb @ Nmax | T13: %Gmm @ Nini | V13: %Gmm @ Ndes | X13: %Gmm @ Nmax
F14: =IF(Setup!#REF!="Suspension","Mass samp+Pyc in H2O","Mass Pyc + Mix + Water") -> 
B15: Spec. 1 | R15: =IF($AD$1="Suspension",ROUND(D15/(J15-F15),3),IF($AD$1="Volumeter",ROUND(D15/(J15-(F15-$AD$2)),3)," ")) ->  | T15: =IF(D15,ROUND(P15/L15*X15,1)," ") ->  | V15: =IF(D15,ROUND(P15/N15*X15,1)," ") ->  | X15: =IF(D15,R15/$X$12*100," ") -> 
B16: Spec. 2 | R16: =IF($AD$1="Suspension",ROUND(D16/(J16-F16),3),IF($AD$1="Volumeter",ROUND(D16/(J16-(F16-$AD$2)),3)," ")) ->  | T16: =IF(D16,ROUND(P16/L16*X16,1)," ") ->  | V16: =IF(D16,ROUND(P16/N16*X16,1)," ") ->  | X16: =IF(D16,R16/$X$12*100," ") -> 
R17: =IF(D15,ROUND(AVERAGE(R15:S16),3),"") ->  | T17: =IF(J15,ROUND(AVERAGE(T15:T16),2),"") ->  | V17: =IF(J15,ROUND(AVERAGE(V15:V16),2),"") ->  | X17: =IF(J15,ROUND(AVERAGE(X15:X16),2),"") -> 
AC18: =T17 ->  | AE18: =IF($AG$3="<.3",91.5,IF($AG$3="0.3 to <3",90.5,89)) -> 89 | AF18: 96 | AG18: 98
AC19: =V17 ->  | AE19: =IF($AG$3="<.3",91.5,IF($AG$3="0.3 to <3",90.5,89)) -> 89 | AF19: 96 | AG19: 98
J20: Properties Calculated @ Ndes | AC20: =X17 ->  | AE20: 89 | AF20: 96 | AG20: 98
J21: Voids | L21: Gmb | N21: VMA | P21: VFA | AE21: 89 | AF21: 96 | AG21: 98
J22: =IF(D15,100-V15," ") ->  | L22: =IF(D15,ROUND(X12*V15/100,3)," ") ->  | N22: =IF(D15,100-((L22*(100-B12))/AI3),"") ->  | P22: =IF(D15,(N22-J22)/N22*100," ") ->  | AE22: 89 | AF22: 96 | AG22: 98
J23: =IF(D16,100-V16," ") ->  | L23: =IF(D16,ROUND(X12*V16/100,3)," ") ->  | N23: =IF(D16,100-((L23*(100-B12))/AI3),"") ->  | P23: =IF(D16,(N23-J23)/N23*100," ") ->  | AE23: 89 | AF23: 96 | AG23: 98
H24: Avg. | J24: =IF(ISTEXT(J22),"",AVERAGE(J22:K23)) ->  | L24: =IF(ISTEXT(L22),"",AVERAGE(L22:M23)) ->  | N24: =IF(ISTEXT(N22),"",AVERAGE(N22:O23)) ->  | P24: =IF(ISTEXT(P22),"",AVERAGE(P22:Q23)) -> 

Sheet Drain Down
B1: =Setup!A2 -> ESB-19
B3: Draindown AASHTO T305
C4: Producer; | F4: =Setup!E7 -> 0 | J4: Material Class: | P4: =Setup!E10 -> 0 | T4: Nominal Size: | W4: =Setup!E9 -> 0
C5: Designed By: | F5: =Setup!E8 -> 0 | J5: Esals: | P5: =Setup!E12 -> 0 | U5: SRL: | W5: =Setup!E11 -> 0
C6: Date: | F6: =Setup!E6 -> 00:00:00 | J6: Rap: | P6: =Setup!E17 -> 0 | T6: PG Grade: | W6: =Setup!E14 -> 0
B8: AASHTO T305 is to be determine for 6.33mm mixes with greater than 7.0% asphalt content and all SMA mixes
J10: Anticipated Plant Production Temperature
J11: Sample No. | O11: 1 | Q11: 2
J12: Temperature of Sample
J13: Initial Wt of Sample
J14: Wt. of sample after 1 hour
J15: Wt. of draindown | O15: =IF(O14,O13-O14,"") ->  | Q15: =IF(Q14,Q13-Q14,"") -> 
J16: % Draindown | O16: =(O15/O13)*100 ->  | Q16: =(Q15/Q13)*100 -> 
J17: Average draindown | O17: =AVERAGE(O16:R16) -> 
J20: Elevated Temperature (+27 F)
J21: Sample No. | O21: 1 | Q21: 2
J22: Temperature of Sample
J23: Initial Wt of Sample
J24: Wt. of sample after 1 hour
J25: Wt. of draindown | O25: =IF(O24,O23-O24,"") ->  | Q25: =IF(Q24,Q23-Q24,"") -> 
J26: % Draindown | O26: =(O25/O23)*100 ->  | Q26: =(Q25/Q23)*100 -> 
J27: Average draindown | O27: =AVERAGE(O26:R26) -> 

Sheet T-283
B1: =Setup!A2 -> ESB-19
B3: AASHTO T 283
C4: Producer; | F4: =Setup!E7 -> 0 | J4: Material Class: | P4: =Setup!E10 -> 0 | T4: Nominal Size: | W4: =Setup!E9 -> 0
C5: Designed By: | F5: =Setup!E8 -> 0 | J5: Esals: | P5: =Setup!E12 -> 0 | U5: SRL: | W5: =Setup!E11 -> 0
C6: Date: | F6: =Setup!E6 -> 00:00:00 | J6: Rap: | P6: =Setup!E17 -> 0 | T6: PG Grade: | W6: =Setup!E14 -> 0
N8: Maximum Theoretical Gravity (Gmm) =
C9: Specimen No. | G9: 1 | J9: 2 | M9: 3 | P9: 4 | S9: 5 | V9: 6
C10: Height of Specimen
C11: Mass in Air
C12: Mass in H2O
C13: Mass at SSD
C14: Bulk Sp. Gr. | G14: =IF(G13,ROUND(G11/(G13-G12),3)," ") ->  | J14: =IF(J13,ROUND(J11/(J13-J12),3)," ") ->  | M14: =IF(M13,ROUND(M11/(M13-M12),3)," ") ->  | P14: =IF(P13,ROUND(P11/(P13-P12),3)," ") ->  | S14: =IF(S13,ROUND(S11/(S13-S12),3)," ") ->  | V14: =IF(V13,ROUND(V11/(V13-V12),3)," ") -> 
C15: Voids | G15: =IF(G13,ROUND(100-(G14/$V$8*100),1)," ") ->  | J15: =IF(J13,ROUND(100-(J14/$V$8*100),1)," ") ->  | M15: =IF(M13,ROUND(100-(M14/$V$8*100),1)," ") ->  | P15: =IF(P13,ROUND(100-(P14/$V$8*100),1)," ") ->  | S15: =IF(S13,ROUND(100-(S14/$V$8*100),1)," ") ->  | V15: =IF(V13,ROUND(100-(V14/$V$8*100),1)," ") -> 
C16: Volume of Air Voids | G16: =IF(G13,(G13-G12)-(G11/$V$8),"") ->  | J16: =IF(J13,(J13-J12)-(J11/$V$8),"") ->  | M16: =IF(M13,(M13-M12)-(M11/$V$8),"") ->  | P16: =IF(P13,(P13-P12)-(P11/$V$8),"") ->  | S16: =IF(S13,(S13-S12)-(S11/$V$8),"") ->  | V16: =IF(V13,(V13-V12)-(V11/$V$8),"") -> 
C18: Group specimens into 2 subsets of 3 specimens each, so the average voids of the 2 subset are approx. equal
G20: Unconditioned Set | P20: Conditioned Set
D21: Specimen No.
D22: Voids | G22: =IF(G21,CHOOSE(G21,$G$15,$J$15,$M$15,$P$15,$S$15,$V$15)," ") ->  | J22: =IF(J21,CHOOSE(J21,$G$15,$J$15,$M$15,$P$15,$S$15,$V$15)," ") ->  | M22: =IF(M21,CHOOSE(M21,$G$15,$J$15,$M15,$P$15,$S$15,$V$15)," ") ->  | P22: =IF(P21,CHOOSE(P21,$G$15,$J$15,$M15,$P$15,$S$15,$V$15)," ") ->  | S22: =IF(S21,CHOOSE(S21,$G$15,$J$15,$M15,$P$15,$S$15,$V$15)," ") ->  | V22: =IF(V21,CHOOSE(V21,$G$15,$J$15,$M15,$P$15,$S$15,$V$15)," ") -> 
D23: Average voids | G23: =IF(ISTEXT(G22),"",AVERAGE(G22:O22)) ->  | P23: =IF(ISTEXT(P22),"",AVERAGE(P22:X22)) -> 
P25: Saturation of Conditioned Set
P27: Conditioned Set
D28: Specimen number | P28: =IF(P21,P21,"") ->  | S28: =IF(S21,S21,"") ->  | V28: =IF(V21,V21,"") -> 
D29: SSD Mass After Partial Vacuum
D30: Volume of Water Absorbed (cc) | P30: =IF(P29,P29-CHOOSE(P21,$G$11,$J$11,$M$11,$P$11,$S$11,$V$11,)," ") ->  | S30: =IF(S29,S29-CHOOSE(S21,$G$11,$J$11,$M$11,$P$11,$S$11,$V$11,)," ") ->  | V30: =IF(V29,V29-CHOOSE(V21,$G$11,$J$11,$M$11,$P$11,$S$11,$V$11,)," ") -> 
E31: % Saturation | P31: =IF(P29,100*P30/CHOOSE(P21,$G$16,$J$16,$M$16,$P$16,$S$16,$V$16,)," ") ->  | S31: =IF(S29,100*S30/CHOOSE(S21,$G$16,$J$16,$M$16,$P$16,$S$16,$V$16,)," ") ->  | V31: =IF(V29,100*V30/CHOOSE(V21,$G$16,$J$16,$M$16,$P$16,$S$16,$V$16,)," ") -> 
G33: Tensile Strength Ratio
G35: Unconditioned Set | P35: Conditioned Set
B36: Specimen No. | G36: =IF(G21,G21,"") ->  | J36: =IF(J21,J21,"") ->  | M36: =IF(M21,M21,"") ->  | P36: =IF(P21,P21,"") ->  | S36: =IF(S21,S21,"") ->  | V36: =IF(V21,V21,"") -> 
B37: Load (lbs)
B38: Tensile Strength (psi) | G38: =IF(G37,2*G37/(CHOOSE(G36,$G$10,$J$10,$M$10,$P$10,$S$10,$V$10,)*3.141592654/25.4*6)," ") ->  | J38: =IF(J37,2*J37/(CHOOSE(J36,$G$10,$J$10,$M$10,$P$10,$S$10,$V$10,)*3.141592654/25.4*6)," ") ->  | M38: =IF(M37,2*M37/(CHOOSE(M36,$G$10,$J$10,$M$10,$P$10,$S$10,$V$10,)*3.141592654/25.4*6)," ") ->  | P38: =IF(P37,2*P37/(CHOOSE(P36,$G$10,$J$10,$M$10,$P$10,$S$10,$V$10,)*3.141592654/25.4*6)," ") ->  | S38: =IF(S37,2*S37/(CHOOSE(S36,$G$10,$J$10,$M$10,$P$10,$S$10,$V$10,)*3.141592654/25.4*6)," ") ->  | V38: =IF(V37,2*V37/(CHOOSE(V36,$G$10,$J$10,$M$10,$P$10,$S$10,$V$10,)*3.141592654/25.4*6)," ") -> 
B39: Average psi | G39: =IF(G37,AVERAGE(G38:O38),"") ->  | P39: =IF(P37,AVERAGE(P38:X38),"") -> 
B40: Coefficient of Variation | G40: =IF(G37,STDEV(G38:O38)/G39," ") ->  | P40: =IF(P37,STDEV(P38:X38)/P39," ") -> 
I42: Tensile Strength Ratio= | O42: =IF(G37,100*(P39/G39)," ") -> 
L44: Visual Observations
G46: Unconditioned Set | P46: Conditioned Set
G47: =IF(G21,G21,"") ->  | J47: =IF(J21,J21,"") ->  | M47: =IF(M21,M21,"") ->  | P47: =IF(P21,P21,"") ->  | S47: =IF(S21,S21,"") ->  | V47: =IF(V21,V21,"") -> 
A48: Visual Damage (0 to 5 rating) | G48: 0 | J48: 0 | M48: 0 | P48: 0 | S48: 0 | V48: 0 | AK48: 0
A49: Cracked / Broken Agg. | G49: No | J49: No | M49: No | P49: No | S49: No | V49: No | AK49: 1 | AM49: Yes
AK50: 2 | AM50: No
AK51: 3
AK52: 4
S53: ` | AK53: 5

Sheet Height Data
B1: =Setup!A2 -> ESB-19 | F1: =Setup!E2 -> 00:00:00
F3: AASHTO T 283
G4: Producer; | J4: =Setup!E7 -> 0 | N4: Material Class: | T4: =Setup!E10 -> 0 | X4: Nominal Size: | AA4: =Setup!E9 -> 0
G5: Designed By: | J5: =Setup!E8 -> 0 | N5: Esals: | T5: =Setup!E12 -> 0 | Y5: SRL: | AA5: =Setup!E11 -> 0
G6: Date: | J6: =Setup!E6 -> 00:00:00 | N6: Rap: | T6: =Setup!E17 -> 0 | X6: PG Grade: | AA6: =Setup!E14 -> 0
C8: Trial Blends | O8: AC Trials | AE8: Nmax
C9: Blend 1 | G9: Blend 2 | K9: Blend 3 | O9: ='Gmm2'!K16 -> -0.5 | Q9: AC | S9: ='Gmm2'!K17 -> 0 | U9: AC | W9: ='Gmm2'!K18 -> 0.5 | Y9: AC | AA9: ='Gmm2'!K19 -> 1 | AC9: AC | AE9: =Nmax!B12 -> 0 | AF9: AC @Nmax
A10: Gyration | C10: 1 | E10: 2 | G10: 1 | I10: 2 | K10: 1 | M10: 2 | O10: 1 | Q10: 2 | S10: 1 | U10: 2 | W10: 1 | Y10: 2 | AA10: 1 | AC10: 2 | AE10: 1 | AG10: 2
A11: 6
A12: 7
A13: 8
A14: 50
A15: 75
A16: 100
A17: 115
A18: 160

Sheet TR 448A
A1: TR-448A (1-15) | E1: JOB MIX FORMULA REPORT | N1: SUPPLIER CODE | R1: MATERIAL CLASS | Y1: PG 46-40 | AA1: 100
G2: PennDOT JMF No. | W2: SP4.75 | X2: L | Y2: PG 52-28 | AA2: 150
N3: Design ESAL'S | W3: SR4.75 | X3: M | Y3: PG 58-28
G4: Year | I4: No. | P4: Aggregate SRL | W4: SP6.33 | X4: G | Y4: PG 64-22 | AA4: PTM 702
G5: Supplier JMF No. | N5: Mixture Final PG Binder Grade | W5: SP9.5 | X5: H | Y5: PG 64-28 | AA5: PTM 757
N6: Asphalt Mix Type | W6: SR9.5 | X6: E | Y6: PG 76-22
H7: No. | N7: Original Approval Date | W7: SP12.5 | Y7: PG 58S-28
W8: SR12.5 | Y8: PG 64S-22
A9: DATE | F9: SPEC | N9: PO | W9: SP19W | Y9: PG 64E-22
W10: SP19B
A11: SUPPLIER NAME | M11: LOCATION | W11: SP19W / SP19B
W12: SR19W | Y12: HMA
A13: BITUMINOUS PLANT TYPE | H13: TONS PER HOUR | N13: ECMS NO. | T13: Mix Time | W13: SR19B | Y13: WMA
T14: Dry | U14: Wet | W14: SR19W / SR19B | Y14: COLD
A15: SR & SEC | E15: CONTRACTOR | M15: LOCATION | W15: SP25B
W16: SP25BC
A17: Material Supplier Code | F17: Material Code | I17: Material Class | L17: % In Mix | O17: Bulk Sp. Gr. | R17: % Absorption | W17: SP25B / SP25BC
W18: SR25B
W19: SR25BC
W20: SR25B / SR25BC
W21: SP37.5
W22: SR37.5
W23: SMA95
W24: SMA125
W25: ATPBC
W26: WM6.33
W27: WM9.5
W28: WR9.5
A29: JOB MIX FORMULA AND DESIGN | W29: WM12.5
C30: AC % | D30: 0.075 | E30: 0.15 | F30: 0.3 | G30: 0.6 | H30: 1.18 | I30: 2.36 | J30: 4.75 | K30: 6.33 | L30: 9.5 | M30: 12.5 | N30: 19 | O30: 25 | P30: 37.5 | Q30: 50 | R30: F/A | S30: Pbe | W30: WR12.5
D31: mm | E31: mm | F31: mm | G31: mm | H31: mm | I31: mm | J31: mm | K31: mm | L31: mm | M31: mm | N31: mm | O31: mm | P31: mm | Q31: mm | W31: WM19W
D32: #200 | E32: #100 | F32: #50 | G32: #30 | H32: #16 | I32: #8 | J32: #4 | K32: 0.25 | L32: 0.375 | M32: 0.5 | N32: 0.75 | O32: 1 | P32: 1.5 | Q32: 2 | W32: WM19B
A33: Design | W33: WM19W / WM19B
A34: % Virgin AC | G34: Virgin AC PG Binder Grade | O34: Asphalt Film Thickness (micron) | R34: =Sheet1!F12 ->  | W34: WR19W
A35: % Reclaimed AC from RAP | G35: Reclaimed Binder Ratio | L35: =ROUND((F35+F36)/C33,2) ->  | W35: WR19B
A36: % Reclaimed AC from RAS | G36: % Draindown at anticipated temperature | W36: WR19W / WR19B
W37: WM25B
A38: MIX CHARACTERISTICS (Gyratory) | W38: WM25BC
A39: Design ESALS | D39: Mold Diameter (mm) | G39: Gyrations @ Nini | I39: Gyrations @ Ndes | K39: Gyrations @ Nmax | M39: %VMA @ Ndes | O39: Max. Sp. Gr. (Gmm) | R39: Ndes Bulk Sp. Gr. (Gmb) | W39: WM25B / WM25BC
W40: WR25B
A41: =IF(ISBLANK(R3),"",R3) ->  | W41: WR25BC
A42: Combine Agg. Gsb | D42: Mass of Specimen | G42: % Voids @ Nini | I42: %Voids @ Ndes | K42: %Voids @ Nmax | M42: %VFA @ Ndes | O42: Max. Density (Lbs./Cu. Ft.) | R42: Ndes Bulk Density (Lbs./Cu. Ft.) | W42: WR25B / WR25BC
W43: WM37.5
O44: =IF(ISBLANK(O41),"",O41*62.245) ->  | R44: =IF(ISBLANK(R41)," ",R41*62.245) ->  | W44: WR37.5
A46: ASPHALT CONTENT TEST METHOD
B47: AC Test Method | E47: Oven Model / Series | K47: Set Temp. | M47: Sample Size | P47: Asphalt C/F | S47: 200 C/F | Y47: <0.3
Y48: .3 to <3
Y49: 3 to <10
A50: TSR DATA | Y50: 10 to <30
B51: AC Supplier | E51: Dry PSI Strength | H51: Wet PSI Strength | K51: TSR Value | M51: Date TSR's were done | Q51: Date of Boil Test | Y51: 3 to <30
K52: =IF(ISBLANK(H52)," ",(H52/E52)*100) ->  | Y52: > 30
K53: =IF(ISBLANK(H53)," ",(H53/E53)*100) -> 
K54: =IF(ISBLANK(H54)," ",(H54/E54)*100) -> 
K55: =IF(ISBLANK(H55)," ",(H55/E55)*100) -> 
K56: =IF(ISBLANK(H56)," ",(H56/E56)*100) -> 
A58: Combined Aggregate Consensus Properties
B59: AASHTO T176 Sand Equivalent | D59: AASHTO T304 Uncompacted Void Content (Fine Aggregate Angularity) | H59: ASTM D5821 Coarse Aggregate Angularity | N59: ASTM D4791 Flat & Elongated | R59: Total % Reclaimed Agg. From RAP and / or RAS
H62: 1-Face Crush | K62: 2-Face Crush | N62: 5:1 | P62: 3:1 SMA only
A65: GRADATION CHART IS PART OF THIS JOB MIX FORMULA
A67: Designed by: | M67: Cert. ID. No. | R67: Date
A69: Submitted by: | M69: Cert. ID. No. | R69: Date
A71: Reviewed by: | M71: Cert. ID. No. | R71: Date

Sheet Sheet1 (hidden)
A2: Sieve Size | B2: JMF %Passing | D2: Asphalt Film Thickness
A4: Max Size Agg | B4: 100 | D4: Surface Area of Agg. | F4: =(2*B4+2*B6+4*B7+8*B8+14*B9+30*B10+60*B11+160*B12)/100 -> 2 | G4: Sq.ft/lb
A6: 4 | B6: ='TR 448A'!J33 -> 0 | D6: Total Volume of AC | F6: =((B16*1000)*(B14/100)/B15) -> 0 | G6: ml
A7: 8 | B7: ='TR 448A'!I33 -> 0
A8: 16 | B8: ='TR 448A'!H33 -> 0 | D8: Volume of abs. AC | F8: =B24/B15 ->  | G8: ml
A9: 30 | B9: ='TR 448A'!G33 -> 0
A10: 50 | B10: ='TR 448A'!F33 -> 0 | D10: Vol. of Effective AC | F10: =F6-F8 ->  | G10: ml
A11: 100 | B11: ='TR 448A'!E33 -> 0
A12: 200 | B12: ='TR 448A'!D33 -> 0 | D12: Film Thickness | F12: =F10/(C23*(B16*1000)*(100-B14)/100)*(1000) ->  | G12: microns
A14: AC | B14: ='TR 448A'!C33 -> 0
A15: Gb | B15: 1.025
A16: Gmb | B16: ='TR 448A'!R41 -> 0
A17: Gsb | B17: ='TR 448A'!A44 -> 0
A18: Gse | B18: =F24 -> 
A23: =(B18-B17) ->  | B23: =(A23/A24)*B15 ->  | C23: =F4/4.8686 -> 0.4107957113 | E23: Max | F23: ='TR 448A'!O41 -> 0
A24: =B17*B18 ->  | B24: =B23*(B16*1000)*(100-B14)/100 ->  | E24: Gse | F24: =ROUND((100-B14)/((100/F23)-(B14/1.025)),3) -> 
E25: AC | F25: =B14 -> 0

Sheet Rap
B1: =Setup!A2 -> ESB-19
B3: Maximum Specific Gravity and Gse of Rap
C4: Producer; | F4: =Setup!E7 -> 0 | J4: Material Class: | P4: =Setup!E10 -> 0 | W4: Nominal Sixe Agg: | AA4: =Setup!E9 -> 0
C5: Designed By: | F5: =Setup!E8 -> 0 | J5: Esals: | P5: =Setup!E12 -> 0 | W5: SRL: | AA5: =Setup!E11 -> 0
C6: Date: | F6: =Setup!E6 -> 00:00:00 | J6: Rap: | P6: =Setup!E17 -> 0 | W6: PG Grade: | AA6: =Setup!E14 -> 0
B8: Maximum Specific Gravity of Rap
D10: Sample No | H10: 1 | J10: 2 | L10: 3 | N10: 4
D11: Dry Wt. of Sample
D12: =IF(Setup!$E$19="Suspension","Mass of Pyc in Water","Mass of Pyc + Water") -> Mass of Pyc + Water | H12: =IF(H11,Setup!$F$20,"") ->  | J12: =IF(J11,Setup!$F$20,"") ->  | L12: =IF(L11,Setup!$F$20,"") ->  | N12: =IF(N11,Setup!$F$20,"") -> 
D13: =IF(Setup!F19="Suspension","Mass samp+Pyc in H2O","Mass Pyc + Mix + Water") -> Mass samp+Pyc in H2O
D14: Vol Voidless Mix | H14: =IF(H13,ROUND(H11+H12-H13,1)," ") ->  | J14: =IF(J13,ROUND(J11+J12-J13,1)," ") ->  | L14: =IF(L13,ROUND(L11+L12-L13,1)," ") ->  | N14: =IF(N13,ROUND(N11+N12-N13,1)," ") -> 
D15: Max Sp Gr of Mix | H15: =IF(H13,ROUND(H11/H14,3)," ") ->  | J15: =IF(J13,ROUND(J11/J14,3)," ") ->  | L15: =IF(L13,ROUND(L11/L14,3)," ") ->  | N15: =IF(N13,ROUND(N11/N14,3)," ") -> 
J16: Average | N16: =IF(H13,AVERAGE(H15:O15),"") -> 
B18: Effective Specific Gravity Rap Aggregate to be used on Agg blend forms
D20: Max. Sp. Gr. Of Rap | H20: =N16 -> 
D21: % AC in Rap
D22: Sp Gr. Of Binder | H22: 1.03
D23: Gse | H23: =IF(H21,(100-H21)/(100/H20-H21/H22),"") ->  | J23: Value to be used on Agg Blend Form
B25: Rap Data
B27: Sieve Size | D27: Rap gradation and Asphalt Content | X27: Average | Z27: Combined Grade | AB27: Proposed JMF
D28: 1 | F28: 2 | H28: 3 | J28: 4 | L28: 5 | N28: 6 | P28: 7 | R28: 8 | T28: 9 | V28: 10
B29: 2" | X29: =IF(D29,AVERAGE(D29:W29),"") -> 
B30: 1 1/2" | X30: =IF(D30,AVERAGE(D30:W30),"") -> 
B31: 1"
B32: 3/4"
B33: 1/2"
B34: 3/8"
B35: #4
B36: #8
B37: #16
B38: #30
B39: #50
B40: #100
B41: #200
B42: Asphalt

Sheet Blend 1
A1: =Setup!A2 -> ESB-19
A3: Blend Sheet 1
A4: Producer; | C4: =Setup!E7 -> 0 | G4: Material Class: | I4: =Setup!E10 -> 0 | L4: Nominal Size: | N4: =Setup!E9 -> 0
A5: Designed By: | C5: =Setup!E8 -> 0 | G5: Esals: | I5: =Setup!E12 -> 0 | L5: SRL: | N5: =Setup!E11 -> 0
A6: Date: | C6: =Setup!E6 -> 00:00:00 | G6: Rap: | I6: =Setup!E17 -> 0 | L6: PG Grade: | N6: =Setup!E14 -> 0
A8: Blend 1
E10: Gmb Specimen
B11: Individual Weights | C11: Cumulative Weights | K11: Total Aggregate Wt
A12: Sieve | D12: ='Agg Blends'!$I$10 -> 0 | E12: ='Agg Blends'!$I$11 -> 0 | F12: ='Agg Blends'!$I$12 -> 0 | G12: ='Agg Blends'!$I$13 -> 0 | H12: ='Agg Blends'!$I$14 -> 0 | I12: ='Agg Blends'!$I$15 -> 0 | J12: ='Agg Blends'!$I$16 -> 0 | S12: 1 | T12: 2 | U12: 3 | V12: 4 | W12: 5 | X12: 6 | Y12: 7
A13: 50 | B13: =C13-C14 -> 0 | C13: =IF(SUM(D13:J13)=0,0,SUM(D13:J13)+$K$26) -> 0 | D13: =S13 -> 0 | E13: 0 | F13: 0 | G13: 0 | H13: 0 | I13: 0 | J13: 0 | K13: Binder % | R13: =(C13/$M$11)*100 ->  | S13: =('Agg Blends'!D20/100)*('Agg Blends'!$K$10/100)*($M$11-$K$26) -> 0 | T13: =('Agg Blends'!E20/100)*('Agg Blends'!$K$11/100)*($M$11-$K$26) -> 0 | U13: =('Agg Blends'!F20/100)*('Agg Blends'!$K$12/100)*($M$11-$K$26) -> 0 | V13: =('Agg Blends'!G20/100)*('Agg Blends'!$K$13/100)*($M$11-$K$26) -> 0 | W13: =('Agg Blends'!H20/100)*('Agg Blends'!$K$14/100)*($M$11-$K$26) -> 0 | X13: =('Agg Blends'!I20/100)*('Agg Blends'!$K$15/100)*($M$11-$K$26) -> 0 | Y13: =('Agg Blends'!J20/100)*('Agg Blends'!$K$16/100)*($M$11-$K$26) -> 0
A14: 37.5 | B14: 0 | C14: 0 | D14: 0 | E14: 0 | F14: 0 | G14: 0 | H14: 0 | I14: 0 | J14: 0 | K14: Agg Wt | L14: =M11 -> 0 | M14: =M11 -> 0 | N14: =M11 -> 0 | O14: =M11 -> 0 | R14: =(C14/$M$11)*100 ->  | S14: =('Agg Blends'!D21/100)*('Agg Blends'!$K$10/100)*($M$11-$K$26) -> 0 | T14: =('Agg Blends'!E21/100)*('Agg Blends'!$K$11/100)*($M$11-$K$26) -> 0 | U14: =('Agg Blends'!F21/100)*('Agg Blends'!$K$12/100)*($M$11-$K$26) -> 0 | V14: =('Agg Blends'!G21/100)*('Agg Blends'!$K$13/100)*($M$11-$K$26) -> 0 | W14: =('Agg Blends'!H21/100)*('Agg Blends'!$K$14/100)*($M$11-$K$26) -> 0 | X14: =('Agg Blends'!I21/100)*('Agg Blends'!$K$15/100)*($M$11-$K$26) -> 0 | Y14: =('Agg Blends'!J21/100)*('Agg Blends'!$K$16/100)*($M$11-$K$26) -> 0
A15: 25 | B15: 0 | C15: 0 | D15: =S15 -> 0 | E15: 0 | F15: 0 | G15: 0 | H15: 0 | I15: 0 | J15: 0 | K15: Binder Wt | L15: =L16-L14 -> 0 | M15: =M16-M14 -> 0 | N15: =N16-N14 -> 0 | O15: =O16-O14 -> 0 | R15: =(C15/$M$11)*100 ->  | S15: =('Agg Blends'!D22/100)*('Agg Blends'!$K$10/100)*($M$11-$K$26) -> 0 | T15: =('Agg Blends'!E22/100)*('Agg Blends'!$K$11/100)*($M$11-$K$26) -> 0 | U15: =('Agg Blends'!F22/100)*('Agg Blends'!$K$12/100)*($M$11-$K$26) -> 0 | V15: =('Agg Blends'!G22/100)*('Agg Blends'!$K$13/100)*($M$11-$K$26) -> 0 | W15: =('Agg Blends'!H22/100)*('Agg Blends'!$K$14/100)*($M$11-$K$26) -> 0 | X15: =('Agg Blends'!I22/100)*('Agg Blends'!$K$15/100)*($M$11-$K$26) -> 0 | Y15: =('Agg Blends'!J22/100)*('Agg Blends'!$K$16/100)*($M$11-$K$26) -> 0
A16: 19 | B16: 0 | C16: 0 | D16: 0 | E16: 0 | F16: 0 | G16: 0 | H16: 0 | I16: 0 | J16: 0 | K16: Total Wt | L16: =(L14/(100-L13))*100 -> 0 | M16: =(M14/(100-M13))*100 -> 0 | N16: =(N14/(100-N13))*100 -> 0 | O16: =(O14/(100-O13))*100 -> 0 | S16: =('Agg Blends'!D23/100)*('Agg Blends'!$K$10/100)*($M$11-$K$26) -> 0 | T16: =('Agg Blends'!E23/100)*('Agg Blends'!$K$11/100)*($M$11-$K$26) -> 0 | U16: =('Agg Blends'!F23/100)*('Agg Blends'!$K$12/100)*($M$11-$K$26) -> 0 | V16: =('Agg Blends'!G23/100)*('Agg Blends'!$K$13/100)*($M$11-$K$26) -> 0 | W16: =('Agg Blends'!H23/100)*('Agg Blends'!$K$14/100)*($M$11-$K$26) -> 0 | X16: =('Agg Blends'!I23/100)*('Agg Blends'!$K$15/100)*($M$11-$K$26) -> 0 | Y16: =('Agg Blends'!J23/100)*('Agg Blends'!$K$16/100)*($M$11-$K$26) -> 0
A17: 12.5 | B17: 0 | C17: 0 | D17: 0 | E17: 0 | F17: 0 | G17: 0 | H17: 0 | I17: 0 | J17: 0 | S17: =('Agg Blends'!D24/100)*('Agg Blends'!$K$10/100)*($M$11-$K$26) -> 0 | T17: =('Agg Blends'!E24/100)*('Agg Blends'!$K$11/100)*($M$11-$K$26) -> 0 | U17: =('Agg Blends'!F24/100)*('Agg Blends'!$K$12/100)*($M$11-$K$26) -> 0 | V17: =('Agg Blends'!G24/100)*('Agg Blends'!$K$13/100)*($M$11-$K$26) -> 0 | W17: =('Agg Blends'!H24/100)*('Agg Blends'!$K$14/100)*($M$11-$K$26) -> 0 | X17: =('Agg Blends'!I24/100)*('Agg Blends'!$K$15/100)*($M$11-$K$26) -> 0 | Y17: =('Agg Blends'!J24/100)*('Agg Blends'!$K$16/100)*($M$11-$K$26) -> 0
A18: 9.5 | B18: =C18-C19 -> 0 | C18: 0 | D18: 0 | E18: 0 | F18: 0 | G18: 0 | H18: 0 | I18: 0 | J18: 0 | S18: =('Agg Blends'!D25/100)*('Agg Blends'!$K$10/100)*($M$11-$K$26) -> 0 | T18: =('Agg Blends'!E25/100)*('Agg Blends'!$K$11/100)*($M$11-$K$26) -> 0 | U18: =('Agg Blends'!F25/100)*('Agg Blends'!$K$12/100)*($M$11-$K$26) -> 0 | V18: =('Agg Blends'!G25/100)*('Agg Blends'!$K$13/100)*($M$11-$K$26) -> 0 | W18: =('Agg Blends'!H25/100)*('Agg Blends'!$K$14/100)*($M$11-$K$26) -> 0 | X18: =('Agg Blends'!I25/100)*('Agg Blends'!$K$15/100)*($M$11-$K$26) -> 0 | Y18: =('Agg Blends'!J25/100)*('Agg Blends'!$K$16/100)*($M$11-$K$26) -> 0
A19: 6.33 | B19: =C19-C20 -> 0 | C19: 0 | D19: =S19 -> 0 | E19: =T19 -> 0 | F19: =U19 -> 0 | G19: =V19 -> 0 | H19: =W19 -> 0 | I19: =X19 -> 0 | J19: =Y19 -> 0 | S19: =('Agg Blends'!D26/100)*('Agg Blends'!$K$10/100)*($M$11-$K$26) -> 0 | T19: =('Agg Blends'!E26/100)*('Agg Blends'!$K$11/100)*($M$11-$K$26) -> 0 | U19: =('Agg Blends'!F26/100)*('Agg Blends'!$K$12/100)*($M$11-$K$26) -> 0 | V19: =('Agg Blends'!G26/100)*('Agg Blends'!$K$13/100)*($M$11-$K$26) -> 0 | W19: =('Agg Blends'!H26/100)*('Agg Blends'!$K$14/100)*($M$11-$K$26) -> 0 | X19: =('Agg Blends'!I26/100)*('Agg Blends'!$K$15/100)*($M$11-$K$26) -> 0 | Y19: =('Agg Blends'!J26/100)*('Agg Blends'!$K$16/100)*($M$11-$K$26) -> 0
A20: 4.75 | B20: 0 | C20: 0 | D20: 0 | E20: 0 | F20: 0 | G20: 0 | H20: 0 | I20: 0 | J20: 0 | R20: =(C20/$M$11)*100 ->  | S20: =('Agg Blends'!D27/100)*('Agg Blends'!$K$10/100)*($M$11-$K$26) -> 0 | T20: =('Agg Blends'!E27/100)*('Agg Blends'!$K$11/100)*($M$11-$K$26) -> 0 | U20: =('Agg Blends'!F27/100)*('Agg Blends'!$K$12/100)*($M$11-$K$26) -> 0 | V20: =('Agg Blends'!G27/100)*('Agg Blends'!$K$13/100)*($M$11-$K$26) -> 0 | W20: =('Agg Blends'!H27/100)*('Agg Blends'!$K$14/100)*($M$11-$K$26) -> 0 | X20: =('Agg Blends'!I27/100)*('Agg Blends'!$K$15/100)*($M$11-$K$26) -> 0 | Y20: =('Agg Blends'!J27/100)*('Agg Blends'!$K$16/100)*($M$11-$K$26) -> 0
A21: 2.36 | B21: 0 | C21: 0 | D21: 0 | E21: 0 | F21: 0 | G21: 0 | H21: 0 | I21: 0 | J21: 0 | S21: =('Agg Blends'!D28/100)*('Agg Blends'!$K$10/100)*($M$11-$K$26) -> 0 | T21: =('Agg Blends'!E28/100)*('Agg Blends'!$K$11/100)*($M$11-$K$26) -> 0 | U21: =('Agg Blends'!F28/100)*('Agg Blends'!$K$12/100)*($M$11-$K$26) -> 0 | V21: =('Agg Blends'!G28/100)*('Agg Blends'!$K$13/100)*($M$11-$K$26) -> 0 | W21: =('Agg Blends'!H28/100)*('Agg Blends'!$K$14/100)*($M$11-$K$26) -> 0 | X21: =('Agg Blends'!I28/100)*('Agg Blends'!$K$15/100)*($M$11-$K$26) -> 0 | Y21: =('Agg Blends'!J28/100)*('Agg Blends'!$K$16/100)*($M$11-$K$26) -> 0
A22: 1.18 | B22: 0 | C22: 0 | D22: 0 | E22: 0 | F22: 0 | G22: 0 | H22: 0 | I22: 0 | J22: 0 | S22: =('Agg Blends'!D29/100)*('Agg Blends'!$K$10/100)*($M$11-$K$26) -> 0 | T22: =('Agg Blends'!E29/100)*('Agg Blends'!$K$11/100)*($M$11-$K$26) -> 0 | U22: =('Agg Blends'!F29/100)*('Agg Blends'!$K$12/100)*($M$11-$K$26) -> 0 | V22: =('Agg Blends'!G29/100)*('Agg Blends'!$K$13/100)*($M$11-$K$26) -> 0 | W22: =('Agg Blends'!H29/100)*('Agg Blends'!$K$14/100)*($M$11-$K$26) -> 0 | X22: =('Agg Blends'!I29/100)*('Agg Blends'!$K$15/100)*($M$11-$K$26) -> 0 | Y22: =('Agg Blends'!J29/100)*('Agg Blends'!$K$16/100)*($M$11-$K$26) -> 0
A23: 0.6 | B23: 0 | C23: 0 | D23: 0 | E23: 0 | F23: 0 | G23: 0 | H23: 0 | I23: 0 | J23: 0 | S23: =('Agg Blends'!D30/100)*('Agg Blends'!$K$10/100)*($M$11-$K$26) -> 0 | T23: =('Agg Blends'!E30/100)*('Agg Blends'!$K$11/100)*($M$11-$K$26) -> 0 | U23: =('Agg Blends'!F30/100)*('Agg Blends'!$K$12/100)*($M$11-$K$26) -> 0 | V23: =('Agg Blends'!G30/100)*('Agg Blends'!$K$13/100)*($M$11-$K$26) -> 0 | W23: =('Agg Blends'!H30/100)*('Agg Blends'!$K$14/100)*($M$11-$K$26) -> 0 | X23: =('Agg Blends'!I30/100)*('Agg Blends'!$K$15/100)*($M$11-$K$26) -> 0 | Y23: =('Agg Blends'!J30/100)*('Agg Blends'!$K$16/100)*($M$11-$K$26) -> 0
A24: 0.3 | B24: 0 | C24: 0 | D24: 0 | E24: 0 | F24: 0 | G24: 0 | H24: 0 | I24: 0 | J24: 0 | S24: =('Agg Blends'!D31/100)*('Agg Blends'!$K$10/100)*($M$11-$K$26) -> 0 | T24: =('Agg Blends'!E31/100)*('Agg Blends'!$K$11/100)*($M$11-$K$26) -> 0 | U24: =('Agg Blends'!F31/100)*('Agg Blends'!$K$12/100)*($M$11-$K$26) -> 0 | V24: =('Agg Blends'!G31/100)*('Agg Blends'!$K$13/100)*($M$11-$K$26) -> 0 | W24: =('Agg Blends'!H31/100)*('Agg Blends'!$K$14/100)*($M$11-$K$26) -> 0 | X24: =('Agg Blends'!I31/100)*('Agg Blends'!$K$15/100)*($M$11-$K$26) -> 0 | Y24: =('Agg Blends'!J31/100)*('Agg Blends'!$K$16/100)*($M$11-$K$26) -> 0
A25: 0.15 | B25: =C25-C26 -> 0 | C25: 0 | D25: 0 | E25: 0 | F25: 0 | G25: 0 | H25: 0 | I25: 0 | J25: 0 | K25: Baghouse #200 | S25: =('Agg Blends'!D32/100)*('Agg Blends'!$K$10/100)*($M$11-$K$26) -> 0 | T25: =('Agg Blends'!E32/100)*('Agg Blends'!$K$11/100)*($M$11-$K$26) -> 0 | U25: =('Agg Blends'!F32/100)*('Agg Blends'!$K$12/100)*($M$11-$K$26) -> 0 | V25: =('Agg Blends'!G32/100)*('Agg Blends'!$K$13/100)*($M$11-$K$26) -> 0 | W25: =('Agg Blends'!H32/100)*('Agg Blends'!$K$14/100)*($M$11-$K$26) -> 0 | X25: =('Agg Blends'!I32/100)*('Agg Blends'!$K$15/100)*($M$11-$K$26) -> 0 | Y25: =('Agg Blends'!J32/100)*('Agg Blends'!$K$16/100)*($M$11-$K$26) -> 0
A26: 0.075 | B26: =C26 -> 0 | C26: 0 | D26: 0 | E26: 0 | F26: 0 | G26: 0 | H26: 0 | I26: 0 | J26: 0 | K26: =('Agg Blends'!K34/100)*($M$11) -> 0 | S26: =('Agg Blends'!D33/100)*('Agg Blends'!$K$10/100)*($M$11-$K$26) -> 0 | T26: =('Agg Blends'!E33/100)*('Agg Blends'!$K$11/100)*($M$11-$K$26) -> 0 | U26: =('Agg Blends'!F33/100)*('Agg Blends'!$K$12/100)*($M$11-$K$26) -> 0 | V26: =('Agg Blends'!G33/100)*('Agg Blends'!$K$13/100)*($M$11-$K$26) -> 0 | W26: =('Agg Blends'!H33/100)*('Agg Blends'!$K$14/100)*($M$11-$K$26) -> 0 | X26: =('Agg Blends'!I33/100)*('Agg Blends'!$K$15/100)*($M$11-$K$26) -> 0 | Y26: =('Agg Blends'!J33/100)*('Agg Blends'!$K$16/100)*($M$11-$K$26) -> 0
E30: Gmm Specimen
B31: Individual Weights | C31: Cumulative Weights | K31: Total Aggregate Wt
A32: Sieve | D32: ='Agg Blends'!$I$10 -> 0 | E32: ='Agg Blends'!$I$11 -> 0 | F32: ='Agg Blends'!$I$12 -> 0 | G32: ='Agg Blends'!$I$13 -> 0 | H32: ='Agg Blends'!$I$14 -> 0 | I32: ='Agg Blends'!$I$15 -> 0 | J32: ='Agg Blends'!$I$15 -> 0 | S32: 1 | T32: 2 | U32: 3 | V32: 4 | W32: 5 | X32: 6 | Y32: 7
A33: 50 | B33: =C33-C34 -> 0 | C33: =IF(SUM(D33:J33)=0,0,SUM(D33:J33)+$K$46) -> 0 | D33: =S33 -> 0 | E33: 0 | F33: 0 | G33: 0 | H33: 0 | I33: 0 | J33: 0 | K33: Binder % | R33: =(C33/$M$31)*100 ->  | S33: =('Agg Blends'!D20/100)*('Agg Blends'!$K$10/100)*($M$31-$K$46) -> 0 | T33: =('Agg Blends'!E20/100)*('Agg Blends'!$K$11/100)*($M$31-$K$46) -> 0 | U33: =('Agg Blends'!F20/100)*('Agg Blends'!$K$12/100)*($M$31-$K$46) -> 0 | V33: =('Agg Blends'!G20/100)*('Agg Blends'!$K$13/100)*($M$31-$K$46) -> 0 | W33: =('Agg Blends'!H20/100)*('Agg Blends'!$K$14/100)*($M$31-$K$46) -> 0 | X33: =('Agg Blends'!I20/100)*('Agg Blends'!$K$15/100)*($M$31-$K$46) -> 0 | Y33: =('Agg Blends'!J20/100)*('Agg Blends'!$K$16/100)*($M$31-$K$46) -> 0
A34: 37.5 | B34: 0 | C34: =IF(SUM(D34:J34)=0,0,SUM(D34:J34)+$K$46) -> 0 | D34: 0 | E34: 0 | F34: 0 | G34: 0 | H34: 0 | I34: 0 | J34: 0 | K34: Agg Wt | L34: =M31 -> 0 | M34: =M31 -> 0 | N34: =M31 -> 0 | O34: =M31 -> 0 | R34: =(C34/$M$31)*100 ->  | S34: =('Agg Blends'!D21/100)*('Agg Blends'!$K$10/100)*($M$31-$K$46) -> 0 | T34: =('Agg Blends'!E21/100)*('Agg Blends'!$K$11/100)*($M$31-$K$46) -> 0 | U34: =('Agg Blends'!F21/100)*('Agg Blends'!$K$12/100)*($M$31-$K$46) -> 0 | V34: =('Agg Blends'!G21/100)*('Agg Blends'!$K$13/100)*($M$31-$K$46) -> 0 | W34: =('Agg Blends'!H21/100)*('Agg Blends'!$K$14/100)*($M$31-$K$46) -> 0 | X34: =('Agg Blends'!I21/100)*('Agg Blends'!$K$15/100)*($M$31-$K$46) -> 0 | Y34: =('Agg Blends'!J21/100)*('Agg Blends'!$K$16/100)*($M$31-$K$46) -> 0
A35: 25 | B35: 0 | C35: 0 | D35: 0 | E35: 0 | F35: 0 | G35: 0 | H35: 0 | I35: 0 | J35: 0 | K35: Binder Wt | L35: =L36-L34 -> 0 | M35: =M36-M34 -> 0 | N35: =N36-N34 -> 0 | O35: =O36-O34 -> 0 | S35: =('Agg Blends'!D22/100)*('Agg Blends'!$K$10/100)*($M$31-$K$46) -> 0 | T35: =('Agg Blends'!E22/100)*('Agg Blends'!$K$11/100)*($M$31-$K$46) -> 0 | U35: =('Agg Blends'!F22/100)*('Agg Blends'!$K$12/100)*($M$31-$K$46) -> 0 | V35: =('Agg Blends'!G22/100)*('Agg Blends'!$K$13/100)*($M$31-$K$46) -> 0 | W35: =('Agg Blends'!H22/100)*('Agg Blends'!$K$14/100)*($M$31-$K$46) -> 0 | X35: =('Agg Blends'!I22/100)*('Agg Blends'!$K$15/100)*($M$31-$K$46) -> 0 | Y35: =('Agg Blends'!J22/100)*('Agg Blends'!$K$16/100)*($M$31-$K$46) -> 0
A36: 19 | B36: 0 | C36: 0 | D36: 0 | E36: 0 | F36: 0 | G36: 0 | H36: 0 | I36: 0 | J36: 0 | K36: Total Wt | L36: =(L34/(100-L33))*100 -> 0 | M36: =(M34/(100-M33))*100 -> 0 | N36: =(N34/(100-N33))*100 -> 0 | O36: =(O34/(100-O33))*100 -> 0 | S36: =('Agg Blends'!D23/100)*('Agg Blends'!$K$10/100)*($M$31-$K$46) -> 0 | T36: =('Agg Blends'!E23/100)*('Agg Blends'!$K$11/100)*($M$31-$K$46) -> 0 | U36: =('Agg Blends'!F23/100)*('Agg Blends'!$K$12/100)*($M$31-$K$46) -> 0 | V36: =('Agg Blends'!G23/100)*('Agg Blends'!$K$13/100)*($M$31-$K$46) -> 0 | W36: =('Agg Blends'!H23/100)*('Agg Blends'!$K$14/100)*($M$31-$K$46) -> 0 | X36: =('Agg Blends'!I23/100)*('Agg Blends'!$K$15/100)*($M$31-$K$46) -> 0 | Y36: =('Agg Blends'!J23/100)*('Agg Blends'!$K$16/100)*($M$31-$K$46) -> 0
A37: 12.5 | B37: 0 | C37: 0 | D37: 0 | E37: 0 | F37: 0 | G37: 0 | H37: 0 | I37: 0 | J37: 0 | S37: =('Agg Blends'!D24/100)*('Agg Blends'!$K$10/100)*($M$31-$K$46) -> 0 | T37: =('Agg Blends'!E24/100)*('Agg Blends'!$K$11/100)*($M$31-$K$46) -> 0 | U37: =('Agg Blends'!F24/100)*('Agg Blends'!$K$12/100)*($M$31-$K$46) -> 0 | V37: =('Agg Blends'!G24/100)*('Agg Blends'!$K$13/100)*($M$31-$K$46) -> 0 | W37: =('Agg Blends'!H24/100)*('Agg Blends'!$K$14/100)*($M$31-$K$46) -> 0 | X37: =('Agg Blends'!I24/100)*('Agg Blends'!$K$15/100)*($M$31-$K$46) -> 0 | Y37: =('Agg Blends'!J24/100)*('Agg Blends'!$K$16/100)*($M$31-$K$46) -> 0
A38: 9.5 | B38: =C38-C39 -> 0 | C38: =IF(SUM(D38:J38)=0,0,SUM(D38:J38)+$K$46) -> 0 | D38: 0 | E38: 0 | F38: 0 | G38: 0 | H38: 0 | I38: 0 | J38: 0 | R38: =(C38/$M$31)*100 ->  | S38: =('Agg Blends'!D25/100)*('Agg Blends'!$K$10/100)*($M$31-$K$46) -> 0 | T38: =('Agg Blends'!E25/100)*('Agg Blends'!$K$11/100)*($M$31-$K$46) -> 0 | U38: =('Agg Blends'!F25/100)*('Agg Blends'!$K$12/100)*($M$31-$K$46) -> 0 | V38: =('Agg Blends'!G25/100)*('Agg Blends'!$K$13/100)*($M$31-$K$46) -> 0 | W38: =('Agg Blends'!H25/100)*('Agg Blends'!$K$14/100)*($M$31-$K$46) -> 0 | X38: =('Agg Blends'!I25/100)*('Agg Blends'!$K$15/100)*($M$31-$K$46) -> 0 | Y38: =('Agg Blends'!J25/100)*('Agg Blends'!$K$16/100)*($M$31-$K$46) -> 0
A39: 6.33 | B39: 0 | C39: =IF(SUM(D39:J39)=0,0,SUM(D39:J39)+$K$46) -> 0 | D39: =S39 -> 0 | E39: =T39 -> 0 | F39: =U39 -> 0 | G39: =V39 -> 0 | H39: =W39 -> 0 | I39: =X39 -> 0 | J39: =Y39 -> 0 | R39: =(C39/$M$31)*100 ->  | S39: =('Agg Blends'!D26/100)*('Agg Blends'!$K$10/100)*($M$31-$K$46) -> 0 | T39: =('Agg Blends'!E26/100)*('Agg Blends'!$K$11/100)*($M$31-$K$46) -> 0 | U39: =('Agg Blends'!F26/100)*('Agg Blends'!$K$12/100)*($M$31-$K$46) -> 0 | V39: =('Agg Blends'!G26/100)*('Agg Blends'!$K$13/100)*($M$31-$K$46) -> 0 | W39: =('Agg Blends'!H26/100)*('Agg Blends'!$K$14/100)*($M$31-$K$46) -> 0 | X39: =('Agg Blends'!I26/100)*('Agg Blends'!$K$15/100)*($M$31-$K$46) -> 0 | Y39: =('Agg Blends'!J26/100)*('Agg Blends'!$K$16/100)*($M$31-$K$46) -> 0
A40: 4.75 | B40: 0 | C40: 0 | D40: 0 | E40: 0 | F40: 0 | G40: 0 | H40: 0 | I40: 0 | J40: 0 | S40: =('Agg Blends'!D27/100)*('Agg Blends'!$K$10/100)*($M$31-$K$46) -> 0 | T40: =('Agg Blends'!E27/100)*('Agg Blends'!$K$11/100)*($M$31-$K$46) -> 0 | U40: =('Agg Blends'!F27/100)*('Agg Blends'!$K$12/100)*($M$31-$K$46) -> 0 | V40: =('Agg Blends'!G27/100)*('Agg Blends'!$K$13/100)*($M$31-$K$46) -> 0 | W40: =('Agg Blends'!H27/100)*('Agg Blends'!$K$14/100)*($M$31-$K$46) -> 0 | X40: =('Agg Blends'!I27/100)*('Agg Blends'!$K$15/100)*($M$31-$K$46) -> 0 | Y40: =('Agg Blends'!J27/100)*('Agg Blends'!$K$16/100)*($M$31-$K$46) -> 0
A41: 2.36 | B41: 0 | C41: 0 | D41: 0 | E41: 0 | F41: 0 | G41: 0 | H41: 0 | I41: 0 | J41: 0 | S41: =('Agg Blends'!D28/100)*('Agg Blends'!$K$10/100)*($M$31-$K$46) -> 0 | T41: =('Agg Blends'!E28/100)*('Agg Blends'!$K$11/100)*($M$31-$K$46) -> 0 | U41: =('Agg Blends'!F28/100)*('Agg Blends'!$K$12/100)*($M$31-$K$46) -> 0 | V41: =('Agg Blends'!G28/100)*('Agg Blends'!$K$13/100)*($M$31-$K$46) -> 0 | W41: =('Agg Blends'!H28/100)*('Agg Blends'!$K$14/100)*($M$31-$K$46) -> 0 | X41: =('Agg Blends'!I28/100)*('Agg Blends'!$K$15/100)*($M$31-$K$46) -> 0 | Y41: =('Agg Blends'!J28/100)*('Agg Blends'!$K$16/100)*($M$31-$K$46) -> 0
A42: 1.18 | B42: 0 | C42: 0 | D42: 0 | E42: 0 | F42: 0 | G42: 0 | H42: 0 | I42: 0 | J42: 0 | S42: =('Agg Blends'!D29/100)*('Agg Blends'!$K$10/100)*($M$31-$K$46) -> 0 | T42: =('Agg Blends'!E29/100)*('Agg Blends'!$K$11/100)*($M$31-$K$46) -> 0 | U42: =('Agg Blends'!F29/100)*('Agg Blends'!$K$12/100)*($M$31-$K$46) -> 0 | V42: =('Agg Blends'!G29/100)*('Agg Blends'!$K$13/100)*($M$31-$K$46) -> 0 | W42: =('Agg Blends'!H29/100)*('Agg Blends'!$K$14/100)*($M$31-$K$46) -> 0 | X42: =('Agg Blends'!I29/100)*('Agg Blends'!$K$15/100)*($M$31-$K$46) -> 0 | Y42: =('Agg Blends'!J29/100)*('Agg Blends'!$K$16/100)*($M$31-$K$46) -> 0
A43: 0.6 | B43: 0 | C43: 0 | D43: 0 | E43: 0 | F43: 0 | G43: 0 | H43: 0 | I43: 0 | J43: 0 | S43: =('Agg Blends'!D30/100)*('Agg Blends'!$K$10/100)*($M$31-$K$46) -> 0 | T43: =('Agg Blends'!E30/100)*('Agg Blends'!$K$11/100)*($M$31-$K$46) -> 0 | U43: =('Agg Blends'!F30/100)*('Agg Blends'!$K$12/100)*($M$31-$K$46) -> 0 | V43: =('Agg Blends'!G30/100)*('Agg Blends'!$K$13/100)*($M$31-$K$46) -> 0 | W43: =('Agg Blends'!H30/100)*('Agg Blends'!$K$14/100)*($M$31-$K$46) -> 0 | X43: =('Agg Blends'!I30/100)*('Agg Blends'!$K$15/100)*($M$31-$K$46) -> 0 | Y43: =('Agg Blends'!J30/100)*('Agg Blends'!$K$16/100)*($M$31-$K$46) -> 0
A44: 0.3 | B44: 0 | C44: 0 | D44: 0 | E44: 0 | F44: 0 | G44: 0 | H44: 0 | I44: 0 | J44: 0 | S44: =('Agg Blends'!D31/100)*('Agg Blends'!$K$10/100)*($M$31-$K$46) -> 0 | T44: =('Agg Blends'!E31/100)*('Agg Blends'!$K$11/100)*($M$31-$K$46) -> 0 | U44: =('Agg Blends'!F31/100)*('Agg Blends'!$K$12/100)*($M$31-$K$46) -> 0 | V44: =('Agg Blends'!G31/100)*('Agg Blends'!$K$13/100)*($M$31-$K$46) -> 0 | W44: =('Agg Blends'!H31/100)*('Agg Blends'!$K$14/100)*($M$31-$K$46) -> 0 | X44: =('Agg Blends'!I31/100)*('Agg Blends'!$K$15/100)*($M$31-$K$46) -> 0 | Y44: =('Agg Blends'!J31/100)*('Agg Blends'!$K$16/100)*($M$31-$K$46) -> 0
A45: 0.15 | B45: =C45-C46 -> 0 | C45: 0 | D45: 0 | E45: 0 | F45: 0 | G45: 0 | H45: 0 | I45: 0 | J45: 0 | K45: Baghouse #200 | S45: =('Agg Blends'!D32/100)*('Agg Blends'!$K$10/100)*($M$31-$K$46) -> 0 | T45: =('Agg Blends'!E32/100)*('Agg Blends'!$K$11/100)*($M$31-$K$46) -> 0 | U45: =('Agg Blends'!F32/100)*('Agg Blends'!$K$12/100)*($M$31-$K$46) -> 0 | V45: =('Agg Blends'!G32/100)*('Agg Blends'!$K$13/100)*($M$31-$K$46) -> 0 | W45: =('Agg Blends'!H32/100)*('Agg Blends'!$K$14/100)*($M$31-$K$46) -> 0 | X45: =('Agg Blends'!I32/100)*('Agg Blends'!$K$15/100)*($M$31-$K$46) -> 0 | Y45: =('Agg Blends'!J32/100)*('Agg Blends'!$K$16/100)*($M$31-$K$46) -> 0
A46: 0.075 | B46: =C46 -> 0 | C46: 0 | D46: 0 | E46: 0 | F46: 0 | G46: 0 | H46: 0 | I46: 0 | J46: 0 | K46: =('Agg Blends'!K34/100)*($M$31) -> 0 | S46: =('Agg Blends'!D33/100)*('Agg Blends'!$K$10/100)*($M$31-$K$46) -> 0 | T46: =('Agg Blends'!E33/100)*('Agg Blends'!$K$11/100)*($M$31-$K$46) -> 0 | U46: =('Agg Blends'!F33/100)*('Agg Blends'!$K$12/100)*($M$31-$K$46) -> 0 | V46: =('Agg Blends'!G33/100)*('Agg Blends'!$K$13/100)*($M$31-$K$46) -> 0 | W46: =('Agg Blends'!H33/100)*('Agg Blends'!$K$14/100)*($M$31-$K$46) -> 0 | X46: =('Agg Blends'!I33/100)*('Agg Blends'!$K$15/100)*($M$31-$K$46) -> 0 | Y46: =('Agg Blends'!J33/100)*('Agg Blends'!$K$16/100)*($M$31-$K$46) -> 0

Sheet Blend 2
A1: =Setup!A2 -> ESB-19
A3: Blend Sheet 2
A4: Producer; | C4: =Setup!E7 -> 0 | G4: Material Class: | I4: =Setup!E10 -> 0 | L4: Nominal Size: | N4: =Setup!E9 -> 0
A5: Designed By: | C5: =Setup!E8 -> 0 | G5: Esals: | I5: =Setup!E12 -> 0 | L5: SRL: | N5: =Setup!E11 -> 0
A6: Date: | C6: =Setup!E6 -> 00:00:00 | G6: Rap: | I6: =Setup!E17 -> 0 | L6: PG Grade: | N6: =Setup!E14 -> 0
A8: Blend 2
E10: Gmb Specimen
B11: Individual Weights | C11: Cumulative Weights | K11: Total Aggregate Wt
A12: Sieve | D12: ='Agg Blends'!$I$10 -> 0 | E12: ='Agg Blends'!$I$11 -> 0 | F12: ='Agg Blends'!$I$12 -> 0 | G12: ='Agg Blends'!$I$13 -> 0 | H12: ='Agg Blends'!$I$14 -> 0 | I12: ='Agg Blends'!$I$15 -> 0 | J12: ='Agg Blends'!$I$16 -> 0 | S12: 1 | T12: 2 | U12: 3 | V12: 4 | W12: 5 | X12: 6 | Y12: 7
A13: 50 | B13: =C13-C14 -> 0 | C13: =IF(SUM(D13:J13)=0,0,SUM(D13:J13)+$K$26) -> 0 | D13: =S13 -> 0 | E13: 0 | F13: 0 | G13: 0 | H13: 0 | I13: 0 | J13: 0 | K13: Binder % | R13: =(C13/$M$11)*100 ->  | S13: =('Agg Blends'!D20/100)*('Agg Blends'!$L$10/100)*($M$11-$K$26) -> 0 | T13: =('Agg Blends'!E20/100)*('Agg Blends'!$L$11/100)*($M$11-$K$26) -> 0 | U13: =('Agg Blends'!F20/100)*('Agg Blends'!$L$12/100)*($M$11-$K$26) -> 0 | V13: =('Agg Blends'!G20/100)*('Agg Blends'!$L$13/100)*($M$11-$K$26) -> 0 | W13: =('Agg Blends'!H20/100)*('Agg Blends'!$L$14/100)*($M$11-$K$26) -> 0 | X13: =('Agg Blends'!I20/100)*('Agg Blends'!$L$15/100)*($M$11-$K$26) -> 0 | Y13: =('Agg Blends'!J20/100)*('Agg Blends'!$L$16/100)*($M$11-$K$26) -> 0
A14: 37.5 | B14: 0 | C14: 0 | D14: 0 | E14: 0 | F14: 0 | G14: 0 | H14: 0 | I14: 0 | J14: 0 | K14: Agg Wt | L14: =M11 -> 0 | M14: =M11 -> 0 | N14: =M11 -> 0 | O14: =M11 -> 0 | R14: =(C14/$M$11)*100 ->  | S14: =('Agg Blends'!D21/100)*('Agg Blends'!$L$10/100)*($M$11-$K$26) -> 0 | T14: =('Agg Blends'!E21/100)*('Agg Blends'!$L$11/100)*($M$11-$K$26) -> 0 | U14: =('Agg Blends'!F21/100)*('Agg Blends'!$L$12/100)*($M$11-$K$26) -> 0 | V14: =('Agg Blends'!G21/100)*('Agg Blends'!$L$13/100)*($M$11-$K$26) -> 0 | W14: =('Agg Blends'!H21/100)*('Agg Blends'!$L$14/100)*($M$11-$K$26) -> 0 | X14: =('Agg Blends'!I21/100)*('Agg Blends'!$L$15/100)*($M$11-$K$26) -> 0 | Y14: =('Agg Blends'!J21/100)*('Agg Blends'!$L$16/100)*($M$11-$K$26) -> 0
A15: 25 | B15: 0 | C15: 0 | D15: 0 | E15: 0 | F15: 0 | G15: 0 | H15: 0 | I15: 0 | J15: 0 | K15: Binder Wt | L15: =L16-L14 -> 0 | M15: =M16-M14 -> 0 | N15: =N16-N14 -> 0 | O15: =O16-O14 -> 0 | R15: =(C15/$M$11)*100 ->  | S15: =('Agg Blends'!D22/100)*('Agg Blends'!$L$10/100)*($M$11-$K$26) -> 0 | T15: =('Agg Blends'!E22/100)*('Agg Blends'!$L$11/100)*($M$11-$K$26) -> 0 | U15: =('Agg Blends'!F22/100)*('Agg Blends'!$L$12/100)*($M$11-$K$26) -> 0 | V15: =('Agg Blends'!G22/100)*('Agg Blends'!$L$13/100)*($M$11-$K$26) -> 0 | W15: =('Agg Blends'!H22/100)*('Agg Blends'!$L$14/100)*($M$11-$K$26) -> 0 | X15: =('Agg Blends'!I22/100)*('Agg Blends'!$L$15/100)*($M$11-$K$26) -> 0 | Y15: =('Agg Blends'!J22/100)*('Agg Blends'!$L$16/100)*($M$11-$K$26) -> 0
A16: 19 | B16: 0 | C16: 0 | D16: 0 | E16: 0 | F16: 0 | G16: 0 | H16: 0 | I16: 0 | J16: 0 | K16: Total Wt | L16: =(L14/(100-L13))*100 -> 0 | M16: =(M14/(100-M13))*100 -> 0 | N16: =(N14/(100-N13))*100 -> 0 | O16: =(O14/(100-O13))*100 -> 0 | S16: =('Agg Blends'!D23/100)*('Agg Blends'!$L$10/100)*($M$11-$K$26) -> 0 | T16: =('Agg Blends'!E23/100)*('Agg Blends'!$L$11/100)*($M$11-$K$26) -> 0 | U16: =('Agg Blends'!F23/100)*('Agg Blends'!$L$12/100)*($M$11-$K$26) -> 0 | V16: =('Agg Blends'!G23/100)*('Agg Blends'!$L$13/100)*($M$11-$K$26) -> 0 | W16: =('Agg Blends'!H23/100)*('Agg Blends'!$L$14/100)*($M$11-$K$26) -> 0 | X16: =('Agg Blends'!I23/100)*('Agg Blends'!$L$15/100)*($M$11-$K$26) -> 0 | Y16: =('Agg Blends'!J23/100)*('Agg Blends'!$L$16/100)*($M$11-$K$26) -> 0
A17: 12.5 | B17: 0 | C17: 0 | D17: 0 | E17: 0 | F17: 0 | G17: 0 | H17: 0 | I17: 0 | J17: 0 | S17: =('Agg Blends'!D24/100)*('Agg Blends'!$L$10/100)*($M$11-$K$26) -> 0 | T17: =('Agg Blends'!E24/100)*('Agg Blends'!$L$11/100)*($M$11-$K$26) -> 0 | U17: =('Agg Blends'!F24/100)*('Agg Blends'!$L$12/100)*($M$11-$K$26) -> 0 | V17: =('Agg Blends'!G24/100)*('Agg Blends'!$L$13/100)*($M$11-$K$26) -> 0 | W17: =('Agg Blends'!H24/100)*('Agg Blends'!$L$14/100)*($M$11-$K$26) -> 0 | X17: =('Agg Blends'!I24/100)*('Agg Blends'!$L$15/100)*($M$11-$K$26) -> 0 | Y17: =('Agg Blends'!J24/100)*('Agg Blends'!$L$16/100)*($M$11-$K$26) -> 0
A18: 9.5 | B18: =C18-C19 -> 0 | C18: 0 | D18: 0 | E18: 0 | F18: 0 | G18: 0 | H18: 0 | I18: 0 | J18: 0 | S18: =('Agg Blends'!D25/100)*('Agg Blends'!$L$10/100)*($M$11-$K$26) -> 0 | T18: =('Agg Blends'!E25/100)*('Agg Blends'!$L$11/100)*($M$11-$K$26) -> 0 | U18: =('Agg Blends'!F25/100)*('Agg Blends'!$L$12/100)*($M$11-$K$26) -> 0 | V18: =('Agg Blends'!G25/100)*('Agg Blends'!$L$13/100)*($M$11-$K$26) -> 0 | W18: =('Agg Blends'!H25/100)*('Agg Blends'!$L$14/100)*($M$11-$K$26) -> 0 | X18: =('Agg Blends'!I25/100)*('Agg Blends'!$L$15/100)*($M$11-$K$26) -> 0 | Y18: =('Agg Blends'!J25/100)*('Agg Blends'!$L$16/100)*($M$11-$K$26) -> 0
A19: 6.33 | B19: 0 | C19: 0 | D19: =S19 -> 0 | E19: =T19 -> 0 | F19: =U19 -> 0 | G19: =V19 -> 0 | H19: =W19 -> 0 | I19: =X19 -> 0 | J19: =Y19 -> 0 | S19: =('Agg Blends'!D26/100)*('Agg Blends'!$L$10/100)*($M$11-$K$26) -> 0 | T19: =('Agg Blends'!E26/100)*('Agg Blends'!$L$11/100)*($M$11-$K$26) -> 0 | U19: =('Agg Blends'!F26/100)*('Agg Blends'!$L$12/100)*($M$11-$K$26) -> 0 | V19: =('Agg Blends'!G26/100)*('Agg Blends'!$L$13/100)*($M$11-$K$26) -> 0 | W19: =('Agg Blends'!H26/100)*('Agg Blends'!$L$14/100)*($M$11-$K$26) -> 0 | X19: =('Agg Blends'!I26/100)*('Agg Blends'!$L$15/100)*($M$11-$K$26) -> 0 | Y19: =('Agg Blends'!J26/100)*('Agg Blends'!$L$16/100)*($M$11-$K$26) -> 0
A20: 4.75 | B20: 0 | C20: =IF(SUM(D20:J20)=0,0,SUM(D20:J20)+$K$26) -> 0 | D20: 0 | E20: 0 | F20: 0 | G20: 0 | H20: 0 | I20: 0 | J20: 0 | S20: =('Agg Blends'!D27/100)*('Agg Blends'!$L$10/100)*($M$11-$K$26) -> 0 | T20: =('Agg Blends'!E27/100)*('Agg Blends'!$L$11/100)*($M$11-$K$26) -> 0 | U20: =('Agg Blends'!F27/100)*('Agg Blends'!$L$12/100)*($M$11-$K$26) -> 0 | V20: =('Agg Blends'!G27/100)*('Agg Blends'!$L$13/100)*($M$11-$K$26) -> 0 | W20: =('Agg Blends'!H27/100)*('Agg Blends'!$L$14/100)*($M$11-$K$26) -> 0 | X20: =('Agg Blends'!I27/100)*('Agg Blends'!$L$15/100)*($M$11-$K$26) -> 0 | Y20: =('Agg Blends'!J27/100)*('Agg Blends'!$L$16/100)*($M$11-$K$26) -> 0
A21: 2.36 | B21: 0 | C21: 0 | D21: 0 | E21: 0 | F21: 0 | G21: 0 | H21: 0 | I21: 0 | J21: 0 | S21: =('Agg Blends'!D28/100)*('Agg Blends'!$L$10/100)*($M$11-$K$26) -> 0 | T21: =('Agg Blends'!E28/100)*('Agg Blends'!$L$11/100)*($M$11-$K$26) -> 0 | U21: =('Agg Blends'!F28/100)*('Agg Blends'!$L$12/100)*($M$11-$K$26) -> 0 | V21: =('Agg Blends'!G28/100)*('Agg Blends'!$L$13/100)*($M$11-$K$26) -> 0 | W21: =('Agg Blends'!H28/100)*('Agg Blends'!$L$14/100)*($M$11-$K$26) -> 0 | X21: =('Agg Blends'!I28/100)*('Agg Blends'!$L$15/100)*($M$11-$K$26) -> 0 | Y21: =('Agg Blends'!J28/100)*('Agg Blends'!$L$16/100)*($M$11-$K$26) -> 0
A22: 1.18 | B22: 0 | C22: 0 | D22: 0 | E22: 0 | F22: 0 | G22: 0 | H22: 0 | I22: 0 | J22: 0 | S22: =('Agg Blends'!D29/100)*('Agg Blends'!$L$10/100)*($M$11-$K$26) -> 0 | T22: =('Agg Blends'!E29/100)*('Agg Blends'!$L$11/100)*($M$11-$K$26) -> 0 | U22: =('Agg Blends'!F29/100)*('Agg Blends'!$L$12/100)*($M$11-$K$26) -> 0 | V22: =('Agg Blends'!G29/100)*('Agg Blends'!$L$13/100)*($M$11-$K$26) -> 0 | W22: =('Agg Blends'!H29/100)*('Agg Blends'!$L$14/100)*($M$11-$K$26) -> 0 | X22: =('Agg Blends'!I29/100)*('Agg Blends'!$L$15/100)*($M$11-$K$26) -> 0 | Y22: =('Agg Blends'!J29/100)*('Agg Blends'!$L$16/100)*($M$11-$K$26) -> 0
A23: 0.6 | B23: 0 | C23: 0 | D23: 0 | E23: 0 | F23: 0 | G23: 0 | H23: 0 | I23: 0 | J23: 0 | S23: =('Agg Blends'!D30/100)*('Agg Blends'!$L$10/100)*($M$11-$K$26) -> 0 | T23: =('Agg Blends'!E30/100)*('Agg Blends'!$L$11/100)*($M$11-$K$26) -> 0 | U23: =('Agg Blends'!F30/100)*('Agg Blends'!$L$12/100)*($M$11-$K$26) -> 0 | V23: =('Agg Blends'!G30/100)*('Agg Blends'!$L$13/100)*($M$11-$K$26) -> 0 | W23: =('Agg Blends'!H30/100)*('Agg Blends'!$L$14/100)*($M$11-$K$26) -> 0 | X23: =('Agg Blends'!I30/100)*('Agg Blends'!$L$15/100)*($M$11-$K$26) -> 0 | Y23: =('Agg Blends'!J30/100)*('Agg Blends'!$L$16/100)*($M$11-$K$26) -> 0
A24: 0.3 | B24: 0 | C24: 0 | D24: 0 | E24: 0 | F24: 0 | G24: 0 | H24: 0 | I24: 0 | J24: 0 | S24: =('Agg Blends'!D31/100)*('Agg Blends'!$L$10/100)*($M$11-$K$26) -> 0 | T24: =('Agg Blends'!E31/100)*('Agg Blends'!$L$11/100)*($M$11-$K$26) -> 0 | U24: =('Agg Blends'!F31/100)*('Agg Blends'!$L$12/100)*($M$11-$K$26) -> 0 | V24: =('Agg Blends'!G31/100)*('Agg Blends'!$L$13/100)*($M$11-$K$26) -> 0 | W24: =('Agg Blends'!H31/100)*('Agg Blends'!$L$14/100)*($M$11-$K$26) -> 0 | X24: =('Agg Blends'!I31/100)*('Agg Blends'!$L$15/100)*($M$11-$K$26) -> 0 | Y24: =('Agg Blends'!J31/100)*('Agg Blends'!$L$16/100)*($M$11-$K$26) -> 0
A25: 0.15 | B25: =C25-C26 -> 0 | C25: 0 | D25: 0 | E25: 0 | F25: 0 | G25: 0 | H25: 0 | I25: 0 | J25: 0 | K25: Baghouse #200 | S25: =('Agg Blends'!D32/100)*('Agg Blends'!$L$10/100)*($M$11-$K$26) -> 0 | T25: =('Agg Blends'!E32/100)*('Agg Blends'!$L$11/100)*($M$11-$K$26) -> 0 | U25: =('Agg Blends'!F32/100)*('Agg Blends'!$L$12/100)*($M$11-$K$26) -> 0 | V25: =('Agg Blends'!G32/100)*('Agg Blends'!$L$13/100)*($M$11-$K$26) -> 0 | W25: =('Agg Blends'!H32/100)*('Agg Blends'!$L$14/100)*($M$11-$K$26) -> 0 | X25: =('Agg Blends'!I32/100)*('Agg Blends'!$L$15/100)*($M$11-$K$26) -> 0 | Y25: =('Agg Blends'!J32/100)*('Agg Blends'!$L$16/100)*($M$11-$K$26) -> 0
A26: 0.075 | B26: =C26 -> 0 | C26: 0 | D26: 0 | E26: 0 | F26: 0 | G26: 0 | H26: 0 | I26: 0 | J26: 0 | K26: =('Agg Blends'!L34/100)*($M$11) -> 0 | S26: =('Agg Blends'!D33/100)*('Agg Blends'!$L$10/100)*($M$11-$K$26) -> 0 | T26: =('Agg Blends'!E33/100)*('Agg Blends'!$L$11/100)*($M$11-$K$26) -> 0 | U26: =('Agg Blends'!F33/100)*('Agg Blends'!$L$12/100)*($M$11-$K$26) -> 0 | V26: =('Agg Blends'!G33/100)*('Agg Blends'!$L$13/100)*($M$11-$K$26) -> 0 | W26: =('Agg Blends'!H33/100)*('Agg Blends'!$L$14/100)*($M$11-$K$26) -> 0 | X26: =('Agg Blends'!I33/100)*('Agg Blends'!$L$15/100)*($M$11-$K$26) -> 0 | Y26: =('Agg Blends'!J33/100)*('Agg Blends'!$L$16/100)*($M$11-$K$26) -> 0
E30: Gmm Specimen
B31: Individual Weights | C31: Cumulative Weights | K31: Total Aggregate Wt
A32: Sieve | D32: ='Agg Blends'!$I$10 -> 0 | E32: ='Agg Blends'!$I$11 -> 0 | F32: ='Agg Blends'!$I$12 -> 0 | G32: ='Agg Blends'!$I$13 -> 0 | H32: ='Agg Blends'!$I$14 -> 0 | I32: ='Agg Blends'!$I$15 -> 0 | J32: ='Agg Blends'!$I$15 -> 0 | S32: 1 | T32: 2 | U32: 3 | V32: 4 | W32: 5 | X32: 6 | Y32: 7
A33: 50 | B33: =C33-C34 -> 0 | C33: =IF(SUM(D33:J33)=0,0,SUM(D33:J33)+$K$46) -> 0 | D33: =S33 -> 0 | E33: 0 | F33: 0 | G33: 0 | H33: 0 | I33: 0 | J33: 0 | K33: Binder % | R33: =(C33/$M$31)*100 ->  | S33: =('Agg Blends'!D20/100)*('Agg Blends'!$L$10/100)*($M$31-$K$46) -> 0 | T33: =('Agg Blends'!E20/100)*('Agg Blends'!$L$11/100)*($M$31-$K$46) -> 0 | U33: =('Agg Blends'!F20/100)*('Agg Blends'!$L$12/100)*($M$31-$K$46) -> 0 | V33: =('Agg Blends'!G20/100)*('Agg Blends'!$L$13/100)*($M$31-$K$46) -> 0 | W33: =('Agg Blends'!H20/100)*('Agg Blends'!$L$14/100)*($M$31-$K$46) -> 0 | X33: =('Agg Blends'!I20/100)*('Agg Blends'!$L$15/100)*($M$31-$K$46) -> 0 | Y33: =('Agg Blends'!J20/100)*('Agg Blends'!$L$16/100)*($M$31-$K$46) -> 0
A34: 37.5 | B34: 0 | C34: =IF(SUM(D34:J34)=0,0,SUM(D34:J34)+$K$46) -> 0 | D34: 0 | E34: 0 | F34: 0 | G34: 0 | H34: 0 | I34: 0 | J34: 0 | K34: Agg Wt | L34: =M31 -> 0 | M34: =M31 -> 0 | N34: =M31 -> 0 | O34: =M31 -> 0 | R34: =(C34/$M$31)*100 ->  | S34: =('Agg Blends'!D21/100)*('Agg Blends'!$L$10/100)*($M$31-$K$46) -> 0 | T34: =('Agg Blends'!E21/100)*('Agg Blends'!$L$11/100)*($M$31-$K$46) -> 0 | U34: =('Agg Blends'!F21/100)*('Agg Blends'!$L$12/100)*($M$31-$K$46) -> 0 | V34: =('Agg Blends'!G21/100)*('Agg Blends'!$L$13/100)*($M$31-$K$46) -> 0 | W34: =('Agg Blends'!H21/100)*('Agg Blends'!$L$14/100)*($M$31-$K$46) -> 0 | X34: =('Agg Blends'!I21/100)*('Agg Blends'!$L$15/100)*($M$31-$K$46) -> 0 | Y34: =('Agg Blends'!J21/100)*('Agg Blends'!$L$16/100)*($M$31-$K$46) -> 0
A35: 25 | B35: 0 | C35: 0 | D35: 0 | E35: 0 | F35: 0 | G35: 0 | H35: 0 | I35: 0 | J35: 0 | K35: Binder Wt | L35: =L36-L34 -> 0 | M35: =M36-M34 -> 0 | N35: =N36-N34 -> 0 | O35: =O36-O34 -> 0 | S35: =('Agg Blends'!D22/100)*('Agg Blends'!$L$10/100)*($M$31-$K$46) -> 0 | T35: =('Agg Blends'!E22/100)*('Agg Blends'!$L$11/100)*($M$31-$K$46) -> 0 | U35: =('Agg Blends'!F22/100)*('Agg Blends'!$L$12/100)*($M$31-$K$46) -> 0 | V35: =('Agg Blends'!G22/100)*('Agg Blends'!$L$13/100)*($M$31-$K$46) -> 0 | W35: =('Agg Blends'!H22/100)*('Agg Blends'!$L$14/100)*($M$31-$K$46) -> 0 | X35: =('Agg Blends'!I22/100)*('Agg Blends'!$L$15/100)*($M$31-$K$46) -> 0 | Y35: =('Agg Blends'!J22/100)*('Agg Blends'!$L$16/100)*($M$31-$K$46) -> 0
A36: 19 | B36: 0 | C36: 0 | D36: 0 | E36: 0 | F36: 0 | G36: 0 | H36: 0 | I36: 0 | J36: 0 | K36: Total Wt | L36: =(L34/(100-L33))*100 -> 0 | M36: =(M34/(100-M33))*100 -> 0 | N36: =(N34/(100-N33))*100 -> 0 | O36: =(O34/(100-O33))*100 -> 0 | S36: =('Agg Blends'!D23/100)*('Agg Blends'!$L$10/100)*($M$31-$K$46) -> 0 | T36: =('Agg Blends'!E23/100)*('Agg Blends'!$L$11/100)*($M$31-$K$46) -> 0 | U36: =('Agg Blends'!F23/100)*('Agg Blends'!$L$12/100)*($M$31-$K$46) -> 0 | V36: =('Agg Blends'!G23/100)*('Agg Blends'!$L$13/100)*($M$31-$K$46) -> 0 | W36: =('Agg Blends'!H23/100)*('Agg Blends'!$L$14/100)*($M$31-$K$46) -> 0 | X36: =('Agg Blends'!I23/100)*('Agg Blends'!$L$15/100)*($M$31-$K$46) -> 0 | Y36: =('Agg Blends'!J23/100)*('Agg Blends'!$L$16/100)*($M$31-$K$46) -> 0
A37: 12.5 | B37: 0 | C37: 0 | D37: 0 | E37: 0 | F37: 0 | G37: 0 | H37: 0 | I37: 0 | J37: 0 | S37: =('Agg Blends'!D24/100)*('Agg Blends'!$L$10/100)*($M$31-$K$46) -> 0 | T37: =('Agg Blends'!E24/100)*('Agg Blends'!$L$11/100)*($M$31-$K$46) -> 0 | U37: =('Agg Blends'!F24/100)*('Agg Blends'!$L$12/100)*($M$31-$K$46) -> 0 | V37: =('Agg Blends'!G24/100)*('Agg Blends'!$L$13/100)*($M$31-$K$46) -> 0 | W37: =('Agg Blends'!H24/100)*('Agg Blends'!$L$14/100)*($M$31-$K$46) -> 0 | X37: =('Agg Blends'!I24/100)*('Agg Blends'!$L$15/100)*($M$31-$K$46) -> 0 | Y37: =('Agg Blends'!J24/100)*('Agg Blends'!$L$16/100)*($M$31-$K$46) -> 0
A38: 9.5 | B38: =C38-C39 -> 0 | C38: 0 | D38: 0 | E38: 0 | F38: 0 | G38: 0 | H38: 0 | I38: 0 | J38: 0 | S38: =('Agg Blends'!D25/100)*('Agg Blends'!$L$10/100)*($M$31-$K$46) -> 0 | T38: =('Agg Blends'!E25/100)*('Agg Blends'!$L$11/100)*($M$31-$K$46) -> 0 | U38: =('Agg Blends'!F25/100)*('Agg Blends'!$L$12/100)*($M$31-$K$46) -> 0 | V38: =('Agg Blends'!G25/100)*('Agg Blends'!$L$13/100)*($M$31-$K$46) -> 0 | W38: =('Agg Blends'!H25/100)*('Agg Blends'!$L$14/100)*($M$31-$K$46) -> 0 | X38: =('Agg Blends'!I25/100)*('Agg Blends'!$L$15/100)*($M$31-$K$46) -> 0 | Y38: =('Agg Blends'!J25/100)*('Agg Blends'!$L$16/100)*($M$31-$K$46) -> 0
A39: 6.33 | B39: 0 | C39: 0 | D39: =S39 -> 0 | E39: =T39 -> 0 | F39: =U39 -> 0 | G39: =V39 -> 0 | H39: =W39 -> 0 | I39: =X39 -> 0 | J39: =Y39 -> 0 | S39: =('Agg Blends'!D26/100)*('Agg Blends'!$L$10/100)*($M$31-$K$46) -> 0 | T39: =('Agg Blends'!E26/100)*('Agg Blends'!$L$11/100)*($M$31-$K$46) -> 0 | U39: =('Agg Blends'!F26/100)*('Agg Blends'!$L$12/100)*($M$31-$K$46) -> 0 | V39: =('Agg Blends'!G26/100)*('Agg Blends'!$L$13/100)*($M$31-$K$46) -> 0 | W39: =('Agg Blends'!H26/100)*('Agg Blends'!$L$14/100)*($M$31-$K$46) -> 0 | X39: =('Agg Blends'!I26/100)*('Agg Blends'!$L$15/100)*($M$31-$K$46) -> 0 | Y39: =('Agg Blends'!J26/100)*('Agg Blends'!$L$16/100)*($M$31-$K$46) -> 0
A40: 4.75 | B40: 0 | C40: 0 | D40: 0 | E40: 0 | F40: 0 | G40: 0 | H40: 0 | I40: 0 | J40: 0 | S40: =('Agg Blends'!D27/100)*('Agg Blends'!$L$10/100)*($M$31-$K$46) -> 0 | T40: =('Agg Blends'!E27/100)*('Agg Blends'!$L$11/100)*($M$31-$K$46) -> 0 | U40: =('Agg Blends'!F27/100)*('Agg Blends'!$L$12/100)*($M$31-$K$46) -> 0 | V40: =('Agg Blends'!G27/100)*('Agg Blends'!$L$13/100)*($M$31-$K$46) -> 0 | W40: =('Agg Blends'!H27/100)*('Agg Blends'!$L$14/100)*($M$31-$K$46) -> 0 | X40: =('Agg Blends'!I27/100)*('Agg Blends'!$L$15/100)*($M$31-$K$46) -> 0 | Y40: =('Agg Blends'!J27/100)*('Agg Blends'!$L$16/100)*($M$31-$K$46) -> 0
A41: 2.36 | B41: 0 | C41: 0 | D41: 0 | E41: 0 | F41: 0 | G41: 0 | H41: 0 | I41: 0 | J41: 0 | S41: =('Agg Blends'!D28/100)*('Agg Blends'!$L$10/100)*($M$31-$K$46) -> 0 | T41: =('Agg Blends'!E28/100)*('Agg Blends'!$L$11/100)*($M$31-$K$46) -> 0 | U41: =('Agg Blends'!F28/100)*('Agg Blends'!$L$12/100)*($M$31-$K$46) -> 0 | V41: =('Agg Blends'!G28/100)*('Agg Blends'!$L$13/100)*($M$31-$K$46) -> 0 | W41: =('Agg Blends'!H28/100)*('Agg Blends'!$L$14/100)*($M$31-$K$46) -> 0 | X41: =('Agg Blends'!I28/100)*('Agg Blends'!$L$15/100)*($M$31-$K$46) -> 0 | Y41: =('Agg Blends'!J28/100)*('Agg Blends'!$L$16/100)*($M$31-$K$46) -> 0
A42: 1.18 | B42: 0 | C42: 0 | D42: 0 | E42: 0 | F42: 0 | G42: 0 | H42: 0 | I42: 0 | J42: 0 | S42: =('Agg Blends'!D29/100)*('Agg Blends'!$L$10/100)*($M$31-$K$46) -> 0 | T42: =('Agg Blends'!E29/100)*('Agg Blends'!$L$11/100)*($M$31-$K$46) -> 0 | U42: =('Agg Blends'!F29/100)*('Agg Blends'!$L$12/100)*($M$31-$K$46) -> 0 | V42: =('Agg Blends'!G29/100)*('Agg Blends'!$L$13/100)*($M$31-$K$46) -> 0 | W42: =('Agg Blends'!H29/100)*('Agg Blends'!$L$14/100)*($M$31-$K$46) -> 0 | X42: =('Agg Blends'!I29/100)*('Agg Blends'!$L$15/100)*($M$31-$K$46) -> 0 | Y42: =('Agg Blends'!J29/100)*('Agg Blends'!$L$16/100)*($M$31-$K$46) -> 0
A43: 0.6 | B43: 0 | C43: 0 | D43: 0 | E43: 0 | F43: 0 | G43: 0 | H43: 0 | I43: 0 | J43: 0 | S43: =('Agg Blends'!D30/100)*('Agg Blends'!$L$10/100)*($M$31-$K$46) -> 0 | T43: =('Agg Blends'!E30/100)*('Agg Blends'!$L$11/100)*($M$31-$K$46) -> 0 | U43: =('Agg Blends'!F30/100)*('Agg Blends'!$L$12/100)*($M$31-$K$46) -> 0 | V43: =('Agg Blends'!G30/100)*('Agg Blends'!$L$13/100)*($M$31-$K$46) -> 0 | W43: =('Agg Blends'!H30/100)*('Agg Blends'!$L$14/100)*($M$31-$K$46) -> 0 | X43: =('Agg Blends'!I30/100)*('Agg Blends'!$L$15/100)*($M$31-$K$46) -> 0 | Y43: =('Agg Blends'!J30/100)*('Agg Blends'!$L$16/100)*($M$31-$K$46) -> 0
A44: 0.3 | B44: 0 | C44: 0 | D44: 0 | E44: 0 | F44: 0 | G44: 0 | H44: 0 | I44: 0 | J44: 0 | S44: =('Agg Blends'!D31/100)*('Agg Blends'!$L$10/100)*($M$31-$K$46) -> 0 | T44: =('Agg Blends'!E31/100)*('Agg Blends'!$L$11/100)*($M$31-$K$46) -> 0 | U44: =('Agg Blends'!F31/100)*('Agg Blends'!$L$12/100)*($M$31-$K$46) -> 0 | V44: =('Agg Blends'!G31/100)*('Agg Blends'!$L$13/100)*($M$31-$K$46) -> 0 | W44: =('Agg Blends'!H31/100)*('Agg Blends'!$L$14/100)*($M$31-$K$46) -> 0 | X44: =('Agg Blends'!I31/100)*('Agg Blends'!$L$15/100)*($M$31-$K$46) -> 0 | Y44: =('Agg Blends'!J31/100)*('Agg Blends'!$L$16/100)*($M$31-$K$46) -> 0
A45: 0.15 | B45: =C45-C46 -> 0 | C45: 0 | D45: 0 | E45: 0 | F45: 0 | G45: 0 | H45: 0 | I45: 0 | J45: 0 | K45: Baghouse #200 | S45: =('Agg Blends'!D32/100)*('Agg Blends'!$L$10/100)*($M$31-$K$46) -> 0 | T45: =('Agg Blends'!E32/100)*('Agg Blends'!$L$11/100)*($M$31-$K$46) -> 0 | U45: =('Agg Blends'!F32/100)*('Agg Blends'!$L$12/100)*($M$31-$K$46) -> 0 | V45: =('Agg Blends'!G32/100)*('Agg Blends'!$L$13/100)*($M$31-$K$46) -> 0 | W45: =('Agg Blends'!H32/100)*('Agg Blends'!$L$14/100)*($M$31-$K$46) -> 0 | X45: =('Agg Blends'!I32/100)*('Agg Blends'!$L$15/100)*($M$31-$K$46) -> 0 | Y45: =('Agg Blends'!J32/100)*('Agg Blends'!$L$16/100)*($M$31-$K$46) -> 0
A46: 0.075 | B46: =C46 -> 0 | C46: 0 | D46: 0 | E46: 0 | F46: 0 | G46: 0 | H46: 0 | I46: 0 | J46: 0 | K46: =('Agg Blends'!L34/100)*($M$31) -> 0 | S46: =('Agg Blends'!D33/100)*('Agg Blends'!$L$10/100)*($M$31-$K$46) -> 0 | T46: =('Agg Blends'!E33/100)*('Agg Blends'!$L$11/100)*($M$31-$K$46) -> 0 | U46: =('Agg Blends'!F33/100)*('Agg Blends'!$L$12/100)*($M$31-$K$46) -> 0 | V46: =('Agg Blends'!G33/100)*('Agg Blends'!$L$13/100)*($M$31-$K$46) -> 0 | W46: =('Agg Blends'!H33/100)*('Agg Blends'!$L$14/100)*($M$31-$K$46) -> 0 | X46: =('Agg Blends'!I33/100)*('Agg Blends'!$L$15/100)*($M$31-$K$46) -> 0 | Y46: =('Agg Blends'!J33/100)*('Agg Blends'!$L$16/100)*($M$31-$K$46) -> 0

Sheet Blend 3
A1: =Setup!A2 -> ESB-19
A3: Blend Sheet 3
A4: Producer; | C4: =Setup!E7 -> 0 | G4: Material Class: | I4: =Setup!E10 -> 0 | L4: Nominal Size: | N4: =Setup!E9 -> 0
A5: Designed By: | C5: =Setup!E8 -> 0 | G5: Esals: | I5: =Setup!E12 -> 0 | L5: SRL: | N5: =Setup!E11 -> 0
A6: Date: | C6: =Setup!E6 -> 00:00:00 | G6: Rap: | I6: =Setup!E17 -> 0 | L6: PG Grade: | N6: =Setup!E14 -> 0
A8: Blend 3
E10: Gmb Specimen
B11: Individual Weights | C11: Cumulative Weights | K11: Total Aggregate Wt
A12: Sieve | D12: ='Agg Blends'!$I$10 -> 0 | E12: ='Agg Blends'!$I$11 -> 0 | F12: ='Agg Blends'!$I$12 -> 0 | G12: ='Agg Blends'!$I$13 -> 0 | H12: ='Agg Blends'!$I$14 -> 0 | I12: ='Agg Blends'!$I$15 -> 0 | J12: ='Agg Blends'!$I$16 -> 0 | S12: 1 | T12: 2 | U12: 3 | V12: 4 | W12: 5 | X12: 6 | Y12: 7
A13: 50 | B13: =C13-C14 -> 0 | C13: =IF(SUM(D13:J13)=0,0,SUM(D13:J13)+$K$26) -> 0 | D13: =S13 -> 0 | E13: 0 | F13: 0 | G13: 0 | H13: 0 | I13: 0 | J13: 0 | K13: Binder % | R13: =(C13/$M$11)*100 ->  | S13: =('Agg Blends'!D20/100)*('Agg Blends'!$M$10/100)*($M$11-$K$26) -> 0 | T13: =('Agg Blends'!E20/100)*('Agg Blends'!$M$11/100)*($M$11-$K$26) -> 0 | U13: =('Agg Blends'!F20/100)*('Agg Blends'!$M$12/100)*($M$11-$K$26) -> 0 | V13: =('Agg Blends'!G20/100)*('Agg Blends'!$M$13/100)*($M$11-$K$26) -> 0 | W13: =('Agg Blends'!H20/100)*('Agg Blends'!$M$14/100)*($M$11-$K$26) -> 0 | X13: =('Agg Blends'!I20/100)*('Agg Blends'!$M$15/100)*($M$11-$K$26) -> 0 | Y13: =('Agg Blends'!J20/100)*('Agg Blends'!$M$16/100)*($M$11-$K$26) -> 0
A14: 37.5 | B14: 0 | C14: 0 | D14: 0 | E14: 0 | F14: 0 | G14: 0 | H14: 0 | I14: 0 | J14: 0 | K14: Agg Wt | L14: =M11 -> 0 | M14: =M11 -> 0 | N14: =M11 -> 0 | O14: =M11 -> 0 | R14: =(C14/$M$11)*100 ->  | S14: =('Agg Blends'!D21/100)*('Agg Blends'!$M$10/100)*($M$11-$K$26) -> 0 | T14: =('Agg Blends'!E21/100)*('Agg Blends'!$M$11/100)*($M$11-$K$26) -> 0 | U14: =('Agg Blends'!F21/100)*('Agg Blends'!$M$12/100)*($M$11-$K$26) -> 0 | V14: =('Agg Blends'!G21/100)*('Agg Blends'!$M$13/100)*($M$11-$K$26) -> 0 | W14: =('Agg Blends'!H21/100)*('Agg Blends'!$M$14/100)*($M$11-$K$26) -> 0 | X14: =('Agg Blends'!I21/100)*('Agg Blends'!$M$15/100)*($M$11-$K$26) -> 0 | Y14: =('Agg Blends'!J21/100)*('Agg Blends'!$M$16/100)*($M$11-$K$26) -> 0
A15: 25 | B15: 0 | C15: 0 | D15: 0 | E15: 0 | F15: 0 | G15: 0 | H15: 0 | I15: 0 | J15: 0 | K15: Binder Wt | L15: =L16-L14 -> 0 | M15: =M16-M14 -> 0 | N15: =N16-N14 -> 0 | O15: =O16-O14 -> 0 | R15: =(C15/$M$11)*100 ->  | S15: =('Agg Blends'!D22/100)*('Agg Blends'!$M$10/100)*($M$11-$K$26) -> 0 | T15: =('Agg Blends'!E22/100)*('Agg Blends'!$M$11/100)*($M$11-$K$26) -> 0 | U15: =('Agg Blends'!F22/100)*('Agg Blends'!$M$12/100)*($M$11-$K$26) -> 0 | V15: =('Agg Blends'!G22/100)*('Agg Blends'!$M$13/100)*($M$11-$K$26) -> 0 | W15: =('Agg Blends'!H22/100)*('Agg Blends'!$M$14/100)*($M$11-$K$26) -> 0 | X15: =('Agg Blends'!I22/100)*('Agg Blends'!$M$15/100)*($M$11-$K$26) -> 0 | Y15: =('Agg Blends'!J22/100)*('Agg Blends'!$M$16/100)*($M$11-$K$26) -> 0
A16: 19 | B16: 0 | C16: 0 | D16: 0 | E16: 0 | F16: 0 | G16: 0 | H16: 0 | I16: 0 | J16: 0 | K16: Total Wt | L16: =(L14/(100-L13))*100 -> 0 | M16: =(M14/(100-M13))*100 -> 0 | N16: =(N14/(100-N13))*100 -> 0 | O16: =(O14/(100-O13))*100 -> 0 | S16: =('Agg Blends'!D23/100)*('Agg Blends'!$M$10/100)*($M$11-$K$26) -> 0 | T16: =('Agg Blends'!E23/100)*('Agg Blends'!$M$11/100)*($M$11-$K$26) -> 0 | U16: =('Agg Blends'!F23/100)*('Agg Blends'!$M$12/100)*($M$11-$K$26) -> 0 | V16: =('Agg Blends'!G23/100)*('Agg Blends'!$M$13/100)*($M$11-$K$26) -> 0 | W16: =('Agg Blends'!H23/100)*('Agg Blends'!$M$14/100)*($M$11-$K$26) -> 0 | X16: =('Agg Blends'!I23/100)*('Agg Blends'!$M$15/100)*($M$11-$K$26) -> 0 | Y16: =('Agg Blends'!J23/100)*('Agg Blends'!$M$16/100)*($M$11-$K$26) -> 0
A17: 12.5 | B17: 0 | C17: 0 | D17: 0 | E17: 0 | F17: 0 | G17: 0 | H17: 0 | I17: 0 | J17: 0 | S17: =('Agg Blends'!D24/100)*('Agg Blends'!$M$10/100)*($M$11-$K$26) -> 0 | T17: =('Agg Blends'!E24/100)*('Agg Blends'!$M$11/100)*($M$11-$K$26) -> 0 | U17: =('Agg Blends'!F24/100)*('Agg Blends'!$M$12/100)*($M$11-$K$26) -> 0 | V17: =('Agg Blends'!G24/100)*('Agg Blends'!$M$13/100)*($M$11-$K$26) -> 0 | W17: =('Agg Blends'!H24/100)*('Agg Blends'!$M$14/100)*($M$11-$K$26) -> 0 | X17: =('Agg Blends'!I24/100)*('Agg Blends'!$M$15/100)*($M$11-$K$26) -> 0 | Y17: =('Agg Blends'!J24/100)*('Agg Blends'!$M$16/100)*($M$11-$K$26) -> 0
A18: 9.5 | B18: =C18-C19 -> 0 | C18: 0 | D18: 0 | E18: 0 | F18: 0 | G18: 0 | H18: 0 | I18: 0 | J18: 0 | S18: =('Agg Blends'!D25/100)*('Agg Blends'!$M$10/100)*($M$11-$K$26) -> 0 | T18: =('Agg Blends'!E25/100)*('Agg Blends'!$M$11/100)*($M$11-$K$26) -> 0 | U18: =('Agg Blends'!F25/100)*('Agg Blends'!$M$12/100)*($M$11-$K$26) -> 0 | V18: =('Agg Blends'!G25/100)*('Agg Blends'!$M$13/100)*($M$11-$K$26) -> 0 | W18: =('Agg Blends'!H25/100)*('Agg Blends'!$M$14/100)*($M$11-$K$26) -> 0 | X18: =('Agg Blends'!I25/100)*('Agg Blends'!$M$15/100)*($M$11-$K$26) -> 0 | Y18: =('Agg Blends'!J25/100)*('Agg Blends'!$M$16/100)*($M$11-$K$26) -> 0
A19: 6.33 | B19: 0 | C19: 0 | D19: =S19 -> 0 | E19: =T19 -> 0 | F19: =U19 -> 0 | G19: =V19 -> 0 | H19: =W19 -> 0 | I19: =X19 -> 0 | J19: =Y19 -> 0 | S19: =('Agg Blends'!D26/100)*('Agg Blends'!$M$10/100)*($M$11-$K$26) -> 0 | T19: =('Agg Blends'!E26/100)*('Agg Blends'!$M$11/100)*($M$11-$K$26) -> 0 | U19: =('Agg Blends'!F26/100)*('Agg Blends'!$M$12/100)*($M$11-$K$26) -> 0 | V19: =('Agg Blends'!G26/100)*('Agg Blends'!$M$13/100)*($M$11-$K$26) -> 0 | W19: =('Agg Blends'!H26/100)*('Agg Blends'!$M$14/100)*($M$11-$K$26) -> 0 | X19: =('Agg Blends'!I26/100)*('Agg Blends'!$M$15/100)*($M$11-$K$26) -> 0 | Y19: =('Agg Blends'!J26/100)*('Agg Blends'!$M$16/100)*($M$11-$K$26) -> 0
A20: 4.75 | B20: 0 | C20: 0 | D20: 0 | E20: 0 | F20: 0 | G20: 0 | H20: 0 | I20: 0 | J20: 0 | S20: =('Agg Blends'!D27/100)*('Agg Blends'!$M$10/100)*($M$11-$K$26) -> 0 | T20: =('Agg Blends'!E27/100)*('Agg Blends'!$M$11/100)*($M$11-$K$26) -> 0 | U20: =('Agg Blends'!F27/100)*('Agg Blends'!$M$12/100)*($M$11-$K$26) -> 0 | V20: =('Agg Blends'!G27/100)*('Agg Blends'!$M$13/100)*($M$11-$K$26) -> 0 | W20: =('Agg Blends'!H27/100)*('Agg Blends'!$M$14/100)*($M$11-$K$26) -> 0 | X20: =('Agg Blends'!I27/100)*('Agg Blends'!$M$15/100)*($M$11-$K$26) -> 0 | Y20: =('Agg Blends'!J27/100)*('Agg Blends'!$M$16/100)*($M$11-$K$26) -> 0
A21: 2.36 | B21: 0 | C21: 0 | D21: 0 | E21: 0 | F21: 0 | G21: 0 | H21: 0 | I21: 0 | J21: 0 | S21: =('Agg Blends'!D28/100)*('Agg Blends'!$M$10/100)*($M$11-$K$26) -> 0 | T21: =('Agg Blends'!E28/100)*('Agg Blends'!$M$11/100)*($M$11-$K$26) -> 0 | U21: =('Agg Blends'!F28/100)*('Agg Blends'!$M$12/100)*($M$11-$K$26) -> 0 | V21: =('Agg Blends'!G28/100)*('Agg Blends'!$M$13/100)*($M$11-$K$26) -> 0 | W21: =('Agg Blends'!H28/100)*('Agg Blends'!$M$14/100)*($M$11-$K$26) -> 0 | X21: =('Agg Blends'!I28/100)*('Agg Blends'!$M$15/100)*($M$11-$K$26) -> 0 | Y21: =('Agg Blends'!J28/100)*('Agg Blends'!$M$16/100)*($M$11-$K$26) -> 0
A22: 1.18 | B22: 0 | C22: 0 | D22: 0 | E22: 0 | F22: 0 | G22: 0 | H22: 0 | I22: 0 | J22: 0 | S22: =('Agg Blends'!D29/100)*('Agg Blends'!$M$10/100)*($M$11-$K$26) -> 0 | T22: =('Agg Blends'!E29/100)*('Agg Blends'!$M$11/100)*($M$11-$K$26) -> 0 | U22: =('Agg Blends'!F29/100)*('Agg Blends'!$M$12/100)*($M$11-$K$26) -> 0 | V22: =('Agg Blends'!G29/100)*('Agg Blends'!$M$13/100)*($M$11-$K$26) -> 0 | W22: =('Agg Blends'!H29/100)*('Agg Blends'!$M$14/100)*($M$11-$K$26) -> 0 | X22: =('Agg Blends'!I29/100)*('Agg Blends'!$M$15/100)*($M$11-$K$26) -> 0 | Y22: =('Agg Blends'!J29/100)*('Agg Blends'!$M$16/100)*($M$11-$K$26) -> 0
A23: 0.6 | B23: 0 | C23: 0 | D23: 0 | E23: 0 | F23: 0 | G23: 0 | H23: 0 | I23: 0 | J23: 0 | S23: =('Agg Blends'!D30/100)*('Agg Blends'!$M$10/100)*($M$11-$K$26) -> 0 | T23: =('Agg Blends'!E30/100)*('Agg Blends'!$M$11/100)*($M$11-$K$26) -> 0 | U23: =('Agg Blends'!F30/100)*('Agg Blends'!$M$12/100)*($M$11-$K$26) -> 0 | V23: =('Agg Blends'!G30/100)*('Agg Blends'!$M$13/100)*($M$11-$K$26) -> 0 | W23: =('Agg Blends'!H30/100)*('Agg Blends'!$M$14/100)*($M$11-$K$26) -> 0 | X23: =('Agg Blends'!I30/100)*('Agg Blends'!$M$15/100)*($M$11-$K$26) -> 0 | Y23: =('Agg Blends'!J30/100)*('Agg Blends'!$M$16/100)*($M$11-$K$26) -> 0
A24: 0.3 | B24: 0 | C24: 0 | D24: 0 | E24: 0 | F24: 0 | G24: 0 | H24: 0 | I24: 0 | J24: 0 | S24: =('Agg Blends'!D31/100)*('Agg Blends'!$M$10/100)*($M$11-$K$26) -> 0 | T24: =('Agg Blends'!E31/100)*('Agg Blends'!$M$11/100)*($M$11-$K$26) -> 0 | U24: =('Agg Blends'!F31/100)*('Agg Blends'!$M$12/100)*($M$11-$K$26) -> 0 | V24: =('Agg Blends'!G31/100)*('Agg Blends'!$M$13/100)*($M$11-$K$26) -> 0 | W24: =('Agg Blends'!H31/100)*('Agg Blends'!$M$14/100)*($M$11-$K$26) -> 0 | X24: =('Agg Blends'!I31/100)*('Agg Blends'!$M$15/100)*($M$11-$K$26) -> 0 | Y24: =('Agg Blends'!J31/100)*('Agg Blends'!$M$16/100)*($M$11-$K$26) -> 0
A25: 0.15 | B25: =C25-C26 -> 0 | C25: 0 | D25: 0 | E25: 0 | F25: 0 | G25: 0 | H25: 0 | I25: 0 | J25: 0 | K25: Baghouse #200 | S25: =('Agg Blends'!D32/100)*('Agg Blends'!$M$10/100)*($M$11-$K$26) -> 0 | T25: =('Agg Blends'!E32/100)*('Agg Blends'!$M$11/100)*($M$11-$K$26) -> 0 | U25: =('Agg Blends'!F32/100)*('Agg Blends'!$M$12/100)*($M$11-$K$26) -> 0 | V25: =('Agg Blends'!G32/100)*('Agg Blends'!$M$13/100)*($M$11-$K$26) -> 0 | W25: =('Agg Blends'!H32/100)*('Agg Blends'!$M$14/100)*($M$11-$K$26) -> 0 | X25: =('Agg Blends'!I32/100)*('Agg Blends'!$M$15/100)*($M$11-$K$26) -> 0 | Y25: =('Agg Blends'!J32/100)*('Agg Blends'!$M$16/100)*($M$11-$K$26) -> 0
A26: 0.075 | B26: =C26 -> 0 | C26: 0 | D26: 0 | E26: 0 | F26: 0 | G26: 0 | H26: 0 | I26: 0 | J26: 0 | K26: =('Agg Blends'!M34/100)*($M$11) -> 0 | S26: =('Agg Blends'!D33/100)*('Agg Blends'!$M$10/100)*($M$11-$K$26) -> 0 | T26: =('Agg Blends'!E33/100)*('Agg Blends'!$M$11/100)*($M$11-$K$26) -> 0 | U26: =('Agg Blends'!F33/100)*('Agg Blends'!$M$12/100)*($M$11-$K$26) -> 0 | V26: =('Agg Blends'!G33/100)*('Agg Blends'!$M$13/100)*($M$11-$K$26) -> 0 | W26: =('Agg Blends'!H33/100)*('Agg Blends'!$M$14/100)*($M$11-$K$26) -> 0 | X26: =('Agg Blends'!I33/100)*('Agg Blends'!$M$15/100)*($M$11-$K$26) -> 0 | Y26: =('Agg Blends'!J33/100)*('Agg Blends'!$M$16/100)*($M$11-$K$26) -> 0
E30: Gmm Specimen
B31: Individual Weights | C31: Cumulative Weights | K31: Total Aggregate Wt
A32: Sieve | D32: ='Agg Blends'!$I$10 -> 0 | E32: ='Agg Blends'!$I$11 -> 0 | F32: ='Agg Blends'!$I$12 -> 0 | G32: ='Agg Blends'!$I$13 -> 0 | H32: ='Agg Blends'!$I$14 -> 0 | I32: ='Agg Blends'!$I$15 -> 0 | J32: ='Agg Blends'!$I$15 -> 0 | S32: 1 | T32: 2 | U32: 3 | V32: 4 | W32: 5 | X32: 6 | Y32: 7
A33: 50 | B33: =C33-C34 -> 0 | C33: =IF(SUM(D33:J33)=0,0,SUM(D33:J33)+$K$46) -> 0 | D33: =S33 -> 0 | E33: 0 | F33: 0 | G33: 0 | H33: 0 | I33: 0 | J33: 0 | K33: Binder % | R33: =(C33/$M$31)*100 ->  | S33: =('Agg Blends'!D20/100)*('Agg Blends'!$M$10/100)*($M$31-$K$46) -> 0 | T33: =('Agg Blends'!E20/100)*('Agg Blends'!$M$11/100)*($M$31-$K$46) -> 0 | U33: =('Agg Blends'!F20/100)*('Agg Blends'!$M$12/100)*($M$31-$K$46) -> 0 | V33: =('Agg Blends'!G20/100)*('Agg Blends'!$M$13/100)*($M$31-$K$46) -> 0 | W33: =('Agg Blends'!H20/100)*('Agg Blends'!$M$14/100)*($M$31-$K$46) -> 0 | X33: =('Agg Blends'!I20/100)*('Agg Blends'!$M$15/100)*($M$31-$K$46) -> 0 | Y33: =('Agg Blends'!J20/100)*('Agg Blends'!$M$16/100)*($M$31-$K$46) -> 0
A34: 37.5 | B34: 0 | C34: =IF(SUM(D34:J34)=0,0,SUM(D34:J34)+$K$46) -> 0 | D34: 0 | E34: 0 | F34: 0 | G34: 0 | H34: 0 | I34: 0 | J34: 0 | K34: Agg Wt | L34: =M31 -> 0 | M34: =M31 -> 0 | N34: =M31 -> 0 | O34: =M31 -> 0 | R34: =(C34/$M$31)*100 ->  | S34: =('Agg Blends'!D21/100)*('Agg Blends'!$M$10/100)*($M$31-$K$46) -> 0 | T34: =('Agg Blends'!E21/100)*('Agg Blends'!$M$11/100)*($M$31-$K$46) -> 0 | U34: =('Agg Blends'!F21/100)*('Agg Blends'!$M$12/100)*($M$31-$K$46) -> 0 | V34: =('Agg Blends'!G21/100)*('Agg Blends'!$M$13/100)*($M$31-$K$46) -> 0 | W34: =('Agg Blends'!H21/100)*('Agg Blends'!$M$14/100)*($M$31-$K$46) -> 0 | X34: =('Agg Blends'!I21/100)*('Agg Blends'!$M$15/100)*($M$31-$K$46) -> 0 | Y34: =('Agg Blends'!J21/100)*('Agg Blends'!$M$16/100)*($M$31-$K$46) -> 0
A35: 25 | B35: 0 | C35: 0 | D35: 0 | E35: 0 | F35: 0 | G35: 0 | H35: 0 | I35: 0 | J35: 0 | K35: Binder Wt | L35: =L36-L34 -> 0 | M35: =M36-M34 -> 0 | N35: =N36-N34 -> 0 | O35: =O36-O34 -> 0 | S35: =('Agg Blends'!D22/100)*('Agg Blends'!$M$10/100)*($M$31-$K$46) -> 0 | T35: =('Agg Blends'!E22/100)*('Agg Blends'!$M$11/100)*($M$31-$K$46) -> 0 | U35: =('Agg Blends'!F22/100)*('Agg Blends'!$M$12/100)*($M$31-$K$46) -> 0 | V35: =('Agg Blends'!G22/100)*('Agg Blends'!$M$13/100)*($M$31-$K$46) -> 0 | W35: =('Agg Blends'!H22/100)*('Agg Blends'!$M$14/100)*($M$31-$K$46) -> 0 | X35: =('Agg Blends'!I22/100)*('Agg Blends'!$M$15/100)*($M$31-$K$46) -> 0 | Y35: =('Agg Blends'!J22/100)*('Agg Blends'!$M$16/100)*($M$31-$K$46) -> 0
A36: 19 | B36: 0 | C36: 0 | D36: 0 | E36: 0 | F36: 0 | G36: 0 | H36: 0 | I36: 0 | J36: 0 | K36: Total Wt | L36: =(L34/(100-L33))*100 -> 0 | M36: =(M34/(100-M33))*100 -> 0 | N36: =(N34/(100-N33))*100 -> 0 | O36: =(O34/(100-O33))*100 -> 0 | S36: =('Agg Blends'!D23/100)*('Agg Blends'!$M$10/100)*($M$31-$K$46) -> 0 | T36: =('Agg Blends'!E23/100)*('Agg Blends'!$M$11/100)*($M$31-$K$46) -> 0 | U36: =('Agg Blends'!F23/100)*('Agg Blends'!$M$12/100)*($M$31-$K$46) -> 0 | V36: =('Agg Blends'!G23/100)*('Agg Blends'!$M$13/100)*($M$31-$K$46) -> 0 | W36: =('Agg Blends'!H23/100)*('Agg Blends'!$M$14/100)*($M$31-$K$46) -> 0 | X36: =('Agg Blends'!I23/100)*('Agg Blends'!$M$15/100)*($M$31-$K$46) -> 0 | Y36: =('Agg Blends'!J23/100)*('Agg Blends'!$M$16/100)*($M$31-$K$46) -> 0
A37: 12.5 | B37: 0 | C37: 0 | D37: 0 | E37: 0 | F37: 0 | G37: 0 | H37: 0 | I37: 0 | J37: 0 | S37: =('Agg Blends'!D24/100)*('Agg Blends'!$M$10/100)*($M$31-$K$46) -> 0 | T37: =('Agg Blends'!E24/100)*('Agg Blends'!$M$11/100)*($M$31-$K$46) -> 0 | U37: =('Agg Blends'!F24/100)*('Agg Blends'!$M$12/100)*($M$31-$K$46) -> 0 | V37: =('Agg Blends'!G24/100)*('Agg Blends'!$M$13/100)*($M$31-$K$46) -> 0 | W37: =('Agg Blends'!H24/100)*('Agg Blends'!$M$14/100)*($M$31-$K$46) -> 0 | X37: =('Agg Blends'!I24/100)*('Agg Blends'!$M$15/100)*($M$31-$K$46) -> 0 | Y37: =('Agg Blends'!J24/100)*('Agg Blends'!$M$16/100)*($M$31-$K$46) -> 0
A38: 9.5 | B38: =C38-C39 -> 0 | C38: 0 | D38: 0 | E38: 0 | F38: 0 | G38: 0 | H38: 0 | I38: 0 | J38: 0 | S38: =('Agg Blends'!D25/100)*('Agg Blends'!$M$10/100)*($M$31-$K$46) -> 0 | T38: =('Agg Blends'!E25/100)*('Agg Blends'!$M$11/100)*($M$31-$K$46) -> 0 | U38: =('Agg Blends'!F25/100)*('Agg Blends'!$M$12/100)*($M$31-$K$46) -> 0 | V38: =('Agg Blends'!G25/100)*('Agg Blends'!$M$13/100)*($M$31-$K$46) -> 0 | W38: =('Agg Blends'!H25/100)*('Agg Blends'!$M$14/100)*($M$31-$K$46) -> 0 | X38: =('Agg Blends'!I25/100)*('Agg Blends'!$M$15/100)*($M$31-$K$46) -> 0 | Y38: =('Agg Blends'!J25/100)*('Agg Blends'!$M$16/100)*($M$31-$K$46) -> 0
A39: 6.33 | B39: 0 | C39: 0 | D39: =S39 -> 0 | E39: =T39 -> 0 | F39: =U39 -> 0 | G39: =V39 -> 0 | H39: =W39 -> 0 | I39: =X39 -> 0 | J39: =Y39 -> 0 | S39: =('Agg Blends'!D26/100)*('Agg Blends'!$M$10/100)*($M$31-$K$46) -> 0 | T39: =('Agg Blends'!E26/100)*('Agg Blends'!$M$11/100)*($M$31-$K$46) -> 0 | U39: =('Agg Blends'!F26/100)*('Agg Blends'!$M$12/100)*($M$31-$K$46) -> 0 | V39: =('Agg Blends'!G26/100)*('Agg Blends'!$M$13/100)*($M$31-$K$46) -> 0 | W39: =('Agg Blends'!H26/100)*('Agg Blends'!$M$14/100)*($M$31-$K$46) -> 0 | X39: =('Agg Blends'!I26/100)*('Agg Blends'!$M$15/100)*($M$31-$K$46) -> 0 | Y39: =('Agg Blends'!J26/100)*('Agg Blends'!$M$16/100)*($M$31-$K$46) -> 0
A40: 4.75 | B40: 0 | C40: 0 | D40: 0 | E40: 0 | F40: 0 | G40: 0 | H40: 0 | I40: 0 | J40: 0 | S40: =('Agg Blends'!D27/100)*('Agg Blends'!$M$10/100)*($M$31-$K$46) -> 0 | T40: =('Agg Blends'!E27/100)*('Agg Blends'!$M$11/100)*($M$31-$K$46) -> 0 | U40: =('Agg Blends'!F27/100)*('Agg Blends'!$M$12/100)*($M$31-$K$46) -> 0 | V40: =('Agg Blends'!G27/100)*('Agg Blends'!$M$13/100)*($M$31-$K$46) -> 0 | W40: =('Agg Blends'!H27/100)*('Agg Blends'!$M$14/100)*($M$31-$K$46) -> 0 | X40: =('Agg Blends'!I27/100)*('Agg Blends'!$M$15/100)*($M$31-$K$46) -> 0 | Y40: =('Agg Blends'!J27/100)*('Agg Blends'!$M$16/100)*($M$31-$K$46) -> 0
A41: 2.36 | B41: 0 | C41: 0 | D41: 0 | E41: 0 | F41: 0 | G41: 0 | H41: 0 | I41: 0 | J41: 0 | S41: =('Agg Blends'!D28/100)*('Agg Blends'!$M$10/100)*($M$31-$K$46) -> 0 | T41: =('Agg Blends'!E28/100)*('Agg Blends'!$M$11/100)*($M$31-$K$46) -> 0 | U41: =('Agg Blends'!F28/100)*('Agg Blends'!$M$12/100)*($M$31-$K$46) -> 0 | V41: =('Agg Blends'!G28/100)*('Agg Blends'!$M$13/100)*($M$31-$K$46) -> 0 | W41: =('Agg Blends'!H28/100)*('Agg Blends'!$M$14/100)*($M$31-$K$46) -> 0 | X41: =('Agg Blends'!I28/100)*('Agg Blends'!$M$15/100)*($M$31-$K$46) -> 0 | Y41: =('Agg Blends'!J28/100)*('Agg Blends'!$M$16/100)*($M$31-$K$46) -> 0
A42: 1.18 | B42: 0 | C42: 0 | D42: 0 | E42: 0 | F42: 0 | G42: 0 | H42: 0 | I42: 0 | J42: 0 | S42: =('Agg Blends'!D29/100)*('Agg Blends'!$M$10/100)*($M$31-$K$46) -> 0 | T42: =('Agg Blends'!E29/100)*('Agg Blends'!$M$11/100)*($M$31-$K$46) -> 0 | U42: =('Agg Blends'!F29/100)*('Agg Blends'!$M$12/100)*($M$31-$K$46) -> 0 | V42: =('Agg Blends'!G29/100)*('Agg Blends'!$M$13/100)*($M$31-$K$46) -> 0 | W42: =('Agg Blends'!H29/100)*('Agg Blends'!$M$14/100)*($M$31-$K$46) -> 0 | X42: =('Agg Blends'!I29/100)*('Agg Blends'!$M$15/100)*($M$31-$K$46) -> 0 | Y42: =('Agg Blends'!J29/100)*('Agg Blends'!$M$16/100)*($M$31-$K$46) -> 0
A43: 0.6 | B43: 0 | C43: 0 | D43: 0 | E43: 0 | F43: 0 | G43: 0 | H43: 0 | I43: 0 | J43: 0 | S43: =('Agg Blends'!D30/100)*('Agg Blends'!$M$10/100)*($M$31-$K$46) -> 0 | T43: =('Agg Blends'!E30/100)*('Agg Blends'!$M$11/100)*($M$31-$K$46) -> 0 | U43: =('Agg Blends'!F30/100)*('Agg Blends'!$M$12/100)*($M$31-$K$46) -> 0 | V43: =('Agg Blends'!G30/100)*('Agg Blends'!$M$13/100)*($M$31-$K$46) -> 0 | W43: =('Agg Blends'!H30/100)*('Agg Blends'!$M$14/100)*($M$31-$K$46) -> 0 | X43: =('Agg Blends'!I30/100)*('Agg Blends'!$M$15/100)*($M$31-$K$46) -> 0 | Y43: =('Agg Blends'!J30/100)*('Agg Blends'!$M$16/100)*($M$31-$K$46) -> 0
A44: 0.3 | B44: 0 | C44: 0 | D44: 0 | E44: 0 | F44: 0 | G44: 0 | H44: 0 | I44: 0 | J44: 0 | S44: =('Agg Blends'!D31/100)*('Agg Blends'!$M$10/100)*($M$31-$K$46) -> 0 | T44: =('Agg Blends'!E31/100)*('Agg Blends'!$M$11/100)*($M$31-$K$46) -> 0 | U44: =('Agg Blends'!F31/100)*('Agg Blends'!$M$12/100)*($M$31-$K$46) -> 0 | V44: =('Agg Blends'!G31/100)*('Agg Blends'!$M$13/100)*($M$31-$K$46) -> 0 | W44: =('Agg Blends'!H31/100)*('Agg Blends'!$M$14/100)*($M$31-$K$46) -> 0 | X44: =('Agg Blends'!I31/100)*('Agg Blends'!$M$15/100)*($M$31-$K$46) -> 0 | Y44: =('Agg Blends'!J31/100)*('Agg Blends'!$M$16/100)*($M$31-$K$46) -> 0
A45: 0.15 | B45: =C45-C46 -> 0 | C45: 0 | D45: 0 | E45: 0 | F45: 0 | G45: 0 | H45: 0 | I45: 0 | J45: 0 | K45: Baghouse #200 | S45: =('Agg Blends'!D32/100)*('Agg Blends'!$M$10/100)*($M$31-$K$46) -> 0 | T45: =('Agg Blends'!E32/100)*('Agg Blends'!$M$11/100)*($M$31-$K$46) -> 0 | U45: =('Agg Blends'!F32/100)*('Agg Blends'!$M$12/100)*($M$31-$K$46) -> 0 | V45: =('Agg Blends'!G32/100)*('Agg Blends'!$M$13/100)*($M$31-$K$46) -> 0 | W45: =('Agg Blends'!H32/100)*('Agg Blends'!$M$14/100)*($M$31-$K$46) -> 0 | X45: =('Agg Blends'!I32/100)*('Agg Blends'!$M$15/100)*($M$31-$K$46) -> 0 | Y45: =('Agg Blends'!J32/100)*('Agg Blends'!$M$16/100)*($M$31-$K$46) -> 0
A46: 0.075 | B46: =C46 -> 0 | C46: 0 | D46: 0 | E46: 0 | F46: 0 | G46: 0 | H46: 0 | I46: 0 | J46: 0 | K46: =('Agg Blends'!M34/100)*($M$31) -> 0 | S46: =('Agg Blends'!D33/100)*('Agg Blends'!$M$10/100)*($M$31-$K$46) -> 0 | T46: =('Agg Blends'!E33/100)*('Agg Blends'!$M$11/100)*($M$31-$K$46) -> 0 | U46: =('Agg Blends'!F33/100)*('Agg Blends'!$M$12/100)*($M$31-$K$46) -> 0 | V46: =('Agg Blends'!G33/100)*('Agg Blends'!$M$13/100)*($M$31-$K$46) -> 0 | W46: =('Agg Blends'!H33/100)*('Agg Blends'!$M$14/100)*($M$31-$K$46) -> 0 | X46: =('Agg Blends'!I33/100)*('Agg Blends'!$M$15/100)*($M$31-$K$46) -> 0 | Y46: =('Agg Blends'!J33/100)*('Agg Blends'!$M$16/100)*($M$31-$K$46) -> 0
